Workbook

Sheet INGRESO DE DATOS
O2: 24 years | P2: FALSE
O3: Coaseguro (Panamá) | P3: FALSE
O11: Descuento 24 años (por edad) | S11: Type | T11: Nuevo Negocio
O12: age | P12: Discount (%) | Q12: Parameter | T12: Renovación
O13: 24 | P13: 35 | Q13: =1-P13/100 -> 0.65 | T13: Renovación: 2020
O14: 25 | P14: 30 | Q14: =1-P14/100 -> 0.7
O15: 26 | P15: 25 | Q15: 0.75
O16: 27 | P16: 20 | Q16: 0.8
O17: 28 | P17: 15 | Q17: 0.85
O18: 29 | P18: 6 | Q18: 0.94
O19: All ages | P19: 0 | Q19: 1 | S19: Type selected | T19: 1
H21: FALSE
O22: NEW BUSINESS DISCOUNT (ENTRADA MANUAL) | U22: POLIZAS 2020 (ENTRADA MANUAL)
O23: Ultimate | P23: Elite | Q23: Premier | R23: Select | S23: Major Medical | U23: Ultimate | V23: Elite | W23: Premier | X23: Select | Y23: Major Medical
O24: 0 | P24: 15 | Q24: 25 | R24: 15 | S24: 15 | U24: 0 | V24: 15 | W24: 15 | X24: 15 | Y24: 15
O30: Descuento de 24 años: | P30: =IF(P2,_xlfn.SWITCH(C43,O13,Q13,O14,Q14,O15,Q15,O16,Q16,O17,Q17,O18,Q18,Q19),Q19) -> 1 | R30: IVA (12%) | S30: =12/100 -> 0.12 | T30: =S30+1 -> 1.12
O32: Descuento por variante de coaseguro | P32: =IF(P3=TRUE,0.25,1) -> 1
O35: Descuento si es nuevo negocio:
A37: Nombre del Asegurado Titular: | C37: John Doe | O37: NEW BUSINESS DISCOUNT (MULTIPLICATION FACTOR)
O38: Ultimate | P38: Elite | Q38: Premier | R38: Select | S38: Major Medical
A39: Número de adultos en la póliza: | C39: 2 | E39: Número de dependientes menores de 16 años: | H39: Número de dependientes menores de 10 años: | O39: =IF($T$19=1,(O24/100),IF($T$19=3,(U24/100),0)) -> 0 | P39: =IF($T$19=1,(P24/100),IF($T$19=3,(V24/100),0)) -> 0.15 | Q39: 0.25 | R39: 0.15 | S39: 0.15
A41: Número total de dependientes en la póliza: | C41: 2
E42: 1 | H42: 1 | O42: Descuento combinado 24 años y Nuevo Negocio
A43: Edad del Asegurado Titular: | C43: 32
L44: =IF($T$19=1,"Para nuevos negocios emitidos a partir del 1 de enero de 2024 y renovaciones de pólizas emitidas a partir del 1 de abril de 2018",IF($T$19=2,"Para renovaciones de pólizas emitidas antes del 1 de abril de 2018","Para renovaciones de pólizas emitidas en el 2020 - Solo Global PREMIER Health Plan")) -> Para nuevos negocios emitidos a partir del 1 de enero de 2024 y renovaciones de pólizas emitidas a partir del 1 de abril de 2018
A45: Edad del/la cónyuge: | C45: 46 | O45: NEW BUSINESS DISCOUNT
O46: Ultimate | P46: Elite | Q46: Premier | R46: Select | S46: Major Medical
O47: =(1-O39)*$P$30 -> 1 | P47: =(1-P39)*$P$30 -> 0.85 | Q47: =(1-Q39)*$P$30 -> 0.75 | R47: 0.85 | S47: 0.85

Sheet Global Ultimate
C1: FALSE | H1: RESUMEN DE BENEFICIOS | O1: RESUMEN DE BENEFICIOS | V1: RESUMEN DE BENEFICIOS
A5: Cotización de Seguro Médico Internacional Global Ultimate Health Plan Tarifas en US$ | Validas: 1 de enero de 2024
A13: Nombre del Asegurado Titular | B13: =+'INGRESO DE DATOS'!$C$37 -> John Doe
A15: Número de adultos en la póliza | B15: =+'INGRESO DE DATOS'!$C$41 -> 2
A17: Número de Dependientes en la póliza | B17: =+'INGRESO DE DATOS'!$C$39 -> 2 | C17: =IF('INGRESO DE DATOS'!$P$2=TRUE, "Cotización para dependiente de 24 años","") -> 
A19: Número de Dependientes menores de 16 años | B19: =+'INGRESO DE DATOS'!$E$42 -> 1
A21: Edad del Asegurado Titular | B21: =+'INGRESO DE DATOS'!$C$43 -> 32 | C21: Edad del/la conyuge | D21: =+'INGRESO DE DATOS'!$C$45 -> 46
A23: Fecha de la cotización | B23: =NOW() -> 2024-01-09T14:34:53.990
A26: DEDUCIBLES | C26: PLAN 1 | D26: PLAN 2 | E26: PLAN 3
A27: En el país de residencia | C27: $0 | D27: 1000 | E27: 2000
A28: Fuera del país de residencia | C28: $0 | D28: 1000 | E28: 2000
A30: TARIFAS ANUALES
A31: Prima para Asegurado Titular | C31: =VLOOKUP($B$21,Tablas!$A$912:$G$978,3,TRUE) -> 37632 | D31: =VLOOKUP($B$21,Tablas!$A$912:$G$978,4,TRUE) -> 24280 | E31: =VLOOKUP($B$21,Tablas!$A$912:$G$978,5,TRUE) -> 0
A32: Prima para conyuge | C32: =IF($B$17=1,0,(VLOOKUP($D$21,Tablas!$A$912:$G$978,3,TRUE))) -> 51747 | D32: =IF($B$17=1,0,(VLOOKUP($D$21,Tablas!$A$912:$G$978,4,TRUE))) -> 33386 | E32: =IF($B$17=1,0,(VLOOKUP($D$21,Tablas!$A$912:$G$978,5,TRUE))) -> 0
A33: Prima para hijo (s) | C33: =IF($B$17=1, (IF($B$15=0, 0, (IF($B$19>$B$15, (VLOOKUP($B$15,Tablas!$A$979:$G$981,3,TRUE)), (IF($B$15>4,(IF($B$19=0, (VLOOKUP(3,Tablas!$A$979:$G$981,3,TRUE)), (IF($B$19=1, (VLOOKUP(3,Tablas!$A$979:$G$981,3,TRUE)), (IF($B$19=2, (VLOOKUP(3,Tablas!$A$979:$G$981,3,TRUE)), (VLOOKUP(3,Tablas!$A$979:$G$981,3,TRUE)))))))), (IF($B$15=4,(IF(4-$B$19=0,(VLOOKUP(2,Tablas!$A$979:$G$981,3,TRUE)), (IF(4-$B$19=1,(VLOOKUP(2,Tablas!$A$979:$G$981,3,TRUE)), (IF(4-$B$19=2, (VLOOKUP(2,Tablas!$A$979:$G$981,3,TRUE)), (VLOOKUP(3,Tablas!$A$979:$G$981,3,TRUE)))))))), (IF($B$15=3,(IF(3-$B$19=0,(VLOOKUP(1,Tablas!$A$979:$G$981,3,TRUE)), (IF(3-$B$19=1,(VLOOKUP(1,Tablas!$A$979:$G$981,3,TRUE)), (IF(3-$B$19=2, (VLOOKUP(2,Tablas!$A$979:$G$981,3,TRUE)), (VLOOKUP(3,Tablas!$A$979:$G$981,3,TRUE)))))))), (IF($B$15=2,(IF(2-$B$19=0, 0, (IF(2-$B$19=1,(VLOOKUP(1,Tablas!$A$979:$G$981,3,TRUE)), (IF(2-$B$19=2, (VLOOKUP(2,Tablas!$A$979:$G$981,3,TRUE)), 0)))))), (IF($B$15=1,(IF(1-$B$19=0, 0, (IF(1-$B$19=1,(VLOOKUP(1,Tablas!$A$979:$G$981,3,TRUE)),0)))),0)))))))))))))), (IF($B$15=0, 0, (IF($B$19>$B$15, (VLOOKUP($B$15,Tablas!$A$979:$G$981,3,TRUE)), (IF($B$15=4,(IF(4-$B$19=0, 0, (IF(4-$B$19=1, (VLOOKUP(1,Tablas!$A$979:$G$981,3,TRUE)), (IF(4-$B$19=2, (VLOOKUP(2,Tablas!$A$979:$G$981,3,TRUE)), (IF(4-$B$19=3, (VLOOKUP(3,Tablas!$A$979:$G$981,3,TRUE)), (IF(4-$B$19=4, (VLOOKUP(3,Tablas!$A$979:$G$981,3,TRUE)), 0)))))))))), (IF($B$15=5,(IF(5-$B$19=0, (VLOOKUP(1,Tablas!$A$979:$G$981,3,TRUE)), (IF(5-$B$19=1, (VLOOKUP(1,Tablas!$A$979:$G$981,3,TRUE)), (IF(5-$B$19=2, (VLOOKUP(2,Tablas!$A$979:$G$981,3,TRUE)), (IF(5-$B$19=3, (VLOOKUP(3,Tablas!$A$979:$G$981,3,TRUE)), (IF(5-$B$19=4, (VLOOKUP(3,Tablas!$A$979:$G$981,3,TRUE)), (VLOOKUP(3,Tablas!$A$979:$G$981,3,TRUE)))))))))))), (IF($B$15=6,(IF(6-$B$19=0, (VLOOKUP(2,Tablas!$A$979:$G$981,3,TRUE)), (IF(6-$B$19=1, (VLOOKUP(2,Tablas!$A$979:$G$981,3,TRUE)), (IF(6-$B$19=2, (VLOOKUP(2,Tablas!$A$979:$G$981,3,TRUE)), (IF(6-$B$19=3, (VLOOKUP(3,Tablas!$A$979:$G$981,3,TRUE)), (IF(6-$B$19=4, (VLOOKUP(3,Tablas!$A$979:$G$981,3,TRUE)), (VLOOKUP(3,Tablas!$A$979:$G$981,3,TRUE)))))))))))), (IF($B$15>6,(IF(7-$B$19=0, (VLOOKUP(3,Tablas!$A$979:$G$981,3,TRUE)), (IF(7-$B$19=1, (VLOOKUP(3,Tablas!$A$979:$G$981,3,TRUE)), (IF(7-$B$19=2, (VLOOKUP(3,Tablas!$A$979:$G$981,3,TRUE)), (IF(7-$B$19=3, (VLOOKUP(3,Tablas!$A$979:$G$981,3,TRUE)), (IF(7-$B$19=4, (VLOOKUP(3,Tablas!$A$979:$G$981,3,TRUE)), (VLOOKUP(3,Tablas!$A$979:$G$981,3,TRUE)))))))))))), (IF($B$15=3,(IF(3-$B$19=0,0, (IF(3-$B$19=1,(VLOOKUP(1,Tablas!$A$979:$G$981,3,TRUE)), (IF(3-$B$19=2, (VLOOKUP(2,Tablas!$A$979:$G$981,3,TRUE)), (VLOOKUP(3,Tablas!$A$979:$G$981,3,TRUE)))))))), (IF($B$15=2,(IF(2-$B$19=0, 0, (IF(2-$B$19=1,(VLOOKUP(1,Tablas!$A$979:$G$981,3,TRUE)), (IF(2-$B$19=2, (VLOOKUP(2,Tablas!$A$979:$G$981,3,TRUE)), 0)))))), (IF($B$15=1,(IF(1-$B$19=0, 0, (IF(1-$B$19=1,(VLOOKUP(1,Tablas!$A$979:$G$981,3,TRUE)),0)))),0))))))))))))))))))) -> 13254 | D33: =IF($B$17=1, (IF($B$15=0, 0, (IF($B$19>$B$15, (VLOOKUP($B$15,Tablas!$A$979:$G$981,4,TRUE)), (IF($B$15>4,(IF($B$19=0, (VLOOKUP(3,Tablas!$A$979:$G$981,4,TRUE)), (IF($B$19=1, (VLOOKUP(3,Tablas!$A$979:$G$981,4,TRUE)), (IF($B$19=2, (VLOOKUP(3,Tablas!$A$979:$G$981,4,TRUE)), (VLOOKUP(3,Tablas!$A$979:$G$981,4,TRUE)))))))), (IF($B$15=4,(IF(4-$B$19=0,(VLOOKUP(2,Tablas!$A$979:$G$981,4,TRUE)), (IF(4-$B$19=1,(VLOOKUP(2,Tablas!$A$979:$G$981,4,TRUE)), (IF(4-$B$19=2, (VLOOKUP(2,Tablas!$A$979:$G$981,4,TRUE)), (VLOOKUP(3,Tablas!$A$979:$G$981,4,TRUE)))))))), (IF($B$15=3,(IF(3-$B$19=0,(VLOOKUP(1,Tablas!$A$979:$G$981,4,TRUE)), (IF(3-$B$19=1,(VLOOKUP(1,Tablas!$A$979:$G$981,4,TRUE)), (IF(3-$B$19=2, (VLOOKUP(2,Tablas!$A$979:$G$981,4,TRUE)), (VLOOKUP(3,Tablas!$A$979:$G$981,4,TRUE)))))))), (IF($B$15=2,(IF(2-$B$19=0, 0, (IF(2-$B$19=1,(VLOOKUP(1,Tablas!$A$979:$G$981,4,TRUE)), (IF(2-$B$19=2, (VLOOKUP(2,Tablas!$A$979:$G$981,4,TRUE)), 0)))))), (IF($B$15=1,(IF(1-$B$19=0, 0, (IF(1-$B$19=1,(VLOOKUP(1,Tablas!$A$979:$G$981,4,TRUE)),0)))),0)))))))))))))), (IF($B$15=0, 0, (IF($B$19>$B$15, (VLOOKUP($B$15,Tablas!$A$979:$G$981,4,TRUE)), (IF($B$15=4,(IF(4-$B$19=0, 0, (IF(4-$B$19=1, (VLOOKUP(1,Tablas!$A$979:$G$981,4,TRUE)), (IF(4-$B$19=2, (VLOOKUP(2,Tablas!$A$979:$G$981,4,TRUE)), (IF(4-$B$19=3, (VLOOKUP(3,Tablas!$A$979:$G$981,4,TRUE)), (IF(4-$B$19=4, (VLOOKUP(3,Tablas!$A$979:$G$981,4,TRUE)), 0)))))))))), (IF($B$15=5,(IF(5-$B$19=0, (VLOOKUP(1,Tablas!$A$979:$G$981,4,TRUE)), (IF(5-$B$19=1, (VLOOKUP(1,Tablas!$A$979:$G$981,4,TRUE)), (IF(5-$B$19=2, (VLOOKUP(2,Tablas!$A$979:$G$981,4,TRUE)), (IF(5-$B$19=3, (VLOOKUP(3,Tablas!$A$979:$G$981,4,TRUE)), (IF(5-$B$19=4, (VLOOKUP(3,Tablas!$A$979:$G$981,4,TRUE)), (VLOOKUP(3,Tablas!$A$979:$G$981,4,TRUE)))))))))))), (IF($B$15=6,(IF(6-$B$19=0, (VLOOKUP(2,Tablas!$A$979:$G$981,4,TRUE)), (IF(6-$B$19=1, (VLOOKUP(2,Tablas!$A$979:$G$981,4,TRUE)), (IF(6-$B$19=2, (VLOOKUP(2,Tablas!$A$979:$G$981,4,TRUE)), (IF(6-$B$19=3, (VLOOKUP(3,Tablas!$A$979:$G$981,4,TRUE)), (IF(6-$B$19=4, (VLOOKUP(3,Tablas!$A$979:$G$981,4,TRUE)), (VLOOKUP(3,Tablas!$A$979:$G$981,4,TRUE)))))))))))), (IF($B$15>6,(IF(7-$B$19=0, (VLOOKUP(3,Tablas!$A$979:$G$981,4,TRUE)), (IF(7-$B$19=1, (VLOOKUP(3,Tablas!$A$979:$G$981,4,TRUE)), (IF(7-$B$19=2, (VLOOKUP(3,Tablas!$A$979:$G$981,4,TRUE)), (IF(7-$B$19=3, (VLOOKUP(3,Tablas!$A$979:$G$981,4,TRUE)), (IF(7-$B$19=4, (VLOOKUP(3,Tablas!$A$979:$G$981,4,TRUE)), (VLOOKUP(3,Tablas!$A$979:$G$981,4,TRUE)))))))))))), (IF($B$15=3,(IF(3-$B$19=0,0, (IF(3-$B$19=1,(VLOOKUP(1,Tablas!$A$979:$G$981,4,TRUE)), (IF(3-$B$19=2, (VLOOKUP(2,Tablas!$A$979:$G$981,4,TRUE)), (VLOOKUP(3,Tablas!$A$979:$G$981,4,TRUE)))))))), (IF($B$15=2,(IF(2-$B$19=0, 0, (IF(2-$B$19=1,(VLOOKUP(1,Tablas!$A$979:$G$981,4,TRUE)), (IF(2-$B$19=2, (VLOOKUP(2,Tablas!$A$979:$G$981,4,TRUE)), 0)))))), (IF($B$15=1,(IF(1-$B$19=0, 0, (IF(1-$B$19=1,(VLOOKUP(1,Tablas!$A$979:$G$981,4,TRUE)),0)))),0))))))))))))))))))) -> 8552 | E33: =IF($B$17=1, (IF($B$15=0, 0, (IF($B$19>$B$15, (VLOOKUP($B$15,Tablas!$A$979:$G$981,5,TRUE)), (IF($B$15>4,(IF($B$19=0, (VLOOKUP(3,Tablas!$A$979:$G$981,5,TRUE)), (IF($B$19=1, (VLOOKUP(3,Tablas!$A$979:$G$981,5,TRUE)), (IF($B$19=2, (VLOOKUP(3,Tablas!$A$979:$G$981,5,TRUE)), (VLOOKUP(3,Tablas!$A$979:$G$981,5,TRUE)))))))), (IF($B$15=4,(IF(4-$B$19=0,(VLOOKUP(2,Tablas!$A$979:$G$981,5,TRUE)), (IF(4-$B$19=1,(VLOOKUP(2,Tablas!$A$979:$G$981,5,TRUE)), (IF(4-$B$19=2, (VLOOKUP(2,Tablas!$A$979:$G$981,5,TRUE)), (VLOOKUP(3,Tablas!$A$979:$G$981,5,TRUE)))))))), (IF($B$15=3,(IF(3-$B$19=0,(VLOOKUP(1,Tablas!$A$979:$G$981,5,TRUE)), (IF(3-$B$19=1,(VLOOKUP(1,Tablas!$A$979:$G$981,5,TRUE)), (IF(3-$B$19=2, (VLOOKUP(2,Tablas!$A$979:$G$981,5,TRUE)), (VLOOKUP(3,Tablas!$A$979:$G$981,5,TRUE)))))))), (IF($B$15=2,(IF(2-$B$19=0, 0, (IF(2-$B$19=1,(VLOOKUP(1,Tablas!$A$979:$G$981,5,TRUE)), (IF(2-$B$19=2, (VLOOKUP(2,Tablas!$A$979:$G$981,5,TRUE)), 0)))))), (IF($B$15=1,(IF(1-$B$19=0, 0, (IF(1-$B$19=1,(VLOOKUP(1,Tablas!$A$979:$G$981,5,TRUE)),0)))),0)))))))))))))), (IF($B$15=0, 0, (IF($B$19>$B$15, (VLOOKUP($B$15,Tablas!$A$979:$G$981,5,TRUE)), (IF($B$15=4,(IF(4-$B$19=0, 0, (IF(4-$B$19=1, (VLOOKUP(1,Tablas!$A$979:$G$981,5,TRUE)), (IF(4-$B$19=2, (VLOOKUP(2,Tablas!$A$979:$G$981,5,TRUE)), (IF(4-$B$19=3, (VLOOKUP(3,Tablas!$A$979:$G$981,5,TRUE)), (IF(4-$B$19=4, (VLOOKUP(3,Tablas!$A$979:$G$981,5,TRUE)), 0)))))))))), (IF($B$15=5,(IF(5-$B$19=0, (VLOOKUP(1,Tablas!$A$979:$G$981,5,TRUE)), (IF(5-$B$19=1, (VLOOKUP(1,Tablas!$A$979:$G$981,5,TRUE)), (IF(5-$B$19=2, (VLOOKUP(2,Tablas!$A$979:$G$981,5,TRUE)), (IF(5-$B$19=3, (VLOOKUP(3,Tablas!$A$979:$G$981,5,TRUE)), (IF(5-$B$19=4, (VLOOKUP(3,Tablas!$A$979:$G$981,5,TRUE)), (VLOOKUP(3,Tablas!$A$979:$G$981,5,TRUE)))))))))))), (IF($B$15=6,(IF(6-$B$19=0, (VLOOKUP(2,Tablas!$A$979:$G$981,5,TRUE)), (IF(6-$B$19=1, (VLOOKUP(2,Tablas!$A$979:$G$981,5,TRUE)), (IF(6-$B$19=2, (VLOOKUP(2,Tablas!$A$979:$G$981,5,TRUE)), (IF(6-$B$19=3, (VLOOKUP(3,Tablas!$A$979:$G$981,5,TRUE)), (IF(6-$B$19=4, (VLOOKUP(3,Tablas!$A$979:$G$981,5,TRUE)), (VLOOKUP(3,Tablas!$A$979:$G$981,5,TRUE)))))))))))), (IF($B$15>6,(IF(7-$B$19=0, (VLOOKUP(3,Tablas!$A$979:$G$981,5,TRUE)), (IF(7-$B$19=1, (VLOOKUP(3,Tablas!$A$979:$G$981,5,TRUE)), (IF(7-$B$19=2, (VLOOKUP(3,Tablas!$A$979:$G$981,5,TRUE)), (IF(7-$B$19=3, (VLOOKUP(3,Tablas!$A$979:$G$981,5,TRUE)), (IF(7-$B$19=4, (VLOOKUP(3,Tablas!$A$979:$G$981,5,TRUE)), (VLOOKUP(3,Tablas!$A$979:$G$981,5,TRUE)))))))))))), (IF($B$15=3,(IF(3-$B$19=0,0, (IF(3-$B$19=1,(VLOOKUP(1,Tablas!$A$979:$G$981,5,TRUE)), (IF(3-$B$19=2, (VLOOKUP(2,Tablas!$A$979:$G$981,5,TRUE)), (VLOOKUP(3,Tablas!$A$979:$G$981,5,TRUE)))))))), (IF($B$15=2,(IF(2-$B$19=0, 0, (IF(2-$B$19=1,(VLOOKUP(1,Tablas!$A$979:$G$981,5,TRUE)), (IF(2-$B$19=2, (VLOOKUP(2,Tablas!$A$979:$G$981,5,TRUE)), 0)))))), (IF($B$15=1,(IF(1-$B$19=0, 0, (IF(1-$B$19=1,(VLOOKUP(1,Tablas!$A$979:$G$981,5,TRUE)),0)))),0))))))))))))))))))) -> 0
A34: Total de Prima neta | C34: =SUM(C31:C33) -> 102633 | D34: =SUM(D31:D33) -> 66218 | E34: 0
A35: Tarifa administrativa anual | C35: 75 | D35: 75 | E35: 75
A36: IVA (12%) | C36: =(C34+C35)*'INGRESO DE DATOS'!$S$30 -> 12324.96 | D36: =(D34+D35)*'INGRESO DE DATOS'!$S$30 -> 7955.16
A37: ITBMS (7%)
A38: TOTAL ANUAL | C38: =SUM(C34:C37) -> 115032.96 | D38: =SUM(D34:D37) -> 74248.16 | E38: 75
A39: Ahorros en tarifas de prima para Dependientes | C39: =IF($B$17=1,IF($B$15=0,0,IF($B$19=0,0,IF($B$19=1,(VLOOKUP(1,Tablas!$A$979:$G$981,3,TRUE)),(VLOOKUP(2,Tablas!$A$979:$G$981,3,TRUE))))), IF($B$15=0,0,IF($B$19=0,0,IF($B$19=1,(VLOOKUP(1,Tablas!$A$979:$G$981,3,TRUE)),IF($B$19=2,(VLOOKUP(2,Tablas!$A$979:$G$981,3,TRUE)), (VLOOKUP(3,Tablas!$A$979:$G$981,3,TRUE))))))) -> 13254 | D39: =IF($B$17=1,IF($B$15=0,0,IF($B$19=0,0,IF($B$19=1,(VLOOKUP(1,Tablas!$A$979:$G$981,4,TRUE)),(VLOOKUP(2,Tablas!$A$979:$G$981,4,TRUE))))), IF($B$15=0,0,IF($B$19=0,0,IF($B$19=1,(VLOOKUP(1,Tablas!$A$979:$G$981,4,TRUE)),IF($B$19=2,(VLOOKUP(2,Tablas!$A$979:$G$981,4,TRUE)), (VLOOKUP(3,Tablas!$A$979:$G$981,4,TRUE))))))) -> 8552 | E39: =IF($B$17=1,IF($B$15=0,0,IF($B$19=0,0,IF($B$19=1,(VLOOKUP(1,Tablas!$A$979:$G$981,5,TRUE)),(VLOOKUP(2,Tablas!$A$979:$G$981,5,TRUE))))), IF($B$15=0,0,IF($B$19=0,0,IF($B$19=1,(VLOOKUP(1,Tablas!$A$979:$G$981,5,TRUE)),IF($B$19=2,(VLOOKUP(2,Tablas!$A$979:$G$981,5,TRUE)), (VLOOKUP(3,Tablas!$A$979:$G$981,5,TRUE))))))) -> 0
A41: TARIFAS SEMIANUALES
A42: Prima para Asegurado Titular | C42: =VLOOKUP($B$21,Tablas!$A$1439:$G$1505,3,TRUE) -> 19944.96 | D42: =VLOOKUP($B$21,Tablas!$A$1439:$G$1505,4,TRUE) -> 12868.4 | E42: =VLOOKUP($B$21,Tablas!$A$1439:$G$1505,5,TRUE) -> 0
A43: Prima para conyuge | C43: =IF($B$17=1,0,(VLOOKUP($D$21,Tablas!$A$1439:$G$1505,3,TRUE))) -> 27425.91 | D43: =IF($B$17=1,0,(VLOOKUP($D$21,Tablas!$A$1439:$G$1505,4,TRUE))) -> 17694.58 | E43: =IF($B$17=1,0,(VLOOKUP($D$21,Tablas!$A$1439:$G$1505,5,TRUE))) -> 0
A44: Prima para hijo (s) | C44: =IF($B$17=1, (IF($B$15=0, 0, (IF($B$19>$B$15, (VLOOKUP($B$15,Tablas!$A$1506:$G$1508,3,TRUE)), (IF($B$15>4,(IF($B$19=0, (VLOOKUP(3,Tablas!$A$1506:$G$1508,3,TRUE)), (IF($B$19=1, (VLOOKUP(3,Tablas!$A$1506:$G$1508,3,TRUE)), (IF($B$19=2, (VLOOKUP(3,Tablas!$A$1506:$G$1508,3,TRUE)), (VLOOKUP(3,Tablas!$A$1506:$G$1508,3,TRUE)))))))), (IF($B$15=4,(IF(4-$B$19=0,(VLOOKUP(2,Tablas!$A$1506:$G$1508,3,TRUE)), (IF(4-$B$19=1,(VLOOKUP(2,Tablas!$A$1506:$G$1508,3,TRUE)), (IF(4-$B$19=2, (VLOOKUP(2,Tablas!$A$1506:$G$1508,3,TRUE)), (VLOOKUP(3,Tablas!$A$1506:$G$1508,3,TRUE)))))))), (IF($B$15=3,(IF(3-$B$19=0,(VLOOKUP(1,Tablas!$A$1506:$G$1508,3,TRUE)), (IF(3-$B$19=1,(VLOOKUP(1,Tablas!$A$1506:$G$1508,3,TRUE)), (IF(3-$B$19=2, (VLOOKUP(2,Tablas!$A$1506:$G$1508,3,TRUE)), (VLOOKUP(3,Tablas!$A$1506:$G$1508,3,TRUE)))))))), (IF($B$15=2,(IF(2-$B$19=0, 0, (IF(2-$B$19=1,(VLOOKUP(1,Tablas!$A$1506:$G$1508,3,TRUE)), (IF(2-$B$19=2, (VLOOKUP(2,Tablas!$A$1506:$G$1508,3,TRUE)), 0)))))), (IF($B$15=1,(IF(1-$B$19=0, 0, (IF(1-$B$19=1,(VLOOKUP(1,Tablas!$A$1506:$G$1508,3,TRUE)),0)))),0)))))))))))))), (IF($B$15=0, 0, (IF($B$19>$B$15, (VLOOKUP($B$15,Tablas!$A$1506:$G$1508,3,TRUE)), (IF($B$15=4,(IF(4-$B$19=0, 0, (IF(4-$B$19=1, (VLOOKUP(1,Tablas!$A$1506:$G$1508,3,TRUE)), (IF(4-$B$19=2, (VLOOKUP(2,Tablas!$A$1506:$G$1508,3,TRUE)), (IF(4-$B$19=3, (VLOOKUP(3,Tablas!$A$1506:$G$1508,3,TRUE)), (IF(4-$B$19=4, (VLOOKUP(3,Tablas!$A$1506:$G$1508,3,TRUE)), 0)))))))))), (IF($B$15=5,(IF(5-$B$19=0, (VLOOKUP(1,Tablas!$A$1506:$G$1508,3,TRUE)), (IF(5-$B$19=1, (VLOOKUP(1,Tablas!$A$1506:$G$1508,3,TRUE)), (IF(5-$B$19=2, (VLOOKUP(2,Tablas!$A$1506:$G$1508,3,TRUE)), (IF(5-$B$19=3, (VLOOKUP(3,Tablas!$A$1506:$G$1508,3,TRUE)), (IF(5-$B$19=4, (VLOOKUP(3,Tablas!$A$1506:$G$1508,3,TRUE)), (VLOOKUP(3,Tablas!$A$1506:$G$1508,3,TRUE)))))))))))), (IF($B$15=6,(IF(6-$B$19=0, (VLOOKUP(2,Tablas!$A$1506:$G$1508,3,TRUE)), (IF(6-$B$19=1, (VLOOKUP(2,Tablas!$A$1506:$G$1508,3,TRUE)), (IF(6-$B$19=2, (VLOOKUP(2,Tablas!$A$1506:$G$1508,3,TRUE)), (IF(6-$B$19=3, (VLOOKUP(3,Tablas!$A$1506:$G$1508,3,TRUE)), (IF(6-$B$19=4, (VLOOKUP(3,Tablas!$A$1506:$G$1508,3,TRUE)), (VLOOKUP(3,Tablas!$A$1506:$G$1508,3,TRUE)))))))))))), (IF($B$15>6,(IF(7-$B$19=0, (VLOOKUP(3,Tablas!$A$1506:$G$1508,3,TRUE)), (IF(7-$B$19=1, (VLOOKUP(3,Tablas!$A$1506:$G$1508,3,TRUE)), (IF(7-$B$19=2, (VLOOKUP(3,Tablas!$A$1506:$G$1508,3,TRUE)), (IF(7-$B$19=3, (VLOOKUP(3,Tablas!$A$1506:$G$1508,3,TRUE)), (IF(7-$B$19=4, (VLOOKUP(3,Tablas!$A$1506:$G$1508,3,TRUE)), (VLOOKUP(3,Tablas!$A$1506:$G$1508,3,TRUE)))))))))))), (IF($B$15=3,(IF(3-$B$19=0,0, (IF(3-$B$19=1,(VLOOKUP(1,Tablas!$A$1506:$G$1508,3,TRUE)), (IF(3-$B$19=2, (VLOOKUP(2,Tablas!$A$1506:$G$1508,3,TRUE)), (VLOOKUP(3,Tablas!$A$1506:$G$1508,3,TRUE)))))))), (IF($B$15=2,(IF(2-$B$19=0, 0, (IF(2-$B$19=1,(VLOOKUP(1,Tablas!$A$1506:$G$1508,3,TRUE)), (IF(2-$B$19=2, (VLOOKUP(2,Tablas!$A$1506:$G$1508,3,TRUE)), 0)))))), (IF($B$15=1,(IF(1-$B$19=0, 0, (IF(1-$B$19=1,(VLOOKUP(1,Tablas!$A$1506:$G$1508,3,TRUE)),0)))),0))))))))))))))))))) -> 7024.62 | D44: =IF($B$17=1, (IF($B$15=0, 0, (IF($B$19>$B$15, (VLOOKUP($B$15,Tablas!$A$1506:$G$1508,4,TRUE)), (IF($B$15>4,(IF($B$19=0, (VLOOKUP(3,Tablas!$A$1506:$G$1508,4,TRUE)), (IF($B$19=1, (VLOOKUP(3,Tablas!$A$1506:$G$1508,4,TRUE)), (IF($B$19=2, (VLOOKUP(3,Tablas!$A$1506:$G$1508,4,TRUE)), (VLOOKUP(3,Tablas!$A$1506:$G$1508,4,TRUE)))))))), (IF($B$15=4,(IF(4-$B$19=0,(VLOOKUP(2,Tablas!$A$1506:$G$1508,4,TRUE)), (IF(4-$B$19=1,(VLOOKUP(2,Tablas!$A$1506:$G$1508,4,TRUE)), (IF(4-$B$19=2, (VLOOKUP(2,Tablas!$A$1506:$G$1508,4,TRUE)), (VLOOKUP(3,Tablas!$A$1506:$G$1508,4,TRUE)))))))), (IF($B$15=3,(IF(3-$B$19=0,(VLOOKUP(1,Tablas!$A$1506:$G$1508,4,TRUE)), (IF(3-$B$19=1,(VLOOKUP(1,Tablas!$A$1506:$G$1508,4,TRUE)), (IF(3-$B$19=2, (VLOOKUP(2,Tablas!$A$1506:$G$1508,4,TRUE)), (VLOOKUP(3,Tablas!$A$1506:$G$1508,4,TRUE)))))))), (IF($B$15=2,(IF(2-$B$19=0, 0, (IF(2-$B$19=1,(VLOOKUP(1,Tablas!$A$1506:$G$1508,4,TRUE)), (IF(2-$B$19=2, (VLOOKUP(2,Tablas!$A$1506:$G$1508,4,TRUE)), 0)))))), (IF($B$15=1,(IF(1-$B$19=0, 0, (IF(1-$B$19=1,(VLOOKUP(1,Tablas!$A$1506:$G$1508,4,TRUE)),0)))),0)))))))))))))), (IF($B$15=0, 0, (IF($B$19>$B$15, (VLOOKUP($B$15,Tablas!$A$1506:$G$1508,4,TRUE)), (IF($B$15=4,(IF(4-$B$19=0, 0, (IF(4-$B$19=1, (VLOOKUP(1,Tablas!$A$1506:$G$1508,4,TRUE)), (IF(4-$B$19=2, (VLOOKUP(2,Tablas!$A$1506:$G$1508,4,TRUE)), (IF(4-$B$19=3, (VLOOKUP(3,Tablas!$A$1506:$G$1508,4,TRUE)), (IF(4-$B$19=4, (VLOOKUP(3,Tablas!$A$1506:$G$1508,4,TRUE)), 0)))))))))), (IF($B$15=5,(IF(5-$B$19=0, (VLOOKUP(1,Tablas!$A$1506:$G$1508,4,TRUE)), (IF(5-$B$19=1, (VLOOKUP(1,Tablas!$A$1506:$G$1508,4,TRUE)), (IF(5-$B$19=2, (VLOOKUP(2,Tablas!$A$1506:$G$1508,4,TRUE)), (IF(5-$B$19=3, (VLOOKUP(3,Tablas!$A$1506:$G$1508,4,TRUE)), (IF(5-$B$19=4, (VLOOKUP(3,Tablas!$A$1506:$G$1508,4,TRUE)), (VLOOKUP(3,Tablas!$A$1506:$G$1508,4,TRUE)))))))))))), (IF($B$15=6,(IF(6-$B$19=0, (VLOOKUP(2,Tablas!$A$1506:$G$1508,4,TRUE)), (IF(6-$B$19=1, (VLOOKUP(2,Tablas!$A$1506:$G$1508,4,TRUE)), (IF(6-$B$19=2, (VLOOKUP(2,Tablas!$A$1506:$G$1508,4,TRUE)), (IF(6-$B$19=3, (VLOOKUP(3,Tablas!$A$1506:$G$1508,4,TRUE)), (IF(6-$B$19=4, (VLOOKUP(3,Tablas!$A$1506:$G$1508,4,TRUE)), (VLOOKUP(3,Tablas!$A$1506:$G$1508,4,TRUE)))))))))))), (IF($B$15>6,(IF(7-$B$19=0, (VLOOKUP(3,Tablas!$A$1506:$G$1508,4,TRUE)), (IF(7-$B$19=1, (VLOOKUP(3,Tablas!$A$1506:$G$1508,4,TRUE)), (IF(7-$B$19=2, (VLOOKUP(3,Tablas!$A$1506:$G$1508,4,TRUE)), (IF(7-$B$19=3, (VLOOKUP(3,Tablas!$A$1506:$G$1508,4,TRUE)), (IF(7-$B$19=4, (VLOOKUP(3,Tablas!$A$1506:$G$1508,4,TRUE)), (VLOOKUP(3,Tablas!$A$1506:$G$1508,4,TRUE)))))))))))), (IF($B$15=3,(IF(3-$B$19=0,0, (IF(3-$B$19=1,(VLOOKUP(1,Tablas!$A$1506:$G$1508,4,TRUE)), (IF(3-$B$19=2, (VLOOKUP(2,Tablas!$A$1506:$G$1508,4,TRUE)), (VLOOKUP(3,Tablas!$A$1506:$G$1508,4,TRUE)))))))), (IF($B$15=2,(IF(2-$B$19=0, 0, (IF(2-$B$19=1,(VLOOKUP(1,Tablas!$A$1506:$G$1508,4,TRUE)), (IF(2-$B$19=2, (VLOOKUP(2,Tablas!$A$1506:$G$1508,4,TRUE)), 0)))))), (IF($B$15=1,(IF(1-$B$19=0, 0, (IF(1-$B$19=1,(VLOOKUP(1,Tablas!$A$1506:$G$1508,4,TRUE)),0)))),0))))))))))))))))))) -> 4532.56 | E44: =IF($B$17=1, (IF($B$15=0, 0, (IF($B$19>$B$15, (VLOOKUP($B$15,Tablas!$A$1506:$G$1508,5,TRUE)), (IF($B$15>4,(IF($B$19=0, (VLOOKUP(3,Tablas!$A$1506:$G$1508,5,TRUE)), (IF($B$19=1, (VLOOKUP(3,Tablas!$A$1506:$G$1508,5,TRUE)), (IF($B$19=2, (VLOOKUP(3,Tablas!$A$1506:$G$1508,5,TRUE)), (VLOOKUP(3,Tablas!$A$1506:$G$1508,5,TRUE)))))))), (IF($B$15=4,(IF(4-$B$19=0,(VLOOKUP(2,Tablas!$A$1506:$G$1508,5,TRUE)), (IF(4-$B$19=1,(VLOOKUP(2,Tablas!$A$1506:$G$1508,5,TRUE)), (IF(4-$B$19=2, (VLOOKUP(2,Tablas!$A$1506:$G$1508,5,TRUE)), (VLOOKUP(3,Tablas!$A$1506:$G$1508,5,TRUE)))))))), (IF($B$15=3,(IF(3-$B$19=0,(VLOOKUP(1,Tablas!$A$1506:$G$1508,5,TRUE)), (IF(3-$B$19=1,(VLOOKUP(1,Tablas!$A$1506:$G$1508,5,TRUE)), (IF(3-$B$19=2, (VLOOKUP(2,Tablas!$A$1506:$G$1508,5,TRUE)), (VLOOKUP(3,Tablas!$A$1506:$G$1508,5,TRUE)))))))), (IF($B$15=2,(IF(2-$B$19=0, 0, (IF(2-$B$19=1,(VLOOKUP(1,Tablas!$A$1506:$G$1508,5,TRUE)), (IF(2-$B$19=2, (VLOOKUP(2,Tablas!$A$1506:$G$1508,5,TRUE)), 0)))))), (IF($B$15=1,(IF(1-$B$19=0, 0, (IF(1-$B$19=1,(VLOOKUP(1,Tablas!$A$1506:$G$1508,5,TRUE)),0)))),0)))))))))))))), (IF($B$15=0, 0, (IF($B$19>$B$15, (VLOOKUP($B$15,Tablas!$A$1506:$G$1508,5,TRUE)), (IF($B$15=4,(IF(4-$B$19=0, 0, (IF(4-$B$19=1, (VLOOKUP(1,Tablas!$A$1506:$G$1508,5,TRUE)), (IF(4-$B$19=2, (VLOOKUP(2,Tablas!$A$1506:$G$1508,5,TRUE)), (IF(4-$B$19=3, (VLOOKUP(3,Tablas!$A$1506:$G$1508,5,TRUE)), (IF(4-$B$19=4, (VLOOKUP(3,Tablas!$A$1506:$G$1508,5,TRUE)), 0)))))))))), (IF($B$15=5,(IF(5-$B$19=0, (VLOOKUP(1,Tablas!$A$1506:$G$1508,5,TRUE)), (IF(5-$B$19=1, (VLOOKUP(1,Tablas!$A$1506:$G$1508,5,TRUE)), (IF(5-$B$19=2, (VLOOKUP(2,Tablas!$A$1506:$G$1508,5,TRUE)), (IF(5-$B$19=3, (VLOOKUP(3,Tablas!$A$1506:$G$1508,5,TRUE)), (IF(5-$B$19=4, (VLOOKUP(3,Tablas!$A$1506:$G$1508,5,TRUE)), (VLOOKUP(3,Tablas!$A$1506:$G$1508,5,TRUE)))))))))))), (IF($B$15=6,(IF(6-$B$19=0, (VLOOKUP(2,Tablas!$A$1506:$G$1508,5,TRUE)), (IF(6-$B$19=1, (VLOOKUP(2,Tablas!$A$1506:$G$1508,5,TRUE)), (IF(6-$B$19=2, (VLOOKUP(2,Tablas!$A$1506:$G$1508,5,TRUE)), (IF(6-$B$19=3, (VLOOKUP(3,Tablas!$A$1506:$G$1508,5,TRUE)), (IF(6-$B$19=4, (VLOOKUP(3,Tablas!$A$1506:$G$1508,5,TRUE)), (VLOOKUP(3,Tablas!$A$1506:$G$1508,5,TRUE)))))))))))), (IF($B$15>6,(IF(7-$B$19=0, (VLOOKUP(3,Tablas!$A$1506:$G$1508,5,TRUE)), (IF(7-$B$19=1, (VLOOKUP(3,Tablas!$A$1506:$G$1508,5,TRUE)), (IF(7-$B$19=2, (VLOOKUP(3,Tablas!$A$1506:$G$1508,5,TRUE)), (IF(7-$B$19=3, (VLOOKUP(3,Tablas!$A$1506:$G$1508,5,TRUE)), (IF(7-$B$19=4, (VLOOKUP(3,Tablas!$A$1506:$G$1508,5,TRUE)), (VLOOKUP(3,Tablas!$A$1506:$G$1508,5,TRUE)))))))))))), (IF($B$15=3,(IF(3-$B$19=0,0, (IF(3-$B$19=1,(VLOOKUP(1,Tablas!$A$1506:$G$1508,5,TRUE)), (IF(3-$B$19=2, (VLOOKUP(2,Tablas!$A$1506:$G$1508,5,TRUE)), (VLOOKUP(3,Tablas!$A$1506:$G$1508,5,TRUE)))))))), (IF($B$15=2,(IF(2-$B$19=0, 0, (IF(2-$B$19=1,(VLOOKUP(1,Tablas!$A$1506:$G$1508,5,TRUE)), (IF(2-$B$19=2, (VLOOKUP(2,Tablas!$A$1506:$G$1508,5,TRUE)), 0)))))), (IF($B$15=1,(IF(1-$B$19=0, 0, (IF(1-$B$19=1,(VLOOKUP(1,Tablas!$A$1506:$G$1508,5,TRUE)),0)))),0))))))))))))))))))) -> 0
A45: Total de Prima neta | C45: =SUM(C42:C44) -> 54395.49 | D45: =SUM(D42:D44) -> 35095.54 | E45: 0
A46: Tarifa administrativa anual | C46: 75 | D46: 75 | E46: 75
A47: IVA (12%) | C47: =(C45+C46)*'INGRESO DE DATOS'!$S$30 -> 6536.4588 | D47: =(D45+D46)*'INGRESO DE DATOS'!$S$30 -> 4220.4648 | E47: =(E31+E32+E33)*5%/2 -> 0
A48: ITBMS (7%) | E48: =+E46*7%+ ((E31+E32+E33)*0.06*0.07)/2 -> 5.25
A49: TOTAL de primera cuota | C49: =SUM(C45:C48) -> 61006.9488 | D49: =SUM(D45:D48) -> 39391.0048 | E49: 80.25
A50: Costo de segunda cuota | C50: =C49-C46*'INGRESO DE DATOS'!$T$30 -> 60922.9488 | D50: =D49-D46*'INGRESO DE DATOS'!$T$30 -> 39307.0048 | E50: =(E45 + E47)+((E31+E32+E33)*0.06*0.07)/2 -> 0
A51: TOTAL ANUAL | C51: =C49+C50 -> 121929.8976 | D51: =D49+D50 -> 78698.0096 | E51: 80.25
A52: Ahorros en tarifas de prima para Dependientes | C52: =IF($B$17=1,IF($B$15=0,0,IF($B$19=0,0,IF($B$19=1,(VLOOKUP(1,Tablas!$A$1506:$G$1508,3,TRUE)),(VLOOKUP(2,Tablas!$A$1506:$G$1508,3,TRUE))))), IF($B$15=0,0,IF($B$19=0,0,IF($B$19=1,(VLOOKUP(1,Tablas!$A$1506:$G$1508,3,TRUE)),IF($B$19=2,(VLOOKUP(2,Tablas!$A$1506:$G$1508,3,TRUE)), (VLOOKUP(3,Tablas!$A$1506:$G$1508,3,TRUE))))))) -> 7024.62 | D52: =IF($B$17=1,IF($B$15=0,0,IF($B$19=0,0,IF($B$19=1,(VLOOKUP(1,Tablas!$A$1506:$G$1508,4,TRUE)),(VLOOKUP(2,Tablas!$A$1506:$G$1508,4,TRUE))))), IF($B$15=0,0,IF($B$19=0,0,IF($B$19=1,(VLOOKUP(1,Tablas!$A$1506:$G$1508,4,TRUE)),IF($B$19=2,(VLOOKUP(2,Tablas!$A$1506:$G$1508,4,TRUE)), (VLOOKUP(3,Tablas!$A$1506:$G$1508,4,TRUE))))))) -> 4532.56 | E52: =IF($B$17=1,IF($B$15=0,0,IF($B$19=0,0,IF($B$19=1,(VLOOKUP(1,Tablas!$A$1506:$G$1508,5,TRUE)),(VLOOKUP(2,Tablas!$A$1506:$G$1508,5,TRUE))))), IF($B$15=0,0,IF($B$19=0,0,IF($B$19=1,(VLOOKUP(1,Tablas!$A$1506:$G$1508,5,TRUE)),IF($B$19=2,(VLOOKUP(2,Tablas!$A$1506:$G$1508,5,TRUE)), (VLOOKUP(3,Tablas!$A$1506:$G$1508,5,TRUE))))))) -> 0
A54: TARIFAS TRIMESTRALES
A55: Prima para Asegurado Titular | C55: =VLOOKUP($B$21,Tablas!$A$1061:$G$1127,3,TRUE) -> 10348.8 | D55: =VLOOKUP($B$21,Tablas!$A$1061:$G$1127,4,TRUE) -> 6677 | E55: =VLOOKUP($B$21,Tablas!$A$1061:$G$1127,5,TRUE) -> 0
A56: Prima para conyuge | C56: =IF($B$17=1,0,(VLOOKUP($D$21,Tablas!$A$1061:$G$1127,3,TRUE))) -> 14230.425 | D56: =IF($B$17=1,0,(VLOOKUP($D$21,Tablas!$A$1061:$G$1127,4,TRUE))) -> 9181.15 | E56: =IF($B$17=1,0,(VLOOKUP($D$21,Tablas!$A$1061:$G$1127,5,TRUE))) -> 0
A57: Prima para hijo (s) | C57: =IF($B$17=1, (IF($B$15=0, 0, (IF($B$19>$B$15, (VLOOKUP($B$15,Tablas!$A$1128:$G$1130,3,TRUE)), (IF($B$15>4,(IF($B$19=0, (VLOOKUP(3,Tablas!$A$1128:$G$1130,3,TRUE)), (IF($B$19=1, (VLOOKUP(3,Tablas!$A$1128:$G$1130,3,TRUE)), (IF($B$19=2, (VLOOKUP(3,Tablas!$A$1128:$G$1130,3,TRUE)), (VLOOKUP(3,Tablas!$A$1128:$G$1130,3,TRUE)))))))), (IF($B$15=4,(IF(4-$B$19=0,(VLOOKUP(2,Tablas!$A$1128:$G$1130,3,TRUE)), (IF(4-$B$19=1,(VLOOKUP(2,Tablas!$A$1128:$G$1130,3,TRUE)), (IF(4-$B$19=2, (VLOOKUP(2,Tablas!$A$1128:$G$1130,3,TRUE)), (VLOOKUP(3,Tablas!$A$1128:$G$1130,3,TRUE)))))))), (IF($B$15=3,(IF(3-$B$19=0,(VLOOKUP(1,Tablas!$A$1128:$G$1130,3,TRUE)), (IF(3-$B$19=1,(VLOOKUP(1,Tablas!$A$1128:$G$1130,3,TRUE)), (IF(3-$B$19=2, (VLOOKUP(2,Tablas!$A$1128:$G$1130,3,TRUE)), (VLOOKUP(3,Tablas!$A$1128:$G$1130,3,TRUE)))))))), (IF($B$15=2,(IF(2-$B$19=0, 0, (IF(2-$B$19=1,(VLOOKUP(1,Tablas!$A$1128:$G$1130,3,TRUE)), (IF(2-$B$19=2, (VLOOKUP(2,Tablas!$A$1128:$G$1130,3,TRUE)), 0)))))), (IF($B$15=1,(IF(1-$B$19=0, 0, (IF(1-$B$19=1,(VLOOKUP(1,Tablas!$A$1128:$G$1130,3,TRUE)),0)))),0)))))))))))))), (IF($B$15=0, 0, (IF($B$19>$B$15, (VLOOKUP($B$15,Tablas!$A$1128:$G$1130,3,TRUE)), (IF($B$15=4,(IF(4-$B$19=0, 0, (IF(4-$B$19=1, (VLOOKUP(1,Tablas!$A$1128:$G$1130,3,TRUE)), (IF(4-$B$19=2, (VLOOKUP(2,Tablas!$A$1128:$G$1130,3,TRUE)), (IF(4-$B$19=3, (VLOOKUP(3,Tablas!$A$1128:$G$1130,3,TRUE)), (IF(4-$B$19=4, (VLOOKUP(3,Tablas!$A$1128:$G$1130,3,TRUE)), 0)))))))))), (IF($B$15=5,(IF(5-$B$19=0, (VLOOKUP(1,Tablas!$A$1128:$G$1130,3,TRUE)), (IF(5-$B$19=1, (VLOOKUP(1,Tablas!$A$1128:$G$1130,3,TRUE)), (IF(5-$B$19=2, (VLOOKUP(2,Tablas!$A$1128:$G$1130,3,TRUE)), (IF(5-$B$19=3, (VLOOKUP(3,Tablas!$A$1128:$G$1130,3,TRUE)), (IF(5-$B$19=4, (VLOOKUP(3,Tablas!$A$1128:$G$1130,3,TRUE)), (VLOOKUP(3,Tablas!$A$1128:$G$1130,3,TRUE)))))))))))), (IF($B$15=6,(IF(6-$B$19=0, (VLOOKUP(2,Tablas!$A$1128:$G$1130,3,TRUE)), (IF(6-$B$19=1, (VLOOKUP(2,Tablas!$A$1128:$G$1130,3,TRUE)), (IF(6-$B$19=2, (VLOOKUP(2,Tablas!$A$1128:$G$1130,3,TRUE)), (IF(6-$B$19=3, (VLOOKUP(3,Tablas!$A$1128:$G$1130,3,TRUE)), (IF(6-$B$19=4, (VLOOKUP(3,Tablas!$A$1128:$G$1130,3,TRUE)), (VLOOKUP(3,Tablas!$A$1128:$G$1130,3,TRUE)))))))))))), (IF($B$15>6,(IF(7-$B$19=0, (VLOOKUP(3,Tablas!$A$1128:$G$1130,3,TRUE)), (IF(7-$B$19=1, (VLOOKUP(3,Tablas!$A$1128:$G$1130,3,TRUE)), (IF(7-$B$19=2, (VLOOKUP(3,Tablas!$A$1128:$G$1130,3,TRUE)), (IF(7-$B$19=3, (VLOOKUP(3,Tablas!$A$1128:$G$1130,3,TRUE)), (IF(7-$B$19=4, (VLOOKUP(3,Tablas!$A$1128:$G$1130,3,TRUE)), (VLOOKUP(3,Tablas!$A$1128:$G$1130,3,TRUE)))))))))))), (IF($B$15=3,(IF(3-$B$19=0,0, (IF(3-$B$19=1,(VLOOKUP(1,Tablas!$A$1128:$G$1130,3,TRUE)), (IF(3-$B$19=2, (VLOOKUP(2,Tablas!$A$1128:$G$1130,3,TRUE)), (VLOOKUP(3,Tablas!$A$1128:$G$1130,3,TRUE)))))))), (IF($B$15=2,(IF(2-$B$19=0, 0, (IF(2-$B$19=1,(VLOOKUP(1,Tablas!$A$1128:$G$1130,3,TRUE)), (IF(2-$B$19=2, (VLOOKUP(2,Tablas!$A$1128:$G$1130,3,TRUE)), 0)))))), (IF($B$15=1,(IF(1-$B$19=0, 0, (IF(1-$B$19=1,(VLOOKUP(1,Tablas!$A$1128:$G$1130,3,TRUE)),0)))),0))))))))))))))))))) -> 3644.85 | D57: =IF($B$17=1, (IF($B$15=0, 0, (IF($B$19>$B$15, (VLOOKUP($B$15,Tablas!$A$1128:$G$1130,4,TRUE)), (IF($B$15>4,(IF($B$19=0, (VLOOKUP(3,Tablas!$A$1128:$G$1130,4,TRUE)), (IF($B$19=1, (VLOOKUP(3,Tablas!$A$1128:$G$1130,4,TRUE)), (IF($B$19=2, (VLOOKUP(3,Tablas!$A$1128:$G$1130,4,TRUE)), (VLOOKUP(3,Tablas!$A$1128:$G$1130,4,TRUE)))))))), (IF($B$15=4,(IF(4-$B$19=0,(VLOOKUP(2,Tablas!$A$1128:$G$1130,4,TRUE)), (IF(4-$B$19=1,(VLOOKUP(2,Tablas!$A$1128:$G$1130,4,TRUE)), (IF(4-$B$19=2, (VLOOKUP(2,Tablas!$A$1128:$G$1130,4,TRUE)), (VLOOKUP(3,Tablas!$A$1128:$G$1130,4,TRUE)))))))), (IF($B$15=3,(IF(3-$B$19=0,(VLOOKUP(1,Tablas!$A$1128:$G$1130,4,TRUE)), (IF(3-$B$19=1,(VLOOKUP(1,Tablas!$A$1128:$G$1130,4,TRUE)), (IF(3-$B$19=2, (VLOOKUP(2,Tablas!$A$1128:$G$1130,4,TRUE)), (VLOOKUP(3,Tablas!$A$1128:$G$1130,4,TRUE)))))))), (IF($B$15=2,(IF(2-$B$19=0, 0, (IF(2-$B$19=1,(VLOOKUP(1,Tablas!$A$1128:$G$1130,4,TRUE)), (IF(2-$B$19=2, (VLOOKUP(2,Tablas!$A$1128:$G$1130,4,TRUE)), 0)))))), (IF($B$15=1,(IF(1-$B$19=0, 0, (IF(1-$B$19=1,(VLOOKUP(1,Tablas!$A$1128:$G$1130,4,TRUE)),0)))),0)))))))))))))), (IF($B$15=0, 0, (IF($B$19>$B$15, (VLOOKUP($B$15,Tablas!$A$1128:$G$1130,4,TRUE)), (IF($B$15=4,(IF(4-$B$19=0, 0, (IF(4-$B$19=1, (VLOOKUP(1,Tablas!$A$1128:$G$1130,4,TRUE)), (IF(4-$B$19=2, (VLOOKUP(2,Tablas!$A$1128:$G$1130,4,TRUE)), (IF(4-$B$19=3, (VLOOKUP(3,Tablas!$A$1128:$G$1130,4,TRUE)), (IF(4-$B$19=4, (VLOOKUP(3,Tablas!$A$1128:$G$1130,4,TRUE)), 0)))))))))), (IF($B$15=5,(IF(5-$B$19=0, (VLOOKUP(1,Tablas!$A$1128:$G$1130,4,TRUE)), (IF(5-$B$19=1, (VLOOKUP(1,Tablas!$A$1128:$G$1130,4,TRUE)), (IF(5-$B$19=2, (VLOOKUP(2,Tablas!$A$1128:$G$1130,4,TRUE)), (IF(5-$B$19=3, (VLOOKUP(3,Tablas!$A$1128:$G$1130,4,TRUE)), (IF(5-$B$19=4, (VLOOKUP(3,Tablas!$A$1128:$G$1130,4,TRUE)), (VLOOKUP(3,Tablas!$A$1128:$G$1130,4,TRUE)))))))))))), (IF($B$15=6,(IF(6-$B$19=0, (VLOOKUP(2,Tablas!$A$1128:$G$1130,4,TRUE)), (IF(6-$B$19=1, (VLOOKUP(2,Tablas!$A$1128:$G$1130,4,TRUE)), (IF(6-$B$19=2, (VLOOKUP(2,Tablas!$A$1128:$G$1130,4,TRUE)), (IF(6-$B$19=3, (VLOOKUP(3,Tablas!$A$1128:$G$1130,4,TRUE)), (IF(6-$B$19=4, (VLOOKUP(3,Tablas!$A$1128:$G$1130,4,TRUE)), (VLOOKUP(3,Tablas!$A$1128:$G$1130,4,TRUE)))))))))))), (IF($B$15>6,(IF(7-$B$19=0, (VLOOKUP(3,Tablas!$A$1128:$G$1130,4,TRUE)), (IF(7-$B$19=1, (VLOOKUP(3,Tablas!$A$1128:$G$1130,4,TRUE)), (IF(7-$B$19=2, (VLOOKUP(3,Tablas!$A$1128:$G$1130,4,TRUE)), (IF(7-$B$19=3, (VLOOKUP(3,Tablas!$A$1128:$G$1130,4,TRUE)), (IF(7-$B$19=4, (VLOOKUP(3,Tablas!$A$1128:$G$1130,4,TRUE)), (VLOOKUP(3,Tablas!$A$1128:$G$1130,4,TRUE)))))))))))), (IF($B$15=3,(IF(3-$B$19=0,0, (IF(3-$B$19=1,(VLOOKUP(1,Tablas!$A$1128:$G$1130,4,TRUE)), (IF(3-$B$19=2, (VLOOKUP(2,Tablas!$A$1128:$G$1130,4,TRUE)), (VLOOKUP(3,Tablas!$A$1128:$G$1130,4,TRUE)))))))), (IF($B$15=2,(IF(2-$B$19=0, 0, (IF(2-$B$19=1,(VLOOKUP(1,Tablas!$A$1128:$G$1130,4,TRUE)), (IF(2-$B$19=2, (VLOOKUP(2,Tablas!$A$1128:$G$1130,4,TRUE)), 0)))))), (IF($B$15=1,(IF(1-$B$19=0, 0, (IF(1-$B$19=1,(VLOOKUP(1,Tablas!$A$1128:$G$1130,4,TRUE)),0)))),0))))))))))))))))))) -> 2351.8 | E57: =IF($B$17=1, (IF($B$15=0, 0, (IF($B$19>$B$15, (VLOOKUP($B$15,Tablas!$A$1128:$G$1130,5,TRUE)), (IF($B$15>4,(IF($B$19=0, (VLOOKUP(3,Tablas!$A$1128:$G$1130,5,TRUE)), (IF($B$19=1, (VLOOKUP(3,Tablas!$A$1128:$G$1130,5,TRUE)), (IF($B$19=2, (VLOOKUP(3,Tablas!$A$1128:$G$1130,5,TRUE)), (VLOOKUP(3,Tablas!$A$1128:$G$1130,5,TRUE)))))))), (IF($B$15=4,(IF(4-$B$19=0,(VLOOKUP(2,Tablas!$A$1128:$G$1130,5,TRUE)), (IF(4-$B$19=1,(VLOOKUP(2,Tablas!$A$1128:$G$1130,5,TRUE)), (IF(4-$B$19=2, (VLOOKUP(2,Tablas!$A$1128:$G$1130,5,TRUE)), (VLOOKUP(3,Tablas!$A$1128:$G$1130,5,TRUE)))))))), (IF($B$15=3,(IF(3-$B$19=0,(VLOOKUP(1,Tablas!$A$1128:$G$1130,5,TRUE)), (IF(3-$B$19=1,(VLOOKUP(1,Tablas!$A$1128:$G$1130,5,TRUE)), (IF(3-$B$19=2, (VLOOKUP(2,Tablas!$A$1128:$G$1130,5,TRUE)), (VLOOKUP(3,Tablas!$A$1128:$G$1130,5,TRUE)))))))), (IF($B$15=2,(IF(2-$B$19=0, 0, (IF(2-$B$19=1,(VLOOKUP(1,Tablas!$A$1128:$G$1130,5,TRUE)), (IF(2-$B$19=2, (VLOOKUP(2,Tablas!$A$1128:$G$1130,5,TRUE)), 0)))))), (IF($B$15=1,(IF(1-$B$19=0, 0, (IF(1-$B$19=1,(VLOOKUP(1,Tablas!$A$1128:$G$1130,5,TRUE)),0)))),0)))))))))))))), (IF($B$15=0, 0, (IF($B$19>$B$15, (VLOOKUP($B$15,Tablas!$A$1128:$G$1130,5,TRUE)), (IF($B$15=4,(IF(4-$B$19=0, 0, (IF(4-$B$19=1, (VLOOKUP(1,Tablas!$A$1128:$G$1130,5,TRUE)), (IF(4-$B$19=2, (VLOOKUP(2,Tablas!$A$1128:$G$1130,5,TRUE)), (IF(4-$B$19=3, (VLOOKUP(3,Tablas!$A$1128:$G$1130,5,TRUE)), (IF(4-$B$19=4, (VLOOKUP(3,Tablas!$A$1128:$G$1130,5,TRUE)), 0)))))))))), (IF($B$15=5,(IF(5-$B$19=0, (VLOOKUP(1,Tablas!$A$1128:$G$1130,5,TRUE)), (IF(5-$B$19=1, (VLOOKUP(1,Tablas!$A$1128:$G$1130,5,TRUE)), (IF(5-$B$19=2, (VLOOKUP(2,Tablas!$A$1128:$G$1130,5,TRUE)), (IF(5-$B$19=3, (VLOOKUP(3,Tablas!$A$1128:$G$1130,5,TRUE)), (IF(5-$B$19=4, (VLOOKUP(3,Tablas!$A$1128:$G$1130,5,TRUE)), (VLOOKUP(3,Tablas!$A$1128:$G$1130,5,TRUE)))))))))))), (IF($B$15=6,(IF(6-$B$19=0, (VLOOKUP(2,Tablas!$A$1128:$G$1130,5,TRUE)), (IF(6-$B$19=1, (VLOOKUP(2,Tablas!$A$1128:$G$1130,5,TRUE)), (IF(6-$B$19=2, (VLOOKUP(2,Tablas!$A$1128:$G$1130,5,TRUE)), (IF(6-$B$19=3, (VLOOKUP(3,Tablas!$A$1128:$G$1130,5,TRUE)), (IF(6-$B$19=4, (VLOOKUP(3,Tablas!$A$1128:$G$1130,5,TRUE)), (VLOOKUP(3,Tablas!$A$1128:$G$1130,5,TRUE)))))))))))), (IF($B$15>6,(IF(7-$B$19=0, (VLOOKUP(3,Tablas!$A$1128:$G$1130,5,TRUE)), (IF(7-$B$19=1, (VLOOKUP(3,Tablas!$A$1128:$G$1130,5,TRUE)), (IF(7-$B$19=2, (VLOOKUP(3,Tablas!$A$1128:$G$1130,5,TRUE)), (IF(7-$B$19=3, (VLOOKUP(3,Tablas!$A$1128:$G$1130,5,TRUE)), (IF(7-$B$19=4, (VLOOKUP(3,Tablas!$A$1128:$G$1130,5,TRUE)), (VLOOKUP(3,Tablas!$A$1128:$G$1130,5,TRUE)))))))))))), (IF($B$15=3,(IF(3-$B$19=0,0, (IF(3-$B$19=1,(VLOOKUP(1,Tablas!$A$1128:$G$1130,5,TRUE)), (IF(3-$B$19=2, (VLOOKUP(2,Tablas!$A$1128:$G$1130,5,TRUE)), (VLOOKUP(3,Tablas!$A$1128:$G$1130,5,TRUE)))))))), (IF($B$15=2,(IF(2-$B$19=0, 0, (IF(2-$B$19=1,(VLOOKUP(1,Tablas!$A$1128:$G$1130,5,TRUE)), (IF(2-$B$19=2, (VLOOKUP(2,Tablas!$A$1128:$G$1130,5,TRUE)), 0)))))), (IF($B$15=1,(IF(1-$B$19=0, 0, (IF(1-$B$19=1,(VLOOKUP(1,Tablas!$A$1128:$G$1130,5,TRUE)),0)))),0))))))))))))))))))) -> 0
A58: Total de Prima neta | C58: =SUM(C55:C57) -> 28224.075 | D58: =SUM(D55:D57) -> 18209.95 | E58: 0
A59: Tarifa administrativa anual | C59: 75 | D59: 75 | E59: 75
A60: IVA (12%) | C60: =(C58+C59)*'INGRESO DE DATOS'!$S$30 -> 3395.889 | D60: =(D58+D59)*'INGRESO DE DATOS'!$S$30 -> 2194.194 | E60: =(E31+E32+E33)*5%/4 -> 0
A61: ITBMS (7%) | C61: ='Global Major Medical'!C44 -> 0 | D61: =+D59*7% + ((D31+D32+D33)*0.1*0.07)/4 -> 121.1315 | E61: 5.25
A62: TOTAL de primera cuota | C62: =SUM(C58:C61) -> 31694.964 | D62: =SUM(D58:D61) -> 20600.2755 | E62: 80.25
A63: Costo de tarifa trimestral 2 a 4 | C63: =C62-C59*'INGRESO DE DATOS'!$T$30 -> 31610.964 | D63: =D62-D59*'INGRESO DE DATOS'!$T$30 -> 20516.2755 | E63: =(E58 + E60)+((E31+E32+E33)*0.1*0.07)/4 -> 0
A64: TOTAL ANUAL | C64: =C62+(C63*3) -> 126527.856 | D64: =D62+(D63*3) -> 82149.102 | E64: 80.25
A65: Ahorros en tarifas de prima para Dependientes | C65: =IF($B$17=1,IF($B$15=0,0,IF($B$19=0,0,IF($B$19=1,(VLOOKUP(1,Tablas!$A$1128:$G$1130,3,TRUE)),(VLOOKUP(2,Tablas!$A$1128:$G$1130,3,TRUE))))), IF($B$15=0,0,IF($B$19=0,0,IF($B$19=1,(VLOOKUP(1,Tablas!$A$1128:$G$1130,3,TRUE)),IF($B$19=2,(VLOOKUP(2,Tablas!$A$1128:$G$1130,3,TRUE)), (VLOOKUP(3,Tablas!$A$1128:$G$1130,3,TRUE))))))) -> 3644.85 | D65: =IF($B$17=1,IF($B$15=0,0,IF($B$19=0,0,IF($B$19=1,(VLOOKUP(1,Tablas!$A$1128:$G$1130,4,TRUE)),(VLOOKUP(2,Tablas!$A$1128:$G$1130,4,TRUE))))), IF($B$15=0,0,IF($B$19=0,0,IF($B$19=1,(VLOOKUP(1,Tablas!$A$1128:$G$1130,4,TRUE)),IF($B$19=2,(VLOOKUP(2,Tablas!$A$1128:$G$1130,4,TRUE)), (VLOOKUP(3,Tablas!$A$1128:$G$1130,4,TRUE))))))) -> 2351.8 | E65: =IF($B$17=1,IF($B$15=0,0,IF($B$19=0,0,IF($B$19=1,(VLOOKUP(1,Tablas!$A$1128:$G$1130,5,TRUE)),(VLOOKUP(2,Tablas!$A$1128:$G$1130,5,TRUE))))), IF($B$15=0,0,IF($B$19=0,0,IF($B$19=1,(VLOOKUP(1,Tablas!$A$1128:$G$1130,5,TRUE)),IF($B$19=2,(VLOOKUP(2,Tablas!$A$1128:$G$1130,5,TRUE)), (VLOOKUP(3,Tablas!$A$1128:$G$1130,5,TRUE))))))) -> 0
A67: TARIFAS MENSUALES
A68: Prima para Asegurado Titular | C68: =VLOOKUP($B$21,Tablas!$A$986:$G$1052,3,TRUE) -> 3512.32 | D68: =VLOOKUP($B$21,Tablas!$A$986:$G$1052,4,TRUE) -> 2266.133333 | E68: =VLOOKUP($B$21,Tablas!$A$986:$G$1052,5,TRUE) -> 0
A69: Prima para conyuge | C69: =IF($B$17=1,0,(VLOOKUP($D$21,Tablas!$A$986:$G$1052,3,TRUE))) -> 4829.72 | D69: =IF($B$17=1,0,(VLOOKUP($D$21,Tablas!$A$986:$G$1052,4,TRUE))) -> 3116.026667 | E69: =IF($B$17=1,0,(VLOOKUP($D$21,Tablas!$A$986:$G$1052,5,TRUE))) -> 0
A70: Prima para hijo (s) | C70: =IF($B$17=1, (IF($B$15=0, 0, (IF($B$19>$B$15, (VLOOKUP($B$15,Tablas!$A$1053:$G$1055,3,TRUE)), (IF($B$15>4,(IF($B$19=0, (VLOOKUP(3,Tablas!$A$1053:$G$1055,3,TRUE)), (IF($B$19=1, (VLOOKUP(3,Tablas!$A$1053:$G$1055,3,TRUE)), (IF($B$19=2, (VLOOKUP(3,Tablas!$A$1053:$G$1055,3,TRUE)), (VLOOKUP(3,Tablas!$A$1053:$G$1055,3,TRUE)))))))), (IF($B$15=4,(IF(4-$B$19=0,(VLOOKUP(2,Tablas!$A$1053:$G$1055,3,TRUE)), (IF(4-$B$19=1,(VLOOKUP(2,Tablas!$A$1053:$G$1055,3,TRUE)), (IF(4-$B$19=2, (VLOOKUP(2,Tablas!$A$1053:$G$1055,3,TRUE)), (VLOOKUP(3,Tablas!$A$1053:$G$1055,3,TRUE)))))))), (IF($B$15=3,(IF(3-$B$19=0,(VLOOKUP(1,Tablas!$A$1053:$G$1055,3,TRUE)), (IF(3-$B$19=1,(VLOOKUP(1,Tablas!$A$1053:$G$1055,3,TRUE)), (IF(3-$B$19=2, (VLOOKUP(2,Tablas!$A$1053:$G$1055,3,TRUE)), (VLOOKUP(3,Tablas!$A$1053:$G$1055,3,TRUE)))))))), (IF($B$15=2,(IF(2-$B$19=0, 0, (IF(2-$B$19=1,(VLOOKUP(1,Tablas!$A$1053:$G$1055,3,TRUE)), (IF(2-$B$19=2, (VLOOKUP(2,Tablas!$A$1053:$G$1055,3,TRUE)), 0)))))), (IF($B$15=1,(IF(1-$B$19=0, 0, (IF(1-$B$19=1,(VLOOKUP(1,Tablas!$A$1053:$G$1055,3,TRUE)),0)))),0)))))))))))))), (IF($B$15=0, 0, (IF($B$19>$B$15, (VLOOKUP($B$15,Tablas!$A$1053:$G$1055,3,TRUE)), (IF($B$15=4,(IF(4-$B$19=0, 0, (IF(4-$B$19=1, (VLOOKUP(1,Tablas!$A$1053:$G$1055,3,TRUE)), (IF(4-$B$19=2, (VLOOKUP(2,Tablas!$A$1053:$G$1055,3,TRUE)), (IF(4-$B$19=3, (VLOOKUP(3,Tablas!$A$1053:$G$1055,3,TRUE)), (IF(4-$B$19=4, (VLOOKUP(3,Tablas!$A$1053:$G$1055,3,TRUE)), 0)))))))))), (IF($B$15=5,(IF(5-$B$19=0, (VLOOKUP(1,Tablas!$A$1053:$G$1055,3,TRUE)), (IF(5-$B$19=1, (VLOOKUP(1,Tablas!$A$1053:$G$1055,3,TRUE)), (IF(5-$B$19=2, (VLOOKUP(2,Tablas!$A$1053:$G$1055,3,TRUE)), (IF(5-$B$19=3, (VLOOKUP(3,Tablas!$A$1053:$G$1055,3,TRUE)), (IF(5-$B$19=4, (VLOOKUP(3,Tablas!$A$1053:$G$1055,3,TRUE)), (VLOOKUP(3,Tablas!$A$1053:$G$1055,3,TRUE)))))))))))), (IF($B$15=6,(IF(6-$B$19=0, (VLOOKUP(2,Tablas!$A$1053:$G$1055,3,TRUE)), (IF(6-$B$19=1, (VLOOKUP(2,Tablas!$A$1053:$G$1055,3,TRUE)), (IF(6-$B$19=2, (VLOOKUP(2,Tablas!$A$1053:$G$1055,3,TRUE)), (IF(6-$B$19=3, (VLOOKUP(3,Tablas!$A$1053:$G$1055,3,TRUE)), (IF(6-$B$19=4, (VLOOKUP(3,Tablas!$A$1053:$G$1055,3,TRUE)), (VLOOKUP(3,Tablas!$A$1053:$G$1055,3,TRUE)))))))))))), (IF($B$15>6,(IF(7-$B$19=0, (VLOOKUP(3,Tablas!$A$1053:$G$1055,3,TRUE)), (IF(7-$B$19=1, (VLOOKUP(3,Tablas!$A$1053:$G$1055,3,TRUE)), (IF(7-$B$19=2, (VLOOKUP(3,Tablas!$A$1053:$G$1055,3,TRUE)), (IF(7-$B$19=3, (VLOOKUP(3,Tablas!$A$1053:$G$1055,3,TRUE)), (IF(7-$B$19=4, (VLOOKUP(3,Tablas!$A$1053:$G$1055,3,TRUE)), (VLOOKUP(3,Tablas!$A$1053:$G$1055,3,TRUE)))))))))))), (IF($B$15=3,(IF(3-$B$19=0,0, (IF(3-$B$19=1,(VLOOKUP(1,Tablas!$A$1053:$G$1055,3,TRUE)), (IF(3-$B$19=2, (VLOOKUP(2,Tablas!$A$1053:$G$1055,3,TRUE)), (VLOOKUP(3,Tablas!$A$1053:$G$1055,3,TRUE)))))))), (IF($B$15=2,(IF(2-$B$19=0, 0, (IF(2-$B$19=1,(VLOOKUP(1,Tablas!$A$1053:$G$1055,3,TRUE)), (IF(2-$B$19=2, (VLOOKUP(2,Tablas!$A$1053:$G$1055,3,TRUE)), 0)))))), (IF($B$15=1,(IF(1-$B$19=0, 0, (IF(1-$B$19=1,(VLOOKUP(1,Tablas!$A$1053:$G$1055,3,TRUE)),0)))),0))))))))))))))))))) -> 1237.04 | D70: =IF($B$17=1, (IF($B$15=0, 0, (IF($B$19>$B$15, (VLOOKUP($B$15,Tablas!$A$1053:$G$1055,4,TRUE)), (IF($B$15>4,(IF($B$19=0, (VLOOKUP(3,Tablas!$A$1053:$G$1055,4,TRUE)), (IF($B$19=1, (VLOOKUP(3,Tablas!$A$1053:$G$1055,4,TRUE)), (IF($B$19=2, (VLOOKUP(3,Tablas!$A$1053:$G$1055,4,TRUE)), (VLOOKUP(3,Tablas!$A$1053:$G$1055,4,TRUE)))))))), (IF($B$15=4,(IF(4-$B$19=0,(VLOOKUP(2,Tablas!$A$1053:$G$1055,4,TRUE)), (IF(4-$B$19=1,(VLOOKUP(2,Tablas!$A$1053:$G$1055,4,TRUE)), (IF(4-$B$19=2, (VLOOKUP(2,Tablas!$A$1053:$G$1055,4,TRUE)), (VLOOKUP(3,Tablas!$A$1053:$G$1055,4,TRUE)))))))), (IF($B$15=3,(IF(3-$B$19=0,(VLOOKUP(1,Tablas!$A$1053:$G$1055,4,TRUE)), (IF(3-$B$19=1,(VLOOKUP(1,Tablas!$A$1053:$G$1055,4,TRUE)), (IF(3-$B$19=2, (VLOOKUP(2,Tablas!$A$1053:$G$1055,4,TRUE)), (VLOOKUP(3,Tablas!$A$1053:$G$1055,4,TRUE)))))))), (IF($B$15=2,(IF(2-$B$19=0, 0, (IF(2-$B$19=1,(VLOOKUP(1,Tablas!$A$1053:$G$1055,4,TRUE)), (IF(2-$B$19=2, (VLOOKUP(2,Tablas!$A$1053:$G$1055,4,TRUE)), 0)))))), (IF($B$15=1,(IF(1-$B$19=0, 0, (IF(1-$B$19=1,(VLOOKUP(1,Tablas!$A$1053:$G$1055,4,TRUE)),0)))),0)))))))))))))), (IF($B$15=0, 0, (IF($B$19>$B$15, (VLOOKUP($B$15,Tablas!$A$1053:$G$1055,4,TRUE)), (IF($B$15=4,(IF(4-$B$19=0, 0, (IF(4-$B$19=1, (VLOOKUP(1,Tablas!$A$1053:$G$1055,4,TRUE)), (IF(4-$B$19=2, (VLOOKUP(2,Tablas!$A$1053:$G$1055,4,TRUE)), (IF(4-$B$19=3, (VLOOKUP(3,Tablas!$A$1053:$G$1055,4,TRUE)), (IF(4-$B$19=4, (VLOOKUP(3,Tablas!$A$1053:$G$1055,4,TRUE)), 0)))))))))), (IF($B$15=5,(IF(5-$B$19=0, (VLOOKUP(1,Tablas!$A$1053:$G$1055,4,TRUE)), (IF(5-$B$19=1, (VLOOKUP(1,Tablas!$A$1053:$G$1055,4,TRUE)), (IF(5-$B$19=2, (VLOOKUP(2,Tablas!$A$1053:$G$1055,4,TRUE)), (IF(5-$B$19=3, (VLOOKUP(3,Tablas!$A$1053:$G$1055,4,TRUE)), (IF(5-$B$19=4, (VLOOKUP(3,Tablas!$A$1053:$G$1055,4,TRUE)), (VLOOKUP(3,Tablas!$A$1053:$G$1055,4,TRUE)))))))))))), (IF($B$15=6,(IF(6-$B$19=0, (VLOOKUP(2,Tablas!$A$1053:$G$1055,4,TRUE)), (IF(6-$B$19=1, (VLOOKUP(2,Tablas!$A$1053:$G$1055,4,TRUE)), (IF(6-$B$19=2, (VLOOKUP(2,Tablas!$A$1053:$G$1055,4,TRUE)), (IF(6-$B$19=3, (VLOOKUP(3,Tablas!$A$1053:$G$1055,4,TRUE)), (IF(6-$B$19=4, (VLOOKUP(3,Tablas!$A$1053:$G$1055,4,TRUE)), (VLOOKUP(3,Tablas!$A$1053:$G$1055,4,TRUE)))))))))))), (IF($B$15>6,(IF(7-$B$19=0, (VLOOKUP(3,Tablas!$A$1053:$G$1055,4,TRUE)), (IF(7-$B$19=1, (VLOOKUP(3,Tablas!$A$1053:$G$1055,4,TRUE)), (IF(7-$B$19=2, (VLOOKUP(3,Tablas!$A$1053:$G$1055,4,TRUE)), (IF(7-$B$19=3, (VLOOKUP(3,Tablas!$A$1053:$G$1055,4,TRUE)), (IF(7-$B$19=4, (VLOOKUP(3,Tablas!$A$1053:$G$1055,4,TRUE)), (VLOOKUP(3,Tablas!$A$1053:$G$1055,4,TRUE)))))))))))), (IF($B$15=3,(IF(3-$B$19=0,0, (IF(3-$B$19=1,(VLOOKUP(1,Tablas!$A$1053:$G$1055,4,TRUE)), (IF(3-$B$19=2, (VLOOKUP(2,Tablas!$A$1053:$G$1055,4,TRUE)), (VLOOKUP(3,Tablas!$A$1053:$G$1055,4,TRUE)))))))), (IF($B$15=2,(IF(2-$B$19=0, 0, (IF(2-$B$19=1,(VLOOKUP(1,Tablas!$A$1053:$G$1055,4,TRUE)), (IF(2-$B$19=2, (VLOOKUP(2,Tablas!$A$1053:$G$1055,4,TRUE)), 0)))))), (IF($B$15=1,(IF(1-$B$19=0, 0, (IF(1-$B$19=1,(VLOOKUP(1,Tablas!$A$1053:$G$1055,4,TRUE)),0)))),0))))))))))))))))))) -> 798.1866667 | E70: =IF($B$17=1, (IF($B$15=0, 0, (IF($B$19>$B$15, (VLOOKUP($B$15,Tablas!$A$1053:$G$1055,5,TRUE)), (IF($B$15>4,(IF($B$19=0, (VLOOKUP(3,Tablas!$A$1053:$G$1055,5,TRUE)), (IF($B$19=1, (VLOOKUP(3,Tablas!$A$1053:$G$1055,5,TRUE)), (IF($B$19=2, (VLOOKUP(3,Tablas!$A$1053:$G$1055,5,TRUE)), (VLOOKUP(3,Tablas!$A$1053:$G$1055,5,TRUE)))))))), (IF($B$15=4,(IF(4-$B$19=0,(VLOOKUP(2,Tablas!$A$1053:$G$1055,5,TRUE)), (IF(4-$B$19=1,(VLOOKUP(2,Tablas!$A$1053:$G$1055,5,TRUE)), (IF(4-$B$19=2, (VLOOKUP(2,Tablas!$A$1053:$G$1055,5,TRUE)), (VLOOKUP(3,Tablas!$A$1053:$G$1055,5,TRUE)))))))), (IF($B$15=3,(IF(3-$B$19=0,(VLOOKUP(1,Tablas!$A$1053:$G$1055,5,TRUE)), (IF(3-$B$19=1,(VLOOKUP(1,Tablas!$A$1053:$G$1055,5,TRUE)), (IF(3-$B$19=2, (VLOOKUP(2,Tablas!$A$1053:$G$1055,5,TRUE)), (VLOOKUP(3,Tablas!$A$1053:$G$1055,5,TRUE)))))))), (IF($B$15=2,(IF(2-$B$19=0, 0, (IF(2-$B$19=1,(VLOOKUP(1,Tablas!$A$1053:$G$1055,5,TRUE)), (IF(2-$B$19=2, (VLOOKUP(2,Tablas!$A$1053:$G$1055,5,TRUE)), 0)))))), (IF($B$15=1,(IF(1-$B$19=0, 0, (IF(1-$B$19=1,(VLOOKUP(1,Tablas!$A$1053:$G$1055,5,TRUE)),0)))),0)))))))))))))), (IF($B$15=0, 0, (IF($B$19>$B$15, (VLOOKUP($B$15,Tablas!$A$1053:$G$1055,5,TRUE)), (IF($B$15=4,(IF(4-$B$19=0, 0, (IF(4-$B$19=1, (VLOOKUP(1,Tablas!$A$1053:$G$1055,5,TRUE)), (IF(4-$B$19=2, (VLOOKUP(2,Tablas!$A$1053:$G$1055,5,TRUE)), (IF(4-$B$19=3, (VLOOKUP(3,Tablas!$A$1053:$G$1055,5,TRUE)), (IF(4-$B$19=4, (VLOOKUP(3,Tablas!$A$1053:$G$1055,5,TRUE)), 0)))))))))), (IF($B$15=5,(IF(5-$B$19=0, (VLOOKUP(1,Tablas!$A$1053:$G$1055,5,TRUE)), (IF(5-$B$19=1, (VLOOKUP(1,Tablas!$A$1053:$G$1055,5,TRUE)), (IF(5-$B$19=2, (VLOOKUP(2,Tablas!$A$1053:$G$1055,5,TRUE)), (IF(5-$B$19=3, (VLOOKUP(3,Tablas!$A$1053:$G$1055,5,TRUE)), (IF(5-$B$19=4, (VLOOKUP(3,Tablas!$A$1053:$G$1055,5,TRUE)), (VLOOKUP(3,Tablas!$A$1053:$G$1055,5,TRUE)))))))))))), (IF($B$15=6,(IF(6-$B$19=0, (VLOOKUP(2,Tablas!$A$1053:$G$1055,5,TRUE)), (IF(6-$B$19=1, (VLOOKUP(2,Tablas!$A$1053:$G$1055,5,TRUE)), (IF(6-$B$19=2, (VLOOKUP(2,Tablas!$A$1053:$G$1055,5,TRUE)), (IF(6-$B$19=3, (VLOOKUP(3,Tablas!$A$1053:$G$1055,5,TRUE)), (IF(6-$B$19=4, (VLOOKUP(3,Tablas!$A$1053:$G$1055,5,TRUE)), (VLOOKUP(3,Tablas!$A$1053:$G$1055,5,TRUE)))))))))))), (IF($B$15>6,(IF(7-$B$19=0, (VLOOKUP(3,Tablas!$A$1053:$G$1055,5,TRUE)), (IF(7-$B$19=1, (VLOOKUP(3,Tablas!$A$1053:$G$1055,5,TRUE)), (IF(7-$B$19=2, (VLOOKUP(3,Tablas!$A$1053:$G$1055,5,TRUE)), (IF(7-$B$19=3, (VLOOKUP(3,Tablas!$A$1053:$G$1055,5,TRUE)), (IF(7-$B$19=4, (VLOOKUP(3,Tablas!$A$1053:$G$1055,5,TRUE)), (VLOOKUP(3,Tablas!$A$1053:$G$1055,5,TRUE)))))))))))), (IF($B$15=3,(IF(3-$B$19=0,0, (IF(3-$B$19=1,(VLOOKUP(1,Tablas!$A$1053:$G$1055,5,TRUE)), (IF(3-$B$19=2, (VLOOKUP(2,Tablas!$A$1053:$G$1055,5,TRUE)), (VLOOKUP(3,Tablas!$A$1053:$G$1055,5,TRUE)))))))), (IF($B$15=2,(IF(2-$B$19=0, 0, (IF(2-$B$19=1,(VLOOKUP(1,Tablas!$A$1053:$G$1055,5,TRUE)), (IF(2-$B$19=2, (VLOOKUP(2,Tablas!$A$1053:$G$1055,5,TRUE)), 0)))))), (IF($B$15=1,(IF(1-$B$19=0, 0, (IF(1-$B$19=1,(VLOOKUP(1,Tablas!$A$1053:$G$1055,5,TRUE)),0)))),0))))))))))))))))))) -> 0
A71: Total de Prima neta | C71: =SUM(C68:C70) -> 9579.08 | D71: =SUM(D68:D70) -> 6180.346667 | E71: 0
A72: Tarifa administrativa anual | C72: 75 | D72: 75 | E72: 75
A73: IVA (12%) | C73: =(C71+C72)*'INGRESO DE DATOS'!$S$30 -> 1158.4896 | D73: =(D71+D72)*'INGRESO DE DATOS'!$S$30 -> 750.6416 | E73: =(E31+E32+E33)*5%/12 -> 0
A74: ITBMS (7%) | E74: =+E72*7% + ((E31+E32+E33)*0.12*0.07)/12 -> 5.25
A75: TOTAL de primera cuota | C75: =SUM(C71:C74) -> 10812.5696 | D75: =SUM(D71:D74) -> 7005.988267 | E75: =SUM(E71:E74) -> 80.25
A76: Costo de Tarifa mensual de 2 a 12 | C76: =C75-C72*'INGRESO DE DATOS'!$T$30 -> 10728.5696 | D76: =D75-D72*'INGRESO DE DATOS'!$T$30 -> 6921.988267 | E76: =(E71 + E73)+((E31+E32+E33)*0.12*0.07)/12 -> 0
A77: TOTAL ANUAL | C77: =C75+(C76*11) -> 128826.8352 | D77: =D75+(D76*11) -> 83147.8592 | E77: 80.25
A78: Ahorros en tarifas de prima para Dependientes | C78: =IF($B$17=1,IF($B$15=0,0,IF($B$19=0,0,IF($B$19=1,(VLOOKUP(1,Tablas!$A$1053:$G$1055,3,TRUE)),(VLOOKUP(2,Tablas!$A$1053:$G$1055,3,TRUE))))), IF($B$15=0,0,IF($B$19=0,0,IF($B$19=1,(VLOOKUP(1,Tablas!$A$1053:$G$1055,3,TRUE)),IF($B$19=2,(VLOOKUP(2,Tablas!$A$1053:$G$1055,3,TRUE)), (VLOOKUP(3,Tablas!$A$1053:$G$1055,3,TRUE))))))) -> 1237.04 | D78: =IF($B$17=1,IF($B$15=0,0,IF($B$19=0,0,IF($B$19=1,(VLOOKUP(1,Tablas!$A$1053:$G$1055,4,TRUE)),(VLOOKUP(2,Tablas!$A$1053:$G$1055,4,TRUE))))), IF($B$15=0,0,IF($B$19=0,0,IF($B$19=1,(VLOOKUP(1,Tablas!$A$1053:$G$1055,4,TRUE)),IF($B$19=2,(VLOOKUP(2,Tablas!$A$1053:$G$1055,4,TRUE)), (VLOOKUP(3,Tablas!$A$1053:$G$1055,4,TRUE))))))) -> 798.1866667 | E78: =IF($B$17=1,IF($B$15=0,0,IF($B$19=0,0,IF($B$19=1,(VLOOKUP(1,Tablas!$A$1053:$G$1055,5,TRUE)),(VLOOKUP(2,Tablas!$A$1053:$G$1055,5,TRUE))))), IF($B$15=0,0,IF($B$19=0,0,IF($B$19=1,(VLOOKUP(1,Tablas!$A$1053:$G$1055,5,TRUE)),IF($B$19=2,(VLOOKUP(2,Tablas!$A$1053:$G$1055,5,TRUE)), (VLOOKUP(3,Tablas!$A$1053:$G$1055,5,TRUE))))))) -> 0
A80: Este presupuesto solamente tiene carácter informativo y en ningún momento expresa compromiso legal para suministrarle cobertura de seguro. La emisión de una póliza de seguro Bupa está sujeta a todas las evaluaciones de riesgo por parte de Bupa y a la recepción de todos los pagos de prima requeridos.

Sheet Global Elite
J1: RESUMEN DE BENEFICIOS | Q1: RESUMEN DE BENEFICIOS | X1: RESUMEN DE BENEFICIOS
A5: Cotización de Seguro Médico Internacional Global Elite Health Plan Tarifas en US$ | Validas: 1 de enero de 2024
A13: Nombre del Asegurado Titular | B13: =+'INGRESO DE DATOS'!$C$37 -> John Doe
A15: Número de adultos en la póliza | B15: =+'INGRESO DE DATOS'!$C$39 -> 2
A17: Número de Dependientes en la póliza | B17: =+'INGRESO DE DATOS'!$C$41 -> 2 | C17: =IF('INGRESO DE DATOS'!$P$2=TRUE, "Cotización para dependiente de 24 años","") -> 
A19: Número de Dependientes menores de 10 años | B19: =+'INGRESO DE DATOS'!$H$42 -> 1
A21: Edad del Asegurado Titular | B21: =+'INGRESO DE DATOS'!$C$43 -> 32 | E21: Edad del/la conyuge | G21: =+'INGRESO DE DATOS'!$C$45 -> 46
A23: Fecha de la cotización | B23: =NOW() -> 2024-01-09T14:34:53.990
A25: =IF('INGRESO DE DATOS'!P3=TRUE,"Variante con coaseguro fuera del país de residencia: SI","Variante con coaseguro fuera del país de residencia: NO") -> Variante con coaseguro fuera del país de residencia: NO
A27: DEDUCIBlES | C27: PLAN 1 | D27: PLAN 2 | E27: PLAN 3 | F27: PLAN 4 | G27: PLAN 5
A28: En el país de residencia | C28: 250 | D28: 2000 | E28: 3500 | F28: 5000 | G28: 10000
A29: Fuera del país de residencia | C29: 5000 | D29: 2000 | E29: 3500 | F29: 5000 | G29: 10000
A31: TARIFAS ANUALES
A32: Prima para Asegurado Titular | C32: =VLOOKUP($B$21,Tablas!$A$6:$G$72,3,TRUE) -> 12430.4 | D32: =VLOOKUP($B$21,Tablas!$A$6:$G$72,4,TRUE) -> 10895.3 | E32: =VLOOKUP($B$21,Tablas!$A$6:$G$72,5,TRUE) -> 8818.75 | F32: =VLOOKUP($B$21,Tablas!$A$6:$G$72,6,TRUE) -> 7647.45 | G32: =VLOOKUP($B$21,Tablas!$A$6:$G$72,7,TRUE) -> 5777.45
A33: Prima para conyuge | C33: =IF($B$15=1,0,(VLOOKUP($G$21,Tablas!$A$6:$G$72,3,TRUE))) -> 17045.9 | D33: =IF($B$15=1,0,(VLOOKUP($G$21,Tablas!$A$6:$G$72,4,TRUE))) -> 14940.45 | E33: =IF($B$15=1,0,(VLOOKUP($G$21,Tablas!$A$6:$G$72,5,TRUE))) -> 11933.15 | F33: =IF($B$15=1,0,(VLOOKUP($G$21,Tablas!$A$6:$G$72,6,TRUE))) -> 10347.9 | G33: =IF($B$15=1,0,(VLOOKUP($G$21,Tablas!$A$6:$G$72,7,TRUE))) -> 7820
A34: Prima para hijo (s) | C34: =IF($B$15=1, (IF($B$17=0, 0, (IF($B$19>$B$17, (VLOOKUP($B$17,Tablas!$A$73:$G$75,3,TRUE)), (IF($B$17>4,(IF($B$19=0, (VLOOKUP(3,Tablas!$A$73:$G$75,3,TRUE)), (IF($B$19=1, (VLOOKUP(3,Tablas!$A$73:$G$75,3,TRUE)), (IF($B$19=2, (VLOOKUP(3,Tablas!$A$73:$G$75,3,TRUE)), (VLOOKUP(3,Tablas!$A$73:$G$75,3,TRUE)))))))), (IF($B$17=4,(IF(4-$B$19=0,(VLOOKUP(2,Tablas!$A$73:$G$75,3,TRUE)), (IF(4-$B$19=1,(VLOOKUP(2,Tablas!$A$73:$G$75,3,TRUE)), (IF(4-$B$19=2, (VLOOKUP(2,Tablas!$A$73:$G$75,3,TRUE)), (VLOOKUP(3,Tablas!$A$73:$G$75,3,TRUE)))))))), (IF($B$17=3,(IF(3-$B$19=0,(VLOOKUP(1,Tablas!$A$73:$G$75,3,TRUE)), (IF(3-$B$19=1,(VLOOKUP(1,Tablas!$A$73:$G$75,3,TRUE)), (IF(3-$B$19=2, (VLOOKUP(2,Tablas!$A$73:$G$75,3,TRUE)), (VLOOKUP(3,Tablas!$A$73:$G$75,3,TRUE)))))))), (IF($B$17=2,(IF(2-$B$19=0, 0, (IF(2-$B$19=1,(VLOOKUP(1,Tablas!$A$73:$G$75,3,TRUE)), (IF(2-$B$19=2, (VLOOKUP(2,Tablas!$A$73:$G$75,3,TRUE)), 0)))))), (IF($B$17=1,(IF(1-$B$19=0, 0, (IF(1-$B$19=1,(VLOOKUP(1,Tablas!$A$73:$G$75,3,TRUE)),0)))),0)))))))))))))), (IF($B$17=0, 0, (IF($B$19>$B$17, (VLOOKUP($B$17,Tablas!$A$73:$G$75,3,TRUE)), (IF($B$17=4,(IF(4-$B$19=0, 0, (IF(4-$B$19=1, (VLOOKUP(1,Tablas!$A$73:$G$75,3,TRUE)), (IF(4-$B$19=2, (VLOOKUP(2,Tablas!$A$73:$G$75,3,TRUE)), (IF(4-$B$19=3, (VLOOKUP(3,Tablas!$A$73:$G$75,3,TRUE)), (IF(4-$B$19=4, (VLOOKUP(3,Tablas!$A$73:$G$75,3,TRUE)), 0)))))))))), (IF($B$17=5,(IF(5-$B$19=0, (VLOOKUP(1,Tablas!$A$73:$G$75,3,TRUE)), (IF(5-$B$19=1, (VLOOKUP(1,Tablas!$A$73:$G$75,3,TRUE)), (IF(5-$B$19=2, (VLOOKUP(2,Tablas!$A$73:$G$75,3,TRUE)), (IF(5-$B$19=3, (VLOOKUP(3,Tablas!$A$73:$G$75,3,TRUE)), (IF(5-$B$19=4, (VLOOKUP(3,Tablas!$A$73:$G$75,3,TRUE)), (VLOOKUP(3,Tablas!$A$73:$G$75,3,TRUE)))))))))))), (IF($B$17=6,(IF(6-$B$19=0, (VLOOKUP(2,Tablas!$A$73:$G$75,3,TRUE)), (IF(6-$B$19=1, (VLOOKUP(2,Tablas!$A$73:$G$75,3,TRUE)), (IF(6-$B$19=2, (VLOOKUP(2,Tablas!$A$73:$G$75,3,TRUE)), (IF(6-$B$19=3, (VLOOKUP(3,Tablas!$A$73:$G$75,3,TRUE)), (IF(6-$B$19=4, (VLOOKUP(3,Tablas!$A$73:$G$75,3,TRUE)), (VLOOKUP(3,Tablas!$A$73:$G$75,3,TRUE)))))))))))), (IF($B$17>6,(IF(7-$B$19=0, (VLOOKUP(3,Tablas!$A$73:$G$75,3,TRUE)), (IF(7-$B$19=1, (VLOOKUP(3,Tablas!$A$73:$G$75,3,TRUE)), (IF(7-$B$19=2, (VLOOKUP(3,Tablas!$A$73:$G$75,3,TRUE)), (IF(7-$B$19=3, (VLOOKUP(3,Tablas!$A$73:$G$75,3,TRUE)), (IF(7-$B$19=4, (VLOOKUP(3,Tablas!$A$73:$G$75,3,TRUE)), (VLOOKUP(3,Tablas!$A$73:$G$75,3,TRUE)))))))))))), (IF($B$17=3,(IF(3-$B$19=0,0, (IF(3-$B$19=1,(VLOOKUP(1,Tablas!$A$73:$G$75,3,TRUE)), (IF(3-$B$19=2, (VLOOKUP(2,Tablas!$A$73:$G$75,3,TRUE)), (VLOOKUP(3,Tablas!$A$73:$G$75,3,TRUE)))))))), (IF($B$17=2,(IF(2-$B$19=0, 0, (IF(2-$B$19=1,(VLOOKUP(1,Tablas!$A$73:$G$75,3,TRUE)), (IF(2-$B$19=2, (VLOOKUP(2,Tablas!$A$73:$G$75,3,TRUE)), 0)))))), (IF($B$17=1,(IF(1-$B$19=0, 0, (IF(1-$B$19=1,(VLOOKUP(1,Tablas!$A$73:$G$75,3,TRUE)),0)))),0))))))))))))))))))) -> 4430.2 | D34: =IF($B$15=1, (IF($B$17=0, 0, (IF($B$19>$B$17, (VLOOKUP($B$17,Tablas!$A$73:$G$75,4,TRUE)), (IF($B$17>4,(IF($B$19=0, (VLOOKUP(3,Tablas!$A$73:$G$75,4,TRUE)), (IF($B$19=1, (VLOOKUP(3,Tablas!$A$73:$G$75,4,TRUE)), (IF($B$19=2, (VLOOKUP(3,Tablas!$A$73:$G$75,4,TRUE)), (VLOOKUP(3,Tablas!$A$73:$G$75,4,TRUE)))))))), (IF($B$17=4,(IF(4-$B$19=0,(VLOOKUP(2,Tablas!$A$73:$G$75,4,TRUE)), (IF(4-$B$19=1,(VLOOKUP(2,Tablas!$A$73:$G$75,4,TRUE)), (IF(4-$B$19=2, (VLOOKUP(2,Tablas!$A$73:$G$75,4,TRUE)), (VLOOKUP(3,Tablas!$A$73:$G$75,4,TRUE)))))))), (IF($B$17=3,(IF(3-$B$19=0,(VLOOKUP(1,Tablas!$A$73:$G$75,4,TRUE)), (IF(3-$B$19=1,(VLOOKUP(1,Tablas!$A$73:$G$75,4,TRUE)), (IF(3-$B$19=2, (VLOOKUP(2,Tablas!$A$73:$G$75,4,TRUE)), (VLOOKUP(3,Tablas!$A$73:$G$75,4,TRUE)))))))), (IF($B$17=2,(IF(2-$B$19=0, 0, (IF(2-$B$19=1,(VLOOKUP(1,Tablas!$A$73:$G$75,4,TRUE)), (IF(2-$B$19=2, (VLOOKUP(2,Tablas!$A$73:$G$75,4,TRUE)), 0)))))), (IF($B$17=1,(IF(1-$B$19=0, 0, (IF(1-$B$19=1,(VLOOKUP(1,Tablas!$A$73:$G$75,4,TRUE)),0)))),0)))))))))))))), (IF($B$17=0, 0, (IF($B$19>$B$17, (VLOOKUP($B$17,Tablas!$A$73:$G$75,4,TRUE)), (IF($B$17=4,(IF(4-$B$19=0, 0, (IF(4-$B$19=1, (VLOOKUP(1,Tablas!$A$73:$G$75,4,TRUE)), (IF(4-$B$19=2, (VLOOKUP(2,Tablas!$A$73:$G$75,4,TRUE)), (IF(4-$B$19=3, (VLOOKUP(3,Tablas!$A$73:$G$75,4,TRUE)), (IF(4-$B$19=4, (VLOOKUP(3,Tablas!$A$73:$G$75,4,TRUE)), 0)))))))))), (IF($B$17=5,(IF(5-$B$19=0, (VLOOKUP(1,Tablas!$A$73:$G$75,4,TRUE)), (IF(5-$B$19=1, (VLOOKUP(1,Tablas!$A$73:$G$75,4,TRUE)), (IF(5-$B$19=2, (VLOOKUP(2,Tablas!$A$73:$G$75,4,TRUE)), (IF(5-$B$19=3, (VLOOKUP(3,Tablas!$A$73:$G$75,4,TRUE)), (IF(5-$B$19=4, (VLOOKUP(3,Tablas!$A$73:$G$75,4,TRUE)), (VLOOKUP(3,Tablas!$A$73:$G$75,4,TRUE)))))))))))), (IF($B$17=6,(IF(6-$B$19=0, (VLOOKUP(2,Tablas!$A$73:$G$75,4,TRUE)), (IF(6-$B$19=1, (VLOOKUP(2,Tablas!$A$73:$G$75,4,TRUE)), (IF(6-$B$19=2, (VLOOKUP(2,Tablas!$A$73:$G$75,4,TRUE)), (IF(6-$B$19=3, (VLOOKUP(3,Tablas!$A$73:$G$75,4,TRUE)), (IF(6-$B$19=4, (VLOOKUP(3,Tablas!$A$73:$G$75,4,TRUE)), (VLOOKUP(3,Tablas!$A$73:$G$75,4,TRUE)))))))))))), (IF($B$17>6,(IF(7-$B$19=0, (VLOOKUP(3,Tablas!$A$73:$G$75,4,TRUE)), (IF(7-$B$19=1, (VLOOKUP(3,Tablas!$A$73:$G$75,4,TRUE)), (IF(7-$B$19=2, (VLOOKUP(3,Tablas!$A$73:$G$75,4,TRUE)), (IF(7-$B$19=3, (VLOOKUP(3,Tablas!$A$73:$G$75,4,TRUE)), (IF(7-$B$19=4, (VLOOKUP(3,Tablas!$A$73:$G$75,4,TRUE)), (VLOOKUP(3,Tablas!$A$73:$G$75,4,TRUE)))))))))))), (IF($B$17=3,(IF(3-$B$19=0,0, (IF(3-$B$19=1,(VLOOKUP(1,Tablas!$A$73:$G$75,4,TRUE)), (IF(3-$B$19=2, (VLOOKUP(2,Tablas!$A$73:$G$75,4,TRUE)), (VLOOKUP(3,Tablas!$A$73:$G$75,4,TRUE)))))))), (IF($B$17=2,(IF(2-$B$19=0, 0, (IF(2-$B$19=1,(VLOOKUP(1,Tablas!$A$73:$G$75,4,TRUE)), (IF(2-$B$19=2, (VLOOKUP(2,Tablas!$A$73:$G$75,4,TRUE)), 0)))))), (IF($B$17=1,(IF(1-$B$19=0, 0, (IF(1-$B$19=1,(VLOOKUP(1,Tablas!$A$73:$G$75,4,TRUE)),0)))),0))))))))))))))))))) -> 3881.1 | E34: =IF($B$15=1, (IF($B$17=0, 0, (IF($B$19>$B$17, (VLOOKUP($B$17,Tablas!$A$73:$G$75,5,TRUE)), (IF($B$17>4,(IF($B$19=0, (VLOOKUP(3,Tablas!$A$73:$G$75,5,TRUE)), (IF($B$19=1, (VLOOKUP(3,Tablas!$A$73:$G$75,5,TRUE)), (IF($B$19=2, (VLOOKUP(3,Tablas!$A$73:$G$75,5,TRUE)), (VLOOKUP(3,Tablas!$A$73:$G$75,5,TRUE)))))))), (IF($B$17=4,(IF(4-$B$19=0,(VLOOKUP(2,Tablas!$A$73:$G$75,5,TRUE)), (IF(4-$B$19=1,(VLOOKUP(2,Tablas!$A$73:$G$75,5,TRUE)), (IF(4-$B$19=2, (VLOOKUP(2,Tablas!$A$73:$G$75,5,TRUE)), (VLOOKUP(3,Tablas!$A$73:$G$75,5,TRUE)))))))), (IF($B$17=3,(IF(3-$B$19=0,(VLOOKUP(1,Tablas!$A$73:$G$75,5,TRUE)), (IF(3-$B$19=1,(VLOOKUP(1,Tablas!$A$73:$G$75,5,TRUE)), (IF(3-$B$19=2, (VLOOKUP(2,Tablas!$A$73:$G$75,5,TRUE)), (VLOOKUP(3,Tablas!$A$73:$G$75,5,TRUE)))))))), (IF($B$17=2,(IF(2-$B$19=0, 0, (IF(2-$B$19=1,(VLOOKUP(1,Tablas!$A$73:$G$75,5,TRUE)), (IF(2-$B$19=2, (VLOOKUP(2,Tablas!$A$73:$G$75,5,TRUE)), 0)))))), (IF($B$17=1,(IF(1-$B$19=0, 0, (IF(1-$B$19=1,(VLOOKUP(1,Tablas!$A$73:$G$75,5,TRUE)),0)))),0)))))))))))))), (IF($B$17=0, 0, (IF($B$19>$B$17, (VLOOKUP($B$17,Tablas!$A$73:$G$75,5,TRUE)), (IF($B$17=4,(IF(4-$B$19=0, 0, (IF(4-$B$19=1, (VLOOKUP(1,Tablas!$A$73:$G$75,5,TRUE)), (IF(4-$B$19=2, (VLOOKUP(2,Tablas!$A$73:$G$75,5,TRUE)), (IF(4-$B$19=3, (VLOOKUP(3,Tablas!$A$73:$G$75,5,TRUE)), (IF(4-$B$19=4, (VLOOKUP(3,Tablas!$A$73:$G$75,5,TRUE)), 0)))))))))), (IF($B$17=5,(IF(5-$B$19=0, (VLOOKUP(1,Tablas!$A$73:$G$75,5,TRUE)), (IF(5-$B$19=1, (VLOOKUP(1,Tablas!$A$73:$G$75,5,TRUE)), (IF(5-$B$19=2, (VLOOKUP(2,Tablas!$A$73:$G$75,5,TRUE)), (IF(5-$B$19=3, (VLOOKUP(3,Tablas!$A$73:$G$75,5,TRUE)), (IF(5-$B$19=4, (VLOOKUP(3,Tablas!$A$73:$G$75,5,TRUE)), (VLOOKUP(3,Tablas!$A$73:$G$75,5,TRUE)))))))))))), (IF($B$17=6,(IF(6-$B$19=0, (VLOOKUP(2,Tablas!$A$73:$G$75,5,TRUE)), (IF(6-$B$19=1, (VLOOKUP(2,Tablas!$A$73:$G$75,5,TRUE)), (IF(6-$B$19=2, (VLOOKUP(2,Tablas!$A$73:$G$75,5,TRUE)), (IF(6-$B$19=3, (VLOOKUP(3,Tablas!$A$73:$G$75,5,TRUE)), (IF(6-$B$19=4, (VLOOKUP(3,Tablas!$A$73:$G$75,5,TRUE)), (VLOOKUP(3,Tablas!$A$73:$G$75,5,TRUE)))))))))))), (IF($B$17>6,(IF(7-$B$19=0, (VLOOKUP(3,Tablas!$A$73:$G$75,5,TRUE)), (IF(7-$B$19=1, (VLOOKUP(3,Tablas!$A$73:$G$75,5,TRUE)), (IF(7-$B$19=2, (VLOOKUP(3,Tablas!$A$73:$G$75,5,TRUE)), (IF(7-$B$19=3, (VLOOKUP(3,Tablas!$A$73:$G$75,5,TRUE)), (IF(7-$B$19=4, (VLOOKUP(3,Tablas!$A$73:$G$75,5,TRUE)), (VLOOKUP(3,Tablas!$A$73:$G$75,5,TRUE)))))))))))), (IF($B$17=3,(IF(3-$B$19=0,0, (IF(3-$B$19=1,(VLOOKUP(1,Tablas!$A$73:$G$75,5,TRUE)), (IF(3-$B$19=2, (VLOOKUP(2,Tablas!$A$73:$G$75,5,TRUE)), (VLOOKUP(3,Tablas!$A$73:$G$75,5,TRUE)))))))), (IF($B$17=2,(IF(2-$B$19=0, 0, (IF(2-$B$19=1,(VLOOKUP(1,Tablas!$A$73:$G$75,5,TRUE)), (IF(2-$B$19=2, (VLOOKUP(2,Tablas!$A$73:$G$75,5,TRUE)), 0)))))), (IF($B$17=1,(IF(1-$B$19=0, 0, (IF(1-$B$19=1,(VLOOKUP(1,Tablas!$A$73:$G$75,5,TRUE)),0)))),0))))))))))))))))))) -> 3205.35 | F34: =IF($B$15=1, (IF($B$17=0, 0, (IF($B$19>$B$17, (VLOOKUP($B$17,Tablas!$A$73:$G$75,6,TRUE)), (IF($B$17>4,(IF($B$19=0, (VLOOKUP(3,Tablas!$A$73:$G$75,6,TRUE)), (IF($B$19=1, (VLOOKUP(3,Tablas!$A$73:$G$75,6,TRUE)), (IF($B$19=2, (VLOOKUP(3,Tablas!$A$73:$G$75,6,TRUE)), (VLOOKUP(3,Tablas!$A$73:$G$75,6,TRUE)))))))), (IF($B$17=4,(IF(4-$B$19=0,(VLOOKUP(2,Tablas!$A$73:$G$75,6,TRUE)), (IF(4-$B$19=1,(VLOOKUP(2,Tablas!$A$73:$G$75,6,TRUE)), (IF(4-$B$19=2, (VLOOKUP(2,Tablas!$A$73:$G$75,6,TRUE)), (VLOOKUP(3,Tablas!$A$73:$G$75,6,TRUE)))))))), (IF($B$17=3,(IF(3-$B$19=0,(VLOOKUP(1,Tablas!$A$73:$G$75,6,TRUE)), (IF(3-$B$19=1,(VLOOKUP(1,Tablas!$A$73:$G$75,6,TRUE)), (IF(3-$B$19=2, (VLOOKUP(2,Tablas!$A$73:$G$75,6,TRUE)), (VLOOKUP(3,Tablas!$A$73:$G$75,6,TRUE)))))))), (IF($B$17=2,(IF(2-$B$19=0, 0, (IF(2-$B$19=1,(VLOOKUP(1,Tablas!$A$73:$G$75,6,TRUE)), (IF(2-$B$19=2, (VLOOKUP(2,Tablas!$A$73:$G$75,6,TRUE)), 0)))))), (IF($B$17=1,(IF(1-$B$19=0, 0, (IF(1-$B$19=1,(VLOOKUP(1,Tablas!$A$73:$G$75,6,TRUE)),0)))),0)))))))))))))), (IF($B$17=0, 0, (IF($B$19>$B$17, (VLOOKUP($B$17,Tablas!$A$73:$G$75,6,TRUE)), (IF($B$17=4,(IF(4-$B$19=0, 0, (IF(4-$B$19=1, (VLOOKUP(1,Tablas!$A$73:$G$75,6,TRUE)), (IF(4-$B$19=2, (VLOOKUP(2,Tablas!$A$73:$G$75,6,TRUE)), (IF(4-$B$19=3, (VLOOKUP(3,Tablas!$A$73:$G$75,6,TRUE)), (IF(4-$B$19=4, (VLOOKUP(3,Tablas!$A$73:$G$75,6,TRUE)), 0)))))))))), (IF($B$17=5,(IF(5-$B$19=0, (VLOOKUP(1,Tablas!$A$73:$G$75,6,TRUE)), (IF(5-$B$19=1, (VLOOKUP(1,Tablas!$A$73:$G$75,6,TRUE)), (IF(5-$B$19=2, (VLOOKUP(2,Tablas!$A$73:$G$75,6,TRUE)), (IF(5-$B$19=3, (VLOOKUP(3,Tablas!$A$73:$G$75,6,TRUE)), (IF(5-$B$19=4, (VLOOKUP(3,Tablas!$A$73:$G$75,6,TRUE)), (VLOOKUP(3,Tablas!$A$73:$G$75,6,TRUE)))))))))))), (IF($B$17=6,(IF(6-$B$19=0, (VLOOKUP(2,Tablas!$A$73:$G$75,6,TRUE)), (IF(6-$B$19=1, (VLOOKUP(2,Tablas!$A$73:$G$75,6,TRUE)), (IF(6-$B$19=2, (VLOOKUP(2,Tablas!$A$73:$G$75,6,TRUE)), (IF(6-$B$19=3, (VLOOKUP(3,Tablas!$A$73:$G$75,6,TRUE)), (IF(6-$B$19=4, (VLOOKUP(3,Tablas!$A$73:$G$75,6,TRUE)), (VLOOKUP(3,Tablas!$A$73:$G$75,6,TRUE)))))))))))), (IF($B$17>6,(IF(7-$B$19=0, (VLOOKUP(3,Tablas!$A$73:$G$75,6,TRUE)), (IF(7-$B$19=1, (VLOOKUP(3,Tablas!$A$73:$G$75,6,TRUE)), (IF(7-$B$19=2, (VLOOKUP(3,Tablas!$A$73:$G$75,6,TRUE)), (IF(7-$B$19=3, (VLOOKUP(3,Tablas!$A$73:$G$75,6,TRUE)), (IF(7-$B$19=4, (VLOOKUP(3,Tablas!$A$73:$G$75,6,TRUE)), (VLOOKUP(3,Tablas!$A$73:$G$75,6,TRUE)))))))))))), (IF($B$17=3,(IF(3-$B$19=0,0, (IF(3-$B$19=1,(VLOOKUP(1,Tablas!$A$73:$G$75,6,TRUE)), (IF(3-$B$19=2, (VLOOKUP(2,Tablas!$A$73:$G$75,6,TRUE)), (VLOOKUP(3,Tablas!$A$73:$G$75,6,TRUE)))))))), (IF($B$17=2,(IF(2-$B$19=0, 0, (IF(2-$B$19=1,(VLOOKUP(1,Tablas!$A$73:$G$75,6,TRUE)), (IF(2-$B$19=2, (VLOOKUP(2,Tablas!$A$73:$G$75,6,TRUE)), 0)))))), (IF($B$17=1,(IF(1-$B$19=0, 0, (IF(1-$B$19=1,(VLOOKUP(1,Tablas!$A$73:$G$75,6,TRUE)),0)))),0))))))))))))))))))) -> 2782.05 | G34: =IF($B$15=1, (IF($B$17=0, 0, (IF($B$19>$B$17, (VLOOKUP($B$17,Tablas!$A$73:$G$75,7,TRUE)), (IF($B$17>4,(IF($B$19=0, (VLOOKUP(3,Tablas!$A$73:$G$75,7,TRUE)), (IF($B$19=1, (VLOOKUP(3,Tablas!$A$73:$G$75,7,TRUE)), (IF($B$19=2, (VLOOKUP(3,Tablas!$A$73:$G$75,7,TRUE)), (VLOOKUP(3,Tablas!$A$73:$G$75,7,TRUE)))))))), (IF($B$17=4,(IF(4-$B$19=0,(VLOOKUP(2,Tablas!$A$73:$G$75,7,TRUE)), (IF(4-$B$19=1,(VLOOKUP(2,Tablas!$A$73:$G$75,7,TRUE)), (IF(4-$B$19=2, (VLOOKUP(2,Tablas!$A$73:$G$75,7,TRUE)), (VLOOKUP(3,Tablas!$A$73:$G$75,7,TRUE)))))))), (IF($B$17=3,(IF(3-$B$19=0,(VLOOKUP(1,Tablas!$A$73:$G$75,7,TRUE)), (IF(3-$B$19=1,(VLOOKUP(1,Tablas!$A$73:$G$75,7,TRUE)), (IF(3-$B$19=2, (VLOOKUP(2,Tablas!$A$73:$G$75,7,TRUE)), (VLOOKUP(3,Tablas!$A$73:$G$75,7,TRUE)))))))), (IF($B$17=2,(IF(2-$B$19=0, 0, (IF(2-$B$19=1,(VLOOKUP(1,Tablas!$A$73:$G$75,7,TRUE)), (IF(2-$B$19=2, (VLOOKUP(2,Tablas!$A$73:$G$75,7,TRUE)), 0)))))), (IF($B$17=1,(IF(1-$B$19=0, 0, (IF(1-$B$19=1,(VLOOKUP(1,Tablas!$A$73:$G$75,7,TRUE)),0)))),0)))))))))))))), (IF($B$17=0, 0, (IF($B$19>$B$17, (VLOOKUP($B$17,Tablas!$A$73:$G$75,7,TRUE)), (IF($B$17=4,(IF(4-$B$19=0, 0, (IF(4-$B$19=1, (VLOOKUP(1,Tablas!$A$73:$G$75,7,TRUE)), (IF(4-$B$19=2, (VLOOKUP(2,Tablas!$A$73:$G$75,7,TRUE)), (IF(4-$B$19=3, (VLOOKUP(3,Tablas!$A$73:$G$75,7,TRUE)), (IF(4-$B$19=4, (VLOOKUP(3,Tablas!$A$73:$G$75,7,TRUE)), 0)))))))))), (IF($B$17=5,(IF(5-$B$19=0, (VLOOKUP(1,Tablas!$A$73:$G$75,7,TRUE)), (IF(5-$B$19=1, (VLOOKUP(1,Tablas!$A$73:$G$75,7,TRUE)), (IF(5-$B$19=2, (VLOOKUP(2,Tablas!$A$73:$G$75,7,TRUE)), (IF(5-$B$19=3, (VLOOKUP(3,Tablas!$A$73:$G$75,7,TRUE)), (IF(5-$B$19=4, (VLOOKUP(3,Tablas!$A$73:$G$75,7,TRUE)), (VLOOKUP(3,Tablas!$A$73:$G$75,7,TRUE)))))))))))), (IF($B$17=6,(IF(6-$B$19=0, (VLOOKUP(2,Tablas!$A$73:$G$75,7,TRUE)), (IF(6-$B$19=1, (VLOOKUP(2,Tablas!$A$73:$G$75,7,TRUE)), (IF(6-$B$19=2, (VLOOKUP(2,Tablas!$A$73:$G$75,7,TRUE)), (IF(6-$B$19=3, (VLOOKUP(3,Tablas!$A$73:$G$75,7,TRUE)), (IF(6-$B$19=4, (VLOOKUP(3,Tablas!$A$73:$G$75,7,TRUE)), (VLOOKUP(3,Tablas!$A$73:$G$75,7,TRUE)))))))))))), (IF($B$17>6,(IF(7-$B$19=0, (VLOOKUP(3,Tablas!$A$73:$G$75,7,TRUE)), (IF(7-$B$19=1, (VLOOKUP(3,Tablas!$A$73:$G$75,7,TRUE)), (IF(7-$B$19=2, (VLOOKUP(3,Tablas!$A$73:$G$75,7,TRUE)), (IF(7-$B$19=3, (VLOOKUP(3,Tablas!$A$73:$G$75,7,TRUE)), (IF(7-$B$19=4, (VLOOKUP(3,Tablas!$A$73:$G$75,7,TRUE)), (VLOOKUP(3,Tablas!$A$73:$G$75,7,TRUE)))))))))))), (IF($B$17=3,(IF(3-$B$19=0,0, (IF(3-$B$19=1,(VLOOKUP(1,Tablas!$A$73:$G$75,7,TRUE)), (IF(3-$B$19=2, (VLOOKUP(2,Tablas!$A$73:$G$75,7,TRUE)), (VLOOKUP(3,Tablas!$A$73:$G$75,7,TRUE)))))))), (IF($B$17=2,(IF(2-$B$19=0, 0, (IF(2-$B$19=1,(VLOOKUP(1,Tablas!$A$73:$G$75,7,TRUE)), (IF(2-$B$19=2, (VLOOKUP(2,Tablas!$A$73:$G$75,7,TRUE)), 0)))))), (IF($B$17=1,(IF(1-$B$19=0, 0, (IF(1-$B$19=1,(VLOOKUP(1,Tablas!$A$73:$G$75,7,TRUE)),0)))),0))))))))))))))))))) -> 2102.05
A35: Total de Prima neta | C35: =SUM(C32:C34) -> 33906.5 | D35: =SUM(D32:D34) -> 29716.85 | E35: 23957.25 | F35: 20777.4 | G35: 15699.5
A36: Ajuste por la variante con coaseguro fuera del país de residencia | C36: =IF('INGRESO DE DATOS'!$P$3,C35*-15%,0) -> 0 | D36: =IF('INGRESO DE DATOS'!$P$3,D35*-15%,0) -> 0 | E36: =IF('INGRESO DE DATOS'!$P$3,E35*-15%,0) -> 0 | F36: =IF('INGRESO DE DATOS'!$P$3,F35*-15%,0) -> 0 | G36: =IF('INGRESO DE DATOS'!$P$3,G35*-15%,0) -> 0
A37: Tarifa administrativa annual | C37: 75 | D37: 75 | E37: 75 | F37: 75 | G37: 75
A38: IVA (12%) | C38: =(C35+C37)*'INGRESO DE DATOS'!$S$30 -> 4077.78 | D38: =(D35+D37)*'INGRESO DE DATOS'!$S$30 -> 3575.022 | E38: =(E35+E37)*'INGRESO DE DATOS'!$S$30 -> 2883.87 | F38: =(F35+F37)*'INGRESO DE DATOS'!$S$30 -> 2502.288 | G38: =(G35+G37)*'INGRESO DE DATOS'!$S$30 -> 1892.94
A39: ITBMS (7%)
A40: TOTAL ANUAL | C40: =SUM(C35:C39) -> 38059.28 | D40: =SUM(D35:D39) -> 33366.872 | E40: 26916.12 | F40: =SUM(F35:F39) -> 23354.688 | G40: 17667.44
A41: Ahorros en tarifas de prima para Dependientes | C41: =IF($B$15=1,IF($B$17=0,0,IF($B$19=0,0,IF($B$19=1,(VLOOKUP(1,Tablas!$A$73:$G$75,3,TRUE)),(VLOOKUP(2,Tablas!$A$73:$G$75,3,TRUE))))), IF($B$17=0,0,IF($B$19=0,0,IF($B$19=1,(VLOOKUP(1,Tablas!$A$73:$G$75,3,TRUE)),IF($B$19=2,(VLOOKUP(2,Tablas!$A$73:$G$75,3,TRUE)), (VLOOKUP(3,Tablas!$A$73:$G$75,3,TRUE))))))) -> 4430.2 | D41: =IF($B$15=1,IF($B$17=0,0,IF($B$19=0,0,IF($B$19=1,(VLOOKUP(1,Tablas!$A$73:$G$75,4,TRUE)),(VLOOKUP(2,Tablas!$A$73:$G$75,4,TRUE))))), IF($B$17=0,0,IF($B$19=0,0,IF($B$19=1,(VLOOKUP(1,Tablas!$A$73:$G$75,4,TRUE)),IF($B$19=2,(VLOOKUP(2,Tablas!$A$73:$G$75,4,TRUE)), (VLOOKUP(3,Tablas!$A$73:$G$75,4,TRUE))))))) -> 3881.1 | E41: =IF($B$15=1,IF($B$17=0,0,IF($B$19=0,0,IF($B$19=1,(VLOOKUP(1,Tablas!$A$73:$G$75,5,TRUE)),(VLOOKUP(2,Tablas!$A$73:$G$75,5,TRUE))))), IF($B$17=0,0,IF($B$19=0,0,IF($B$19=1,(VLOOKUP(1,Tablas!$A$73:$G$75,5,TRUE)),IF($B$19=2,(VLOOKUP(2,Tablas!$A$73:$G$75,5,TRUE)), (VLOOKUP(3,Tablas!$A$73:$G$75,5,TRUE))))))) -> 3205.35 | F41: =IF($B$15=1,IF($B$17=0,0,IF($B$19=0,0,IF($B$19=1,(VLOOKUP(1,Tablas!$A$73:$G$75,6,TRUE)),(VLOOKUP(2,Tablas!$A$73:$G$75,6,TRUE))))), IF($B$17=0,0,IF($B$19=0,0,IF($B$19=1,(VLOOKUP(1,Tablas!$A$73:$G$75,6,TRUE)),IF($B$19=2,(VLOOKUP(2,Tablas!$A$73:$G$75,6,TRUE)), (VLOOKUP(3,Tablas!$A$73:$G$75,6,TRUE))))))) -> 2782.05 | G41: =IF($B$15=1,IF($B$17=0,0,IF($B$19=0,0,IF($B$19=1,(VLOOKUP(1,Tablas!$A$73:$G$75,7,TRUE)),(VLOOKUP(2,Tablas!$A$73:$G$75,7,TRUE))))), IF($B$17=0,0,IF($B$19=0,0,IF($B$19=1,(VLOOKUP(1,Tablas!$A$73:$G$75,7,TRUE)),IF($B$19=2,(VLOOKUP(2,Tablas!$A$73:$G$75,7,TRUE)), (VLOOKUP(3,Tablas!$A$73:$G$75,7,TRUE))))))) -> 2102.05
A43: TARIFAS SEMIANUALES
A44: Prima para Asegurado Titular | C44: =VLOOKUP($B$21,Tablas!$A$458:$G$524,3,TRUE) -> 6588.112 | D44: =VLOOKUP($B$21,Tablas!$A$458:$G$524,4,TRUE) -> 5774.509 | E44: =VLOOKUP($B$21,Tablas!$A$458:$G$524,5,TRUE) -> 4673.9375 | F44: =VLOOKUP($B$21,Tablas!$A$458:$G$524,6,TRUE) -> 4053.1485 | G44: =VLOOKUP($B$21,Tablas!$A$458:$G$524,7,TRUE) -> 3062.0485
A45: Prima para conyuge | C45: =IF($B$15=1,0,(VLOOKUP($G$21,Tablas!$A$458:$G$524,3,TRUE))) -> 9034.327 | D45: =IF($B$15=1,0,(VLOOKUP($G$21,Tablas!$A$458:$G$524,4,TRUE))) -> 7918.4385 | E45: =IF($B$15=1,0,(VLOOKUP($G$21,Tablas!$A$458:$G$524,5,TRUE))) -> 6324.5695 | F45: =IF($B$15=1,0,(VLOOKUP($G$21,Tablas!$A$458:$G$524,6,TRUE))) -> 5484.387 | G45: =IF($B$15=1,0,(VLOOKUP($G$21,Tablas!$A$458:$G$524,7,TRUE))) -> 4144.6
A46: Prima para hijo (s) | C46: =IF($B$15=1, (IF($B$17=0, 0, (IF($B$19>$B$17, (VLOOKUP($B$17,Tablas!$A$525:$G$527,3,TRUE)), (IF($B$17>4,(IF($B$19=0, (VLOOKUP(3,Tablas!$A$525:$G$527,3,TRUE)), (IF($B$19=1, (VLOOKUP(3,Tablas!$A$525:$G$527,3,TRUE)), (IF($B$19=2, (VLOOKUP(3,Tablas!$A$525:$G$527,3,TRUE)), (VLOOKUP(3,Tablas!$A$525:$G$527,3,TRUE)))))))), (IF($B$17=4,(IF(4-$B$19=0,(VLOOKUP(2,Tablas!$A$525:$G$527,3,TRUE)), (IF(4-$B$19=1,(VLOOKUP(2,Tablas!$A$525:$G$527,3,TRUE)), (IF(4-$B$19=2, (VLOOKUP(2,Tablas!$A$525:$G$527,3,TRUE)), (VLOOKUP(3,Tablas!$A$525:$G$527,3,TRUE)))))))), (IF($B$17=3,(IF(3-$B$19=0,(VLOOKUP(1,Tablas!$A$525:$G$527,3,TRUE)), (IF(3-$B$19=1,(VLOOKUP(1,Tablas!$A$525:$G$527,3,TRUE)), (IF(3-$B$19=2, (VLOOKUP(2,Tablas!$A$525:$G$527,3,TRUE)), (VLOOKUP(3,Tablas!$A$525:$G$527,3,TRUE)))))))), (IF($B$17=2,(IF(2-$B$19=0, 0, (IF(2-$B$19=1,(VLOOKUP(1,Tablas!$A$525:$G$527,3,TRUE)), (IF(2-$B$19=2, (VLOOKUP(2,Tablas!$A$525:$G$527,3,TRUE)), 0)))))), (IF($B$17=1,(IF(1-$B$19=0, 0, (IF(1-$B$19=1,(VLOOKUP(1,Tablas!$A$525:$G$527,3,TRUE)),0)))),0)))))))))))))), (IF($B$17=0, 0, (IF($B$19>$B$17, (VLOOKUP($B$17,Tablas!$A$525:$G$527,3,TRUE)), (IF($B$17=4,(IF(4-$B$19=0, 0, (IF(4-$B$19=1, (VLOOKUP(1,Tablas!$A$525:$G$527,3,TRUE)), (IF(4-$B$19=2, (VLOOKUP(2,Tablas!$A$525:$G$527,3,TRUE)), (IF(4-$B$19=3, (VLOOKUP(3,Tablas!$A$525:$G$527,3,TRUE)), (IF(4-$B$19=4, (VLOOKUP(3,Tablas!$A$525:$G$527,3,TRUE)), 0)))))))))), (IF($B$17=5,(IF(5-$B$19=0, (VLOOKUP(1,Tablas!$A$525:$G$527,3,TRUE)), (IF(5-$B$19=1, (VLOOKUP(1,Tablas!$A$525:$G$527,3,TRUE)), (IF(5-$B$19=2, (VLOOKUP(2,Tablas!$A$525:$G$527,3,TRUE)), (IF(5-$B$19=3, (VLOOKUP(3,Tablas!$A$525:$G$527,3,TRUE)), (IF(5-$B$19=4, (VLOOKUP(3,Tablas!$A$525:$G$527,3,TRUE)), (VLOOKUP(3,Tablas!$A$525:$G$527,3,TRUE)))))))))))), (IF($B$17=6,(IF(6-$B$19=0, (VLOOKUP(2,Tablas!$A$525:$G$527,3,TRUE)), (IF(6-$B$19=1, (VLOOKUP(2,Tablas!$A$525:$G$527,3,TRUE)), (IF(6-$B$19=2, (VLOOKUP(2,Tablas!$A$525:$G$527,3,TRUE)), (IF(6-$B$19=3, (VLOOKUP(3,Tablas!$A$525:$G$527,3,TRUE)), (IF(6-$B$19=4, (VLOOKUP(3,Tablas!$A$525:$G$527,3,TRUE)), (VLOOKUP(3,Tablas!$A$525:$G$527,3,TRUE)))))))))))), (IF($B$17>6,(IF(7-$B$19=0, (VLOOKUP(3,Tablas!$A$525:$G$527,3,TRUE)), (IF(7-$B$19=1, (VLOOKUP(3,Tablas!$A$525:$G$527,3,TRUE)), (IF(7-$B$19=2, (VLOOKUP(3,Tablas!$A$525:$G$527,3,TRUE)), (IF(7-$B$19=3, (VLOOKUP(3,Tablas!$A$525:$G$527,3,TRUE)), (IF(7-$B$19=4, (VLOOKUP(3,Tablas!$A$525:$G$527,3,TRUE)), (VLOOKUP(3,Tablas!$A$525:$G$527,3,TRUE)))))))))))), (IF($B$17=3,(IF(3-$B$19=0,0, (IF(3-$B$19=1,(VLOOKUP(1,Tablas!$A$525:$G$527,3,TRUE)), (IF(3-$B$19=2, (VLOOKUP(2,Tablas!$A$525:$G$527,3,TRUE)), (VLOOKUP(3,Tablas!$A$525:$G$527,3,TRUE)))))))), (IF($B$17=2,(IF(2-$B$19=0, 0, (IF(2-$B$19=1,(VLOOKUP(1,Tablas!$A$525:$G$527,3,TRUE)), (IF(2-$B$19=2, (VLOOKUP(2,Tablas!$A$525:$G$527,3,TRUE)), 0)))))), (IF($B$17=1,(IF(1-$B$19=0, 0, (IF(1-$B$19=1,(VLOOKUP(1,Tablas!$A$525:$G$527,3,TRUE)),0)))),0))))))))))))))))))) -> 2348.006 | D46: =IF($B$15=1, (IF($B$17=0, 0, (IF($B$19>$B$17, (VLOOKUP($B$17,Tablas!$A$525:$G$527,4,TRUE)), (IF($B$17>4,(IF($B$19=0, (VLOOKUP(3,Tablas!$A$525:$G$527,4,TRUE)), (IF($B$19=1, (VLOOKUP(3,Tablas!$A$525:$G$527,4,TRUE)), (IF($B$19=2, (VLOOKUP(3,Tablas!$A$525:$G$527,4,TRUE)), (VLOOKUP(3,Tablas!$A$525:$G$527,4,TRUE)))))))), (IF($B$17=4,(IF(4-$B$19=0,(VLOOKUP(2,Tablas!$A$525:$G$527,4,TRUE)), (IF(4-$B$19=1,(VLOOKUP(2,Tablas!$A$525:$G$527,4,TRUE)), (IF(4-$B$19=2, (VLOOKUP(2,Tablas!$A$525:$G$527,4,TRUE)), (VLOOKUP(3,Tablas!$A$525:$G$527,4,TRUE)))))))), (IF($B$17=3,(IF(3-$B$19=0,(VLOOKUP(1,Tablas!$A$525:$G$527,4,TRUE)), (IF(3-$B$19=1,(VLOOKUP(1,Tablas!$A$525:$G$527,4,TRUE)), (IF(3-$B$19=2, (VLOOKUP(2,Tablas!$A$525:$G$527,4,TRUE)), (VLOOKUP(3,Tablas!$A$525:$G$527,4,TRUE)))))))), (IF($B$17=2,(IF(2-$B$19=0, 0, (IF(2-$B$19=1,(VLOOKUP(1,Tablas!$A$525:$G$527,4,TRUE)), (IF(2-$B$19=2, (VLOOKUP(2,Tablas!$A$525:$G$527,4,TRUE)), 0)))))), (IF($B$17=1,(IF(1-$B$19=0, 0, (IF(1-$B$19=1,(VLOOKUP(1,Tablas!$A$525:$G$527,4,TRUE)),0)))),0)))))))))))))), (IF($B$17=0, 0, (IF($B$19>$B$17, (VLOOKUP($B$17,Tablas!$A$525:$G$527,4,TRUE)), (IF($B$17=4,(IF(4-$B$19=0, 0, (IF(4-$B$19=1, (VLOOKUP(1,Tablas!$A$525:$G$527,4,TRUE)), (IF(4-$B$19=2, (VLOOKUP(2,Tablas!$A$525:$G$527,4,TRUE)), (IF(4-$B$19=3, (VLOOKUP(3,Tablas!$A$525:$G$527,4,TRUE)), (IF(4-$B$19=4, (VLOOKUP(3,Tablas!$A$525:$G$527,4,TRUE)), 0)))))))))), (IF($B$17=5,(IF(5-$B$19=0, (VLOOKUP(1,Tablas!$A$525:$G$527,4,TRUE)), (IF(5-$B$19=1, (VLOOKUP(1,Tablas!$A$525:$G$527,4,TRUE)), (IF(5-$B$19=2, (VLOOKUP(2,Tablas!$A$525:$G$527,4,TRUE)), (IF(5-$B$19=3, (VLOOKUP(3,Tablas!$A$525:$G$527,4,TRUE)), (IF(5-$B$19=4, (VLOOKUP(3,Tablas!$A$525:$G$527,4,TRUE)), (VLOOKUP(3,Tablas!$A$525:$G$527,4,TRUE)))))))))))), (IF($B$17=6,(IF(6-$B$19=0, (VLOOKUP(2,Tablas!$A$525:$G$527,4,TRUE)), (IF(6-$B$19=1, (VLOOKUP(2,Tablas!$A$525:$G$527,4,TRUE)), (IF(6-$B$19=2, (VLOOKUP(2,Tablas!$A$525:$G$527,4,TRUE)), (IF(6-$B$19=3, (VLOOKUP(3,Tablas!$A$525:$G$527,4,TRUE)), (IF(6-$B$19=4, (VLOOKUP(3,Tablas!$A$525:$G$527,4,TRUE)), (VLOOKUP(3,Tablas!$A$525:$G$527,4,TRUE)))))))))))), (IF($B$17>6,(IF(7-$B$19=0, (VLOOKUP(3,Tablas!$A$525:$G$527,4,TRUE)), (IF(7-$B$19=1, (VLOOKUP(3,Tablas!$A$525:$G$527,4,TRUE)), (IF(7-$B$19=2, (VLOOKUP(3,Tablas!$A$525:$G$527,4,TRUE)), (IF(7-$B$19=3, (VLOOKUP(3,Tablas!$A$525:$G$527,4,TRUE)), (IF(7-$B$19=4, (VLOOKUP(3,Tablas!$A$525:$G$527,4,TRUE)), (VLOOKUP(3,Tablas!$A$525:$G$527,4,TRUE)))))))))))), (IF($B$17=3,(IF(3-$B$19=0,0, (IF(3-$B$19=1,(VLOOKUP(1,Tablas!$A$525:$G$527,4,TRUE)), (IF(3-$B$19=2, (VLOOKUP(2,Tablas!$A$525:$G$527,4,TRUE)), (VLOOKUP(3,Tablas!$A$525:$G$527,4,TRUE)))))))), (IF($B$17=2,(IF(2-$B$19=0, 0, (IF(2-$B$19=1,(VLOOKUP(1,Tablas!$A$525:$G$527,4,TRUE)), (IF(2-$B$19=2, (VLOOKUP(2,Tablas!$A$525:$G$527,4,TRUE)), 0)))))), (IF($B$17=1,(IF(1-$B$19=0, 0, (IF(1-$B$19=1,(VLOOKUP(1,Tablas!$A$525:$G$527,4,TRUE)),0)))),0))))))))))))))))))) -> 2056.983 | E46: =IF($B$15=1, (IF($B$17=0, 0, (IF($B$19>$B$17, (VLOOKUP($B$17,Tablas!$A$525:$G$527,5,TRUE)), (IF($B$17>4,(IF($B$19=0, (VLOOKUP(3,Tablas!$A$525:$G$527,5,TRUE)), (IF($B$19=1, (VLOOKUP(3,Tablas!$A$525:$G$527,5,TRUE)), (IF($B$19=2, (VLOOKUP(3,Tablas!$A$525:$G$527,5,TRUE)), (VLOOKUP(3,Tablas!$A$525:$G$527,5,TRUE)))))))), (IF($B$17=4,(IF(4-$B$19=0,(VLOOKUP(2,Tablas!$A$525:$G$527,5,TRUE)), (IF(4-$B$19=1,(VLOOKUP(2,Tablas!$A$525:$G$527,5,TRUE)), (IF(4-$B$19=2, (VLOOKUP(2,Tablas!$A$525:$G$527,5,TRUE)), (VLOOKUP(3,Tablas!$A$525:$G$527,5,TRUE)))))))), (IF($B$17=3,(IF(3-$B$19=0,(VLOOKUP(1,Tablas!$A$525:$G$527,5,TRUE)), (IF(3-$B$19=1,(VLOOKUP(1,Tablas!$A$525:$G$527,5,TRUE)), (IF(3-$B$19=2, (VLOOKUP(2,Tablas!$A$525:$G$527,5,TRUE)), (VLOOKUP(3,Tablas!$A$525:$G$527,5,TRUE)))))))), (IF($B$17=2,(IF(2-$B$19=0, 0, (IF(2-$B$19=1,(VLOOKUP(1,Tablas!$A$525:$G$527,5,TRUE)), (IF(2-$B$19=2, (VLOOKUP(2,Tablas!$A$525:$G$527,5,TRUE)), 0)))))), (IF($B$17=1,(IF(1-$B$19=0, 0, (IF(1-$B$19=1,(VLOOKUP(1,Tablas!$A$525:$G$527,5,TRUE)),0)))),0)))))))))))))), (IF($B$17=0, 0, (IF($B$19>$B$17, (VLOOKUP($B$17,Tablas!$A$525:$G$527,5,TRUE)), (IF($B$17=4,(IF(4-$B$19=0, 0, (IF(4-$B$19=1, (VLOOKUP(1,Tablas!$A$525:$G$527,5,TRUE)), (IF(4-$B$19=2, (VLOOKUP(2,Tablas!$A$525:$G$527,5,TRUE)), (IF(4-$B$19=3, (VLOOKUP(3,Tablas!$A$525:$G$527,5,TRUE)), (IF(4-$B$19=4, (VLOOKUP(3,Tablas!$A$525:$G$527,5,TRUE)), 0)))))))))), (IF($B$17=5,(IF(5-$B$19=0, (VLOOKUP(1,Tablas!$A$525:$G$527,5,TRUE)), (IF(5-$B$19=1, (VLOOKUP(1,Tablas!$A$525:$G$527,5,TRUE)), (IF(5-$B$19=2, (VLOOKUP(2,Tablas!$A$525:$G$527,5,TRUE)), (IF(5-$B$19=3, (VLOOKUP(3,Tablas!$A$525:$G$527,5,TRUE)), (IF(5-$B$19=4, (VLOOKUP(3,Tablas!$A$525:$G$527,5,TRUE)), (VLOOKUP(3,Tablas!$A$525:$G$527,5,TRUE)))))))))))), (IF($B$17=6,(IF(6-$B$19=0, (VLOOKUP(2,Tablas!$A$525:$G$527,5,TRUE)), (IF(6-$B$19=1, (VLOOKUP(2,Tablas!$A$525:$G$527,5,TRUE)), (IF(6-$B$19=2, (VLOOKUP(2,Tablas!$A$525:$G$527,5,TRUE)), (IF(6-$B$19=3, (VLOOKUP(3,Tablas!$A$525:$G$527,5,TRUE)), (IF(6-$B$19=4, (VLOOKUP(3,Tablas!$A$525:$G$527,5,TRUE)), (VLOOKUP(3,Tablas!$A$525:$G$527,5,TRUE)))))))))))), (IF($B$17>6,(IF(7-$B$19=0, (VLOOKUP(3,Tablas!$A$525:$G$527,5,TRUE)), (IF(7-$B$19=1, (VLOOKUP(3,Tablas!$A$525:$G$527,5,TRUE)), (IF(7-$B$19=2, (VLOOKUP(3,Tablas!$A$525:$G$527,5,TRUE)), (IF(7-$B$19=3, (VLOOKUP(3,Tablas!$A$525:$G$527,5,TRUE)), (IF(7-$B$19=4, (VLOOKUP(3,Tablas!$A$525:$G$527,5,TRUE)), (VLOOKUP(3,Tablas!$A$525:$G$527,5,TRUE)))))))))))), (IF($B$17=3,(IF(3-$B$19=0,0, (IF(3-$B$19=1,(VLOOKUP(1,Tablas!$A$525:$G$527,5,TRUE)), (IF(3-$B$19=2, (VLOOKUP(2,Tablas!$A$525:$G$527,5,TRUE)), (VLOOKUP(3,Tablas!$A$525:$G$527,5,TRUE)))))))), (IF($B$17=2,(IF(2-$B$19=0, 0, (IF(2-$B$19=1,(VLOOKUP(1,Tablas!$A$525:$G$527,5,TRUE)), (IF(2-$B$19=2, (VLOOKUP(2,Tablas!$A$525:$G$527,5,TRUE)), 0)))))), (IF($B$17=1,(IF(1-$B$19=0, 0, (IF(1-$B$19=1,(VLOOKUP(1,Tablas!$A$525:$G$527,5,TRUE)),0)))),0))))))))))))))))))) -> 1698.8355 | F46: =IF($B$15=1, (IF($B$17=0, 0, (IF($B$19>$B$17, (VLOOKUP($B$17,Tablas!$A$525:$G$527,6,TRUE)), (IF($B$17>4,(IF($B$19=0, (VLOOKUP(3,Tablas!$A$525:$G$527,6,TRUE)), (IF($B$19=1, (VLOOKUP(3,Tablas!$A$525:$G$527,6,TRUE)), (IF($B$19=2, (VLOOKUP(3,Tablas!$A$525:$G$527,6,TRUE)), (VLOOKUP(3,Tablas!$A$525:$G$527,7,TRUE)))))))), (IF($B$17=4,(IF(4-$B$19=0,(VLOOKUP(2,Tablas!$A$525:$G$527,6,TRUE)), (IF(4-$B$19=1,(VLOOKUP(2,Tablas!$A$525:$G$527,6,TRUE)), (IF(4-$B$19=2, (VLOOKUP(2,Tablas!$A$525:$G$527,6,TRUE)), (VLOOKUP(3,Tablas!$A$525:$G$527,6,TRUE)))))))), (IF($B$17=3,(IF(3-$B$19=0,(VLOOKUP(1,Tablas!$A$525:$G$527,6,TRUE)), (IF(3-$B$19=1,(VLOOKUP(1,Tablas!$A$525:$G$527,6,TRUE)), (IF(3-$B$19=2, (VLOOKUP(2,Tablas!$A$525:$G$527,6,TRUE)), (VLOOKUP(3,Tablas!$A$525:$G$527,6,TRUE)))))))), (IF($B$17=2,(IF(2-$B$19=0, 0, (IF(2-$B$19=1,(VLOOKUP(1,Tablas!$A$525:$G$527,6,TRUE)), (IF(2-$B$19=2, (VLOOKUP(2,Tablas!$A$525:$G$527,6,TRUE)), 0)))))), (IF($B$17=1,(IF(1-$B$19=0, 0, (IF(1-$B$19=1,(VLOOKUP(1,Tablas!$A$525:$G$527,6,TRUE)),0)))),0)))))))))))))), (IF($B$17=0, 0, (IF($B$19>$B$17, (VLOOKUP($B$17,Tablas!$A$525:$G$527,6,TRUE)), (IF($B$17=4,(IF(4-$B$19=0, 0, (IF(4-$B$19=1, (VLOOKUP(1,Tablas!$A$525:$G$527,6,TRUE)), (IF(4-$B$19=2, (VLOOKUP(2,Tablas!$A$525:$G$527,6,TRUE)), (IF(4-$B$19=3, (VLOOKUP(3,Tablas!$A$525:$G$527,6,TRUE)), (IF(4-$B$19=4, (VLOOKUP(3,Tablas!$A$525:$G$527,6,TRUE)), 0)))))))))), (IF($B$17=5,(IF(5-$B$19=0, (VLOOKUP(1,Tablas!$A$525:$G$527,6,TRUE)), (IF(5-$B$19=1, (VLOOKUP(1,Tablas!$A$525:$G$527,6,TRUE)), (IF(5-$B$19=2, (VLOOKUP(2,Tablas!$A$525:$G$527,6,TRUE)), (IF(5-$B$19=3, (VLOOKUP(3,Tablas!$A$525:$G$527,6,TRUE)), (IF(5-$B$19=4, (VLOOKUP(3,Tablas!$A$525:$G$527,6,TRUE)), (VLOOKUP(3,Tablas!$A$525:$G$527,7,TRUE)))))))))))), (IF($B$17=6,(IF(6-$B$19=0, (VLOOKUP(2,Tablas!$A$525:$G$527,6,TRUE)), (IF(6-$B$19=1, (VLOOKUP(2,Tablas!$A$525:$G$527,6,TRUE)), (IF(6-$B$19=2, (VLOOKUP(2,Tablas!$A$525:$G$527,6,TRUE)), (IF(6-$B$19=3, (VLOOKUP(3,Tablas!$A$525:$G$527,6,TRUE)), (IF(6-$B$19=4, (VLOOKUP(3,Tablas!$A$525:$G$527,6,TRUE)), (VLOOKUP(3,Tablas!$A$525:$G$527,7,TRUE)))))))))))), (IF($B$17>6,(IF(7-$B$19=0, (VLOOKUP(3,Tablas!$A$525:$G$527,6,TRUE)), (IF(7-$B$19=1, (VLOOKUP(3,Tablas!$A$525:$G$527,6,TRUE)), (IF(7-$B$19=2, (VLOOKUP(3,Tablas!$A$525:$G$527,6,TRUE)), (IF(7-$B$19=3, (VLOOKUP(3,Tablas!$A$525:$G$527,6,TRUE)), (IF(7-$B$19=4, (VLOOKUP(3,Tablas!$A$525:$G$527,6,TRUE)), (VLOOKUP(3,Tablas!$A$525:$G$527,6,TRUE)))))))))))), (IF($B$17=3,(IF(3-$B$19=0,0, (IF(3-$B$19=1,(VLOOKUP(1,Tablas!$A$525:$G$527,6,TRUE)), (IF(3-$B$19=2, (VLOOKUP(2,Tablas!$A$525:$G$527,6,TRUE)), (VLOOKUP(3,Tablas!$A$525:$G$527,7,TRUE)))))))), (IF($B$17=2,(IF(2-$B$19=0, 0, (IF(2-$B$19=1,(VLOOKUP(1,Tablas!$A$525:$G$527,6,TRUE)), (IF(2-$B$19=2, (VLOOKUP(2,Tablas!$A$525:$G$527,6,TRUE)), 0)))))), (IF($B$17=1,(IF(1-$B$19=0, 0, (IF(1-$B$19=1,(VLOOKUP(1,Tablas!$A$525:$G$527,6,TRUE)),0)))),0))))))))))))))))))) -> 1474.4865 | G46: =IF($B$15=1, (IF($B$17=0, 0, (IF($B$19>$B$17, (VLOOKUP($B$17,Tablas!$A$525:$G$527,7,TRUE)), (IF($B$17>4,(IF($B$19=0, (VLOOKUP(3,Tablas!$A$525:$G$527,7,TRUE)), (IF($B$19=1, (VLOOKUP(3,Tablas!$A$525:$G$527,7,TRUE)), (IF($B$19=2, (VLOOKUP(3,Tablas!$A$525:$G$527,7,TRUE)), (VLOOKUP(3,Tablas!$A$525:$G$527,7,TRUE)))))))), (IF($B$17=4,(IF(4-$B$19=0,(VLOOKUP(2,Tablas!$A$525:$G$527,7,TRUE)), (IF(4-$B$19=1,(VLOOKUP(2,Tablas!$A$525:$G$527,7,TRUE)), (IF(4-$B$19=2, (VLOOKUP(2,Tablas!$A$525:$G$527,7,TRUE)), (VLOOKUP(3,Tablas!$A$525:$G$527,7,TRUE)))))))), (IF($B$17=3,(IF(3-$B$19=0,(VLOOKUP(1,Tablas!$A$525:$G$527,7,TRUE)), (IF(3-$B$19=1,(VLOOKUP(1,Tablas!$A$525:$G$527,7,TRUE)), (IF(3-$B$19=2, (VLOOKUP(2,Tablas!$A$525:$G$527,7,TRUE)), (VLOOKUP(3,Tablas!$A$525:$G$527,7,TRUE)))))))), (IF($B$17=2,(IF(2-$B$19=0, 0, (IF(2-$B$19=1,(VLOOKUP(1,Tablas!$A$525:$G$527,7,TRUE)), (IF(2-$B$19=2, (VLOOKUP(2,Tablas!$A$525:$G$527,7,TRUE)), 0)))))), (IF($B$17=1,(IF(1-$B$19=0, 0, (IF(1-$B$19=1,(VLOOKUP(1,Tablas!$A$525:$G$527,7,TRUE)),0)))),0)))))))))))))), (IF($B$17=0, 0, (IF($B$19>$B$17, (VLOOKUP($B$17,Tablas!$A$525:$G$527,7,TRUE)), (IF($B$17=4,(IF(4-$B$19=0, 0, (IF(4-$B$19=1, (VLOOKUP(1,Tablas!$A$525:$G$527,7,TRUE)), (IF(4-$B$19=2, (VLOOKUP(2,Tablas!$A$525:$G$527,7,TRUE)), (IF(4-$B$19=3, (VLOOKUP(3,Tablas!$A$525:$G$527,7,TRUE)), (IF(4-$B$19=4, (VLOOKUP(3,Tablas!$A$525:$G$527,7,TRUE)), 0)))))))))), (IF($B$17=5,(IF(5-$B$19=0, (VLOOKUP(1,Tablas!$A$525:$G$527,7,TRUE)), (IF(5-$B$19=1, (VLOOKUP(1,Tablas!$A$525:$G$527,7,TRUE)), (IF(5-$B$19=2, (VLOOKUP(2,Tablas!$A$525:$G$527,7,TRUE)), (IF(5-$B$19=3, (VLOOKUP(3,Tablas!$A$525:$G$527,7,TRUE)), (IF(5-$B$19=4, (VLOOKUP(3,Tablas!$A$525:$G$527,7,TRUE)), (VLOOKUP(3,Tablas!$A$525:$G$527,7,TRUE)))))))))))), (IF($B$17=6,(IF(6-$B$19=0, (VLOOKUP(2,Tablas!$A$525:$G$527,7,TRUE)), (IF(6-$B$19=1, (VLOOKUP(2,Tablas!$A$525:$G$527,7,TRUE)), (IF(6-$B$19=2, (VLOOKUP(2,Tablas!$A$525:$G$527,7,TRUE)), (IF(6-$B$19=3, (VLOOKUP(3,Tablas!$A$525:$G$527,7,TRUE)), (IF(6-$B$19=4, (VLOOKUP(3,Tablas!$A$525:$G$527,7,TRUE)), (VLOOKUP(3,Tablas!$A$525:$G$527,7,TRUE)))))))))))), (IF($B$17>6,(IF(7-$B$19=0, (VLOOKUP(3,Tablas!$A$525:$G$527,7,TRUE)), (IF(7-$B$19=1, (VLOOKUP(3,Tablas!$A$525:$G$527,7,TRUE)), (IF(7-$B$19=2, (VLOOKUP(3,Tablas!$A$525:$G$527,7,TRUE)), (IF(7-$B$19=3, (VLOOKUP(3,Tablas!$A$525:$G$527,7,TRUE)), (IF(7-$B$19=4, (VLOOKUP(3,Tablas!$A$525:$G$527,7,TRUE)), (VLOOKUP(3,Tablas!$A$525:$G$527,7,TRUE)))))))))))), (IF($B$17=3,(IF(3-$B$19=0,0, (IF(3-$B$19=1,(VLOOKUP(1,Tablas!$A$525:$G$527,7,TRUE)), (IF(3-$B$19=2, (VLOOKUP(2,Tablas!$A$525:$G$527,7,TRUE)), (VLOOKUP(3,Tablas!$A$525:$G$527,7,TRUE)))))))), (IF($B$17=2,(IF(2-$B$19=0, 0, (IF(2-$B$19=1,(VLOOKUP(1,Tablas!$A$525:$G$527,7,TRUE)), (IF(2-$B$19=2, (VLOOKUP(2,Tablas!$A$525:$G$527,7,TRUE)), 0)))))), (IF($B$17=1,(IF(1-$B$19=0, 0, (IF(1-$B$19=1,(VLOOKUP(1,Tablas!$A$525:$G$527,7,TRUE)),0)))),0))))))))))))))))))) -> 1114.0865
A47: Total de Prima neta | C47: =SUM(C44:C46) -> 17970.445 | D47: =SUM(D44:D46) -> 15749.9305 | E47: 12697.3425 | F47: 11012.022 | G47: 8320.735
A48: Ajuste por la variante con coaseguro fuera del país de residencia | C48: =IF('INGRESO DE DATOS'!$P$3,C47*-15%,0) -> 0 | D48: =IF('INGRESO DE DATOS'!$P$3,D47*-15%,0) -> 0 | E48: =IF('INGRESO DE DATOS'!$P$3,E47*-15%,0) -> 0 | F48: =IF('INGRESO DE DATOS'!$P$3,F47*-15%,0) -> 0 | G48: =IF('INGRESO DE DATOS'!$P$3,G47*-15%,0) -> 0
A49: Tarifa administrativa anual | C49: 75 | D49: 75 | E49: 75 | F49: 75 | G49: 75
A50: IVA (12%) | C50: =(C47+C49)*'INGRESO DE DATOS'!$S$30 -> 2165.4534 | D50: =(D47+D49)*'INGRESO DE DATOS'!$S$30 -> 1898.99166 | E50: =(E47+E49)*'INGRESO DE DATOS'!$S$30 -> 1532.6811 | F50: =(F47+F49)*'INGRESO DE DATOS'!$S$30 -> 1330.44264 | G50: =(G47+G49)*'INGRESO DE DATOS'!$S$30 -> 1007.4882
A51: ITBMS (7%)
A52: TOTAL de primera cuota | C52: =SUM(C47:C51) -> 20210.8984 | D52: =SUM(D47:D51) -> 17723.92216 | E52: 14305.0236 | F52: 12417.46464 | G52: 9403.2232
A53: Costo de segunda cuota | C53: =C52-C49*'INGRESO DE DATOS'!$T$30 -> 20126.8984 | D53: =D52-D49*'INGRESO DE DATOS'!$T$30 -> 17639.92216 | E53: =E52-E49*'INGRESO DE DATOS'!$T$30 -> 14221.0236 | F53: =F52-F49*'INGRESO DE DATOS'!$T$30 -> 12333.46464 | G53: =G52-G49*'INGRESO DE DATOS'!$T$30 -> 9319.2232
A54: TOTAL ANUAL | C54: =C52+C53 -> 40337.7968 | D54: =D52+D53 -> 35363.84432 | E54: 28526.0472 | F54: =F52+F53 -> 24750.92928 | G54: 18722.4464
A55: Ahorros en tarifas de prima para Dependientes | C55: =IF($B$15=1,IF($B$17=0,0,IF($B$19=0,0,IF($B$19=1,(VLOOKUP(1,Tablas!$A$525:$G$527,3,TRUE)),(VLOOKUP(2,Tablas!$A$525:$G$527,3,TRUE))))), IF($B$17=0,0,IF($B$19=0,0,IF($B$19=1,(VLOOKUP(1,Tablas!$A$525:$G$527,3,TRUE)),IF($B$19=2,(VLOOKUP(2,Tablas!$A$525:$G$527,3,TRUE)), (VLOOKUP(3,Tablas!$A$525:$G$527,3,TRUE))))))) -> 2348.006 | D55: =IF($B$15=1,IF($B$17=0,0,IF($B$19=0,0,IF($B$19=1,(VLOOKUP(1,Tablas!$A$525:$G$527,4,TRUE)),(VLOOKUP(2,Tablas!$A$525:$G$527,4,TRUE))))), IF($B$17=0,0,IF($B$19=0,0,IF($B$19=1,(VLOOKUP(1,Tablas!$A$525:$G$527,4,TRUE)),IF($B$19=2,(VLOOKUP(2,Tablas!$A$525:$G$527,4,TRUE)), (VLOOKUP(3,Tablas!$A$525:$G$527,4,TRUE))))))) -> 2056.983 | E55: =IF($B$15=1,IF($B$17=0,0,IF($B$19=0,0,IF($B$19=1,(VLOOKUP(1,Tablas!$A$525:$G$527,5,TRUE)),(VLOOKUP(2,Tablas!$A$525:$G$527,5,TRUE))))), IF($B$17=0,0,IF($B$19=0,0,IF($B$19=1,(VLOOKUP(1,Tablas!$A$525:$G$527,5,TRUE)),IF($B$19=2,(VLOOKUP(2,Tablas!$A$525:$G$527,5,TRUE)), (VLOOKUP(3,Tablas!$A$525:$G$527,5,TRUE))))))) -> 1698.8355 | F55: =IF($B$15=1,IF($B$17=0,0,IF($B$19=0,0,IF($B$19=1,(VLOOKUP(1,Tablas!$A$525:$G$527,7,TRUE)),(VLOOKUP(2,Tablas!$A$525:$G$527,7,TRUE))))), IF($B$17=0,0,IF($B$19=0,0,IF($B$19=1,(VLOOKUP(1,Tablas!$A$525:$G$527,7,TRUE)),IF($B$19=2,(VLOOKUP(2,Tablas!$A$525:$G$527,7,TRUE)), (VLOOKUP(3,Tablas!$A$525:$G$527,7,TRUE))))))) -> 1114.0865 | G55: =IF($B$15=1,IF($B$17=0,0,IF($B$19=0,0,IF($B$19=1,(VLOOKUP(1,Tablas!$A$525:$G$527,7,TRUE)),(VLOOKUP(2,Tablas!$A$525:$G$527,7,TRUE))))), IF($B$17=0,0,IF($B$19=0,0,IF($B$19=1,(VLOOKUP(1,Tablas!$A$525:$G$527,7,TRUE)),IF($B$19=2,(VLOOKUP(2,Tablas!$A$525:$G$527,7,TRUE)), (VLOOKUP(3,Tablas!$A$525:$G$527,7,TRUE))))))) -> 1114.0865
A57: TARIFAS TRIMESTRALES
A58: Prima para Asegurado Titular | C58: =VLOOKUP($B$21,Tablas!$A$685:$G$751,3,TRUE) -> 3418.36 | D58: =VLOOKUP($B$21,Tablas!$A$685:$G$751,4,TRUE) -> 2996.2075 | E58: =VLOOKUP($B$21,Tablas!$A$685:$G$751,5,TRUE) -> 2425.15625 | F58: =VLOOKUP($B$21,Tablas!$A$685:$G$751,6,TRUE) -> 2103.04875 | G58: =VLOOKUP($B$21,Tablas!$A$685:$G$751,7,TRUE) -> 1588.79875
A59: Prima para conyuge | C59: =IF($B$15=1,0,(VLOOKUP($G$21,Tablas!$A$685:$G$751,3,TRUE))) -> 4687.6225 | D59: =IF($B$15=1,0,(VLOOKUP($G$21,Tablas!$A$685:$G$751,4,TRUE))) -> 4108.62375 | E59: =IF($B$15=1,0,(VLOOKUP($G$21,Tablas!$A$685:$G$751,5,TRUE))) -> 3281.61625 | F59: =IF($B$15=1,0,(VLOOKUP($G$21,Tablas!$A$685:$G$751,6,TRUE))) -> 2845.6725 | G59: =IF($B$15=1,0,(VLOOKUP($G$21,Tablas!$A$685:$G$751,7,TRUE))) -> 2150.5
A60: Prima para hijo (s) | C60: =IF($B$15=1, (IF($B$17=0, 0, (IF($B$19>$B$17, (VLOOKUP($B$17,Tablas!$A$752:$G$754,3,TRUE)), (IF($B$17>4,(IF($B$19=0, (VLOOKUP(3,Tablas!$A$752:$G$754,3,TRUE)), (IF($B$19=1, (VLOOKUP(3,Tablas!$A$752:$G$754,3,TRUE)), (IF($B$19=2, (VLOOKUP(3,Tablas!$A$752:$G$754,3,TRUE)), (VLOOKUP(3,Tablas!$A$752:$G$754,3,TRUE)))))))), (IF($B$17=4,(IF(4-$B$19=0,(VLOOKUP(2,Tablas!$A$752:$G$754,3,TRUE)), (IF(4-$B$19=1,(VLOOKUP(2,Tablas!$A$752:$G$754,3,TRUE)), (IF(4-$B$19=2, (VLOOKUP(2,Tablas!$A$752:$G$754,3,TRUE)), (VLOOKUP(3,Tablas!$A$752:$G$754,3,TRUE)))))))), (IF($B$17=3,(IF(3-$B$19=0,(VLOOKUP(1,Tablas!$A$752:$G$754,3,TRUE)), (IF(3-$B$19=1,(VLOOKUP(1,Tablas!$A$752:$G$754,3,TRUE)), (IF(3-$B$19=2, (VLOOKUP(2,Tablas!$A$752:$G$754,3,TRUE)), (VLOOKUP(3,Tablas!$A$752:$G$754,3,TRUE)))))))), (IF($B$17=2,(IF(2-$B$19=0, 0, (IF(2-$B$19=1,(VLOOKUP(1,Tablas!$A$752:$G$754,3,TRUE)), (IF(2-$B$19=2, (VLOOKUP(2,Tablas!$A$752:$G$754,3,TRUE)), 0)))))), (IF($B$17=1,(IF(1-$B$19=0, 0, (IF(1-$B$19=1,(VLOOKUP(1,Tablas!$A$752:$G$754,3,TRUE)),0)))),0)))))))))))))), (IF($B$17=0, 0, (IF($B$19>$B$17, (VLOOKUP($B$17,Tablas!$A$752:$G$754,3,TRUE)), (IF($B$17=4,(IF(4-$B$19=0, 0, (IF(4-$B$19=1, (VLOOKUP(1,Tablas!$A$752:$G$754,3,TRUE)), (IF(4-$B$19=2, (VLOOKUP(2,Tablas!$A$752:$G$754,3,TRUE)), (IF(4-$B$19=3, (VLOOKUP(3,Tablas!$A$752:$G$754,3,TRUE)), (IF(4-$B$19=4, (VLOOKUP(3,Tablas!$A$752:$G$754,3,TRUE)), 0)))))))))), (IF($B$17=5,(IF(5-$B$19=0, (VLOOKUP(1,Tablas!$A$752:$G$754,3,TRUE)), (IF(5-$B$19=1, (VLOOKUP(1,Tablas!$A$752:$G$754,3,TRUE)), (IF(5-$B$19=2, (VLOOKUP(2,Tablas!$A$752:$G$754,3,TRUE)), (IF(5-$B$19=3, (VLOOKUP(3,Tablas!$A$752:$G$754,3,TRUE)), (IF(5-$B$19=4, (VLOOKUP(3,Tablas!$A$752:$G$754,3,TRUE)), (VLOOKUP(3,Tablas!$A$752:$G$754,3,TRUE)))))))))))), (IF($B$17=6,(IF(6-$B$19=0, (VLOOKUP(2,Tablas!$A$752:$G$754,3,TRUE)), (IF(6-$B$19=1, (VLOOKUP(2,Tablas!$A$752:$G$754,3,TRUE)), (IF(6-$B$19=2, (VLOOKUP(2,Tablas!$A$752:$G$754,3,TRUE)), (IF(6-$B$19=3, (VLOOKUP(3,Tablas!$A$752:$G$754,3,TRUE)), (IF(6-$B$19=4, (VLOOKUP(3,Tablas!$A$752:$G$754,3,TRUE)), (VLOOKUP(3,Tablas!$A$752:$G$754,3,TRUE)))))))))))), (IF($B$17>6,(IF(7-$B$19=0, (VLOOKUP(3,Tablas!$A$752:$G$754,3,TRUE)), (IF(7-$B$19=1, (VLOOKUP(3,Tablas!$A$752:$G$754,3,TRUE)), (IF(7-$B$19=2, (VLOOKUP(3,Tablas!$A$752:$G$754,3,TRUE)), (IF(7-$B$19=3, (VLOOKUP(3,Tablas!$A$752:$G$754,3,TRUE)), (IF(7-$B$19=4, (VLOOKUP(3,Tablas!$A$752:$G$754,3,TRUE)), (VLOOKUP(3,Tablas!$A$752:$G$754,3,TRUE)))))))))))), (IF($B$17=3,(IF(3-$B$19=0,0, (IF(3-$B$19=1,(VLOOKUP(1,Tablas!$A$752:$G$754,3,TRUE)), (IF(3-$B$19=2, (VLOOKUP(2,Tablas!$A$752:$G$754,3,TRUE)), (VLOOKUP(3,Tablas!$A$752:$G$754,3,TRUE)))))))), (IF($B$17=2,(IF(2-$B$19=0, 0, (IF(2-$B$19=1,(VLOOKUP(1,Tablas!$A$752:$G$754,3,TRUE)), (IF(2-$B$19=2, (VLOOKUP(2,Tablas!$A$752:$G$754,3,TRUE)), 0)))))), (IF($B$17=1,(IF(1-$B$19=0, 0, (IF(1-$B$19=1,(VLOOKUP(1,Tablas!$A$752:$G$754,3,TRUE)),0)))),0))))))))))))))))))) -> 1218.305 | D60: =IF($B$15=1, (IF($B$17=0, 0, (IF($B$19>$B$17, (VLOOKUP($B$17,Tablas!$A$752:$G$754,4,TRUE)), (IF($B$17>4,(IF($B$19=0, (VLOOKUP(3,Tablas!$A$752:$G$754,4,TRUE)), (IF($B$19=1, (VLOOKUP(3,Tablas!$A$752:$G$754,4,TRUE)), (IF($B$19=2, (VLOOKUP(3,Tablas!$A$752:$G$754,4,TRUE)), (VLOOKUP(3,Tablas!$A$752:$G$754,4,TRUE)))))))), (IF($B$17=4,(IF(4-$B$19=0,(VLOOKUP(2,Tablas!$A$752:$G$754,4,TRUE)), (IF(4-$B$19=1,(VLOOKUP(2,Tablas!$A$752:$G$754,4,TRUE)), (IF(4-$B$19=2, (VLOOKUP(2,Tablas!$A$752:$G$754,4,TRUE)), (VLOOKUP(3,Tablas!$A$752:$G$754,4,TRUE)))))))), (IF($B$17=3,(IF(3-$B$19=0,(VLOOKUP(1,Tablas!$A$752:$G$754,4,TRUE)), (IF(3-$B$19=1,(VLOOKUP(1,Tablas!$A$752:$G$754,4,TRUE)), (IF(3-$B$19=2, (VLOOKUP(2,Tablas!$A$752:$G$754,4,TRUE)), (VLOOKUP(3,Tablas!$A$752:$G$754,4,TRUE)))))))), (IF($B$17=2,(IF(2-$B$19=0, 0, (IF(2-$B$19=1,(VLOOKUP(1,Tablas!$A$752:$G$754,4,TRUE)), (IF(2-$B$19=2, (VLOOKUP(2,Tablas!$A$752:$G$754,4,TRUE)), 0)))))), (IF($B$17=1,(IF(1-$B$19=0, 0, (IF(1-$B$19=1,(VLOOKUP(1,Tablas!$A$752:$G$754,4,TRUE)),0)))),0)))))))))))))), (IF($B$17=0, 0, (IF($B$19>$B$17, (VLOOKUP($B$17,Tablas!$A$752:$G$754,4,TRUE)), (IF($B$17=4,(IF(4-$B$19=0, 0, (IF(4-$B$19=1, (VLOOKUP(1,Tablas!$A$752:$G$754,4,TRUE)), (IF(4-$B$19=2, (VLOOKUP(2,Tablas!$A$752:$G$754,4,TRUE)), (IF(4-$B$19=3, (VLOOKUP(3,Tablas!$A$752:$G$754,4,TRUE)), (IF(4-$B$19=4, (VLOOKUP(3,Tablas!$A$752:$G$754,4,TRUE)), 0)))))))))), (IF($B$17=5,(IF(5-$B$19=0, (VLOOKUP(1,Tablas!$A$752:$G$754,4,TRUE)), (IF(5-$B$19=1, (VLOOKUP(1,Tablas!$A$752:$G$754,4,TRUE)), (IF(5-$B$19=2, (VLOOKUP(2,Tablas!$A$752:$G$754,4,TRUE)), (IF(5-$B$19=3, (VLOOKUP(3,Tablas!$A$752:$G$754,4,TRUE)), (IF(5-$B$19=4, (VLOOKUP(3,Tablas!$A$752:$G$754,4,TRUE)), (VLOOKUP(3,Tablas!$A$752:$G$754,4,TRUE)))))))))))), (IF($B$17=6,(IF(6-$B$19=0, (VLOOKUP(2,Tablas!$A$752:$G$754,4,TRUE)), (IF(6-$B$19=1, (VLOOKUP(2,Tablas!$A$752:$G$754,4,TRUE)), (IF(6-$B$19=2, (VLOOKUP(2,Tablas!$A$752:$G$754,4,TRUE)), (IF(6-$B$19=3, (VLOOKUP(3,Tablas!$A$752:$G$754,4,TRUE)), (IF(6-$B$19=4, (VLOOKUP(3,Tablas!$A$752:$G$754,4,TRUE)), (VLOOKUP(3,Tablas!$A$752:$G$754,4,TRUE)))))))))))), (IF($B$17>6,(IF(7-$B$19=0, (VLOOKUP(3,Tablas!$A$752:$G$754,4,TRUE)), (IF(7-$B$19=1, (VLOOKUP(3,Tablas!$A$752:$G$754,4,TRUE)), (IF(7-$B$19=2, (VLOOKUP(3,Tablas!$A$752:$G$754,4,TRUE)), (IF(7-$B$19=3, (VLOOKUP(3,Tablas!$A$752:$G$754,4,TRUE)), (IF(7-$B$19=4, (VLOOKUP(3,Tablas!$A$752:$G$754,4,TRUE)), (VLOOKUP(3,Tablas!$A$752:$G$754,4,TRUE)))))))))))), (IF($B$17=3,(IF(3-$B$19=0,0, (IF(3-$B$19=1,(VLOOKUP(1,Tablas!$A$752:$G$754,4,TRUE)), (IF(3-$B$19=2, (VLOOKUP(2,Tablas!$A$752:$G$754,4,TRUE)), (VLOOKUP(3,Tablas!$A$752:$G$754,4,TRUE)))))))), (IF($B$17=2,(IF(2-$B$19=0, 0, (IF(2-$B$19=1,(VLOOKUP(1,Tablas!$A$752:$G$754,4,TRUE)), (IF(2-$B$19=2, (VLOOKUP(2,Tablas!$A$752:$G$754,4,TRUE)), 0)))))), (IF($B$17=1,(IF(1-$B$19=0, 0, (IF(1-$B$19=1,(VLOOKUP(1,Tablas!$A$752:$G$754,4,TRUE)),0)))),0))))))))))))))))))) -> 1067.3025 | E60: =IF($B$15=1, (IF($B$17=0, 0, (IF($B$19>$B$17, (VLOOKUP($B$17,Tablas!$A$752:$G$754,5,TRUE)), (IF($B$17>4,(IF($B$19=0, (VLOOKUP(3,Tablas!$A$752:$G$754,5,TRUE)), (IF($B$19=1, (VLOOKUP(3,Tablas!$A$752:$G$754,5,TRUE)), (IF($B$19=2, (VLOOKUP(3,Tablas!$A$752:$G$754,5,TRUE)), (VLOOKUP(3,Tablas!$A$752:$G$754,5,TRUE)))))))), (IF($B$17=4,(IF(4-$B$19=0,(VLOOKUP(2,Tablas!$A$752:$G$754,5,TRUE)), (IF(4-$B$19=1,(VLOOKUP(2,Tablas!$A$752:$G$754,5,TRUE)), (IF(4-$B$19=2, (VLOOKUP(2,Tablas!$A$752:$G$754,5,TRUE)), (VLOOKUP(3,Tablas!$A$752:$G$754,5,TRUE)))))))), (IF($B$17=3,(IF(3-$B$19=0,(VLOOKUP(1,Tablas!$A$752:$G$754,5,TRUE)), (IF(3-$B$19=1,(VLOOKUP(1,Tablas!$A$752:$G$754,5,TRUE)), (IF(3-$B$19=2, (VLOOKUP(2,Tablas!$A$752:$G$754,5,TRUE)), (VLOOKUP(3,Tablas!$A$752:$G$754,5,TRUE)))))))), (IF($B$17=2,(IF(2-$B$19=0, 0, (IF(2-$B$19=1,(VLOOKUP(1,Tablas!$A$752:$G$754,5,TRUE)), (IF(2-$B$19=2, (VLOOKUP(2,Tablas!$A$752:$G$754,5,TRUE)), 0)))))), (IF($B$17=1,(IF(1-$B$19=0, 0, (IF(1-$B$19=1,(VLOOKUP(1,Tablas!$A$752:$G$754,5,TRUE)),0)))),0)))))))))))))), (IF($B$17=0, 0, (IF($B$19>$B$17, (VLOOKUP($B$17,Tablas!$A$752:$G$754,5,TRUE)), (IF($B$17=4,(IF(4-$B$19=0, 0, (IF(4-$B$19=1, (VLOOKUP(1,Tablas!$A$752:$G$754,5,TRUE)), (IF(4-$B$19=2, (VLOOKUP(2,Tablas!$A$752:$G$754,5,TRUE)), (IF(4-$B$19=3, (VLOOKUP(3,Tablas!$A$752:$G$754,5,TRUE)), (IF(4-$B$19=4, (VLOOKUP(3,Tablas!$A$752:$G$754,5,TRUE)), 0)))))))))), (IF($B$17=5,(IF(5-$B$19=0, (VLOOKUP(1,Tablas!$A$752:$G$754,5,TRUE)), (IF(5-$B$19=1, (VLOOKUP(1,Tablas!$A$752:$G$754,5,TRUE)), (IF(5-$B$19=2, (VLOOKUP(2,Tablas!$A$752:$G$754,5,TRUE)), (IF(5-$B$19=3, (VLOOKUP(3,Tablas!$A$752:$G$754,5,TRUE)), (IF(5-$B$19=4, (VLOOKUP(3,Tablas!$A$752:$G$754,5,TRUE)), (VLOOKUP(3,Tablas!$A$752:$G$754,5,TRUE)))))))))))), (IF($B$17=6,(IF(6-$B$19=0, (VLOOKUP(2,Tablas!$A$752:$G$754,5,TRUE)), (IF(6-$B$19=1, (VLOOKUP(2,Tablas!$A$752:$G$754,5,TRUE)), (IF(6-$B$19=2, (VLOOKUP(2,Tablas!$A$752:$G$754,5,TRUE)), (IF(6-$B$19=3, (VLOOKUP(3,Tablas!$A$752:$G$754,5,TRUE)), (IF(6-$B$19=4, (VLOOKUP(3,Tablas!$A$752:$G$754,5,TRUE)), (VLOOKUP(3,Tablas!$A$752:$G$754,5,TRUE)))))))))))), (IF($B$17>6,(IF(7-$B$19=0, (VLOOKUP(3,Tablas!$A$752:$G$754,5,TRUE)), (IF(7-$B$19=1, (VLOOKUP(3,Tablas!$A$752:$G$754,5,TRUE)), (IF(7-$B$19=2, (VLOOKUP(3,Tablas!$A$752:$G$754,5,TRUE)), (IF(7-$B$19=3, (VLOOKUP(3,Tablas!$A$752:$G$754,5,TRUE)), (IF(7-$B$19=4, (VLOOKUP(3,Tablas!$A$752:$G$754,5,TRUE)), (VLOOKUP(3,Tablas!$A$752:$G$754,5,TRUE)))))))))))), (IF($B$17=3,(IF(3-$B$19=0,0, (IF(3-$B$19=1,(VLOOKUP(1,Tablas!$A$752:$G$754,5,TRUE)), (IF(3-$B$19=2, (VLOOKUP(2,Tablas!$A$752:$G$754,5,TRUE)), (VLOOKUP(3,Tablas!$A$752:$G$754,5,TRUE)))))))), (IF($B$17=2,(IF(2-$B$19=0, 0, (IF(2-$B$19=1,(VLOOKUP(1,Tablas!$A$752:$G$754,5,TRUE)), (IF(2-$B$19=2, (VLOOKUP(2,Tablas!$A$752:$G$754,5,TRUE)), 0)))))), (IF($B$17=1,(IF(1-$B$19=0, 0, (IF(1-$B$19=1,(VLOOKUP(1,Tablas!$A$752:$G$754,5,TRUE)),0)))),0))))))))))))))))))) -> 881.47125 | F60: =IF($B$15=1, (IF($B$17=0, 0, (IF($B$19>$B$17, (VLOOKUP($B$17,Tablas!$A$752:$G$754,6,TRUE)), (IF($B$17>4,(IF($B$19=0, (VLOOKUP(3,Tablas!$A$752:$G$754,6,TRUE)), (IF($B$19=1, (VLOOKUP(3,Tablas!$A$752:$G$754,6,TRUE)), (IF($B$19=2, (VLOOKUP(3,Tablas!$A$752:$G$754,6,TRUE)), (VLOOKUP(3,Tablas!$A$752:$G$754,6,TRUE)))))))), (IF($B$17=4,(IF(4-$B$19=0,(VLOOKUP(2,Tablas!$A$752:$G$754,6,TRUE)), (IF(4-$B$19=1,(VLOOKUP(2,Tablas!$A$752:$G$754,6,TRUE)), (IF(4-$B$19=2, (VLOOKUP(2,Tablas!$A$752:$G$754,6,TRUE)), (VLOOKUP(3,Tablas!$A$752:$G$754,6,TRUE)))))))), (IF($B$17=3,(IF(3-$B$19=0,(VLOOKUP(1,Tablas!$A$752:$G$754,6,TRUE)), (IF(3-$B$19=1,(VLOOKUP(1,Tablas!$A$752:$G$754,6,TRUE)), (IF(3-$B$19=2, (VLOOKUP(2,Tablas!$A$752:$G$754,6,TRUE)), (VLOOKUP(3,Tablas!$A$752:$G$754,6,TRUE)))))))), (IF($B$17=2,(IF(2-$B$19=0, 0, (IF(2-$B$19=1,(VLOOKUP(1,Tablas!$A$752:$G$754,6,TRUE)), (IF(2-$B$19=2, (VLOOKUP(2,Tablas!$A$752:$G$754,6,TRUE)), 0)))))), (IF($B$17=1,(IF(1-$B$19=0, 0, (IF(1-$B$19=1,(VLOOKUP(1,Tablas!$A$752:$G$754,6,TRUE)),0)))),0)))))))))))))), (IF($B$17=0, 0, (IF($B$19>$B$17, (VLOOKUP($B$17,Tablas!$A$752:$G$754,6,TRUE)), (IF($B$17=4,(IF(4-$B$19=0, 0, (IF(4-$B$19=1, (VLOOKUP(1,Tablas!$A$752:$G$754,6,TRUE)), (IF(4-$B$19=2, (VLOOKUP(2,Tablas!$A$752:$G$754,6,TRUE)), (IF(4-$B$19=3, (VLOOKUP(3,Tablas!$A$752:$G$754,6,TRUE)), (IF(4-$B$19=4, (VLOOKUP(3,Tablas!$A$752:$G$754,6,TRUE)), 0)))))))))), (IF($B$17=5,(IF(5-$B$19=0, (VLOOKUP(1,Tablas!$A$752:$G$754,6,TRUE)), (IF(5-$B$19=1, (VLOOKUP(1,Tablas!$A$752:$G$754,6,TRUE)), (IF(5-$B$19=2, (VLOOKUP(2,Tablas!$A$752:$G$754,6,TRUE)), (IF(5-$B$19=3, (VLOOKUP(3,Tablas!$A$752:$G$754,6,TRUE)), (IF(5-$B$19=4, (VLOOKUP(3,Tablas!$A$752:$G$754,6,TRUE)), (VLOOKUP(3,Tablas!$A$752:$G$754,6,TRUE)))))))))))), (IF($B$17=6,(IF(6-$B$19=0, (VLOOKUP(2,Tablas!$A$752:$G$754,6,TRUE)), (IF(6-$B$19=1, (VLOOKUP(2,Tablas!$A$752:$G$754,6,TRUE)), (IF(6-$B$19=2, (VLOOKUP(2,Tablas!$A$752:$G$754,6,TRUE)), (IF(6-$B$19=3, (VLOOKUP(3,Tablas!$A$752:$G$754,6,TRUE)), (IF(6-$B$19=4, (VLOOKUP(3,Tablas!$A$752:$G$754,6,TRUE)), (VLOOKUP(3,Tablas!$A$752:$G$754,6,TRUE)))))))))))), (IF($B$17>6,(IF(7-$B$19=0, (VLOOKUP(3,Tablas!$A$752:$G$754,6,TRUE)), (IF(7-$B$19=1, (VLOOKUP(3,Tablas!$A$752:$G$754,6,TRUE)), (IF(7-$B$19=2, (VLOOKUP(3,Tablas!$A$752:$G$754,6,TRUE)), (IF(7-$B$19=3, (VLOOKUP(3,Tablas!$A$752:$G$754,6,TRUE)), (IF(7-$B$19=4, (VLOOKUP(3,Tablas!$A$752:$G$754,6,TRUE)), (VLOOKUP(3,Tablas!$A$752:$G$754,6,TRUE)))))))))))), (IF($B$17=3,(IF(3-$B$19=0,0, (IF(3-$B$19=1,(VLOOKUP(1,Tablas!$A$752:$G$754,6,TRUE)), (IF(3-$B$19=2, (VLOOKUP(2,Tablas!$A$752:$G$754,6,TRUE)), (VLOOKUP(3,Tablas!$A$752:$G$754,6,TRUE)))))))), (IF($B$17=2,(IF(2-$B$19=0, 0, (IF(2-$B$19=1,(VLOOKUP(1,Tablas!$A$752:$G$754,6,TRUE)), (IF(2-$B$19=2, (VLOOKUP(2,Tablas!$A$752:$G$754,6,TRUE)), 0)))))), (IF($B$17=1,(IF(1-$B$19=0, 0, (IF(1-$B$19=1,(VLOOKUP(1,Tablas!$A$752:$G$754,6,TRUE)),0)))),0))))))))))))))))))) -> 765.06375 | G60: =IF($B$15=1, (IF($B$17=0, 0, (IF($B$19>$B$17, (VLOOKUP($B$17,Tablas!$A$752:$G$754,7,TRUE)), (IF($B$17>4,(IF($B$19=0, (VLOOKUP(3,Tablas!$A$752:$G$754,7,TRUE)), (IF($B$19=1, (VLOOKUP(3,Tablas!$A$752:$G$754,7,TRUE)), (IF($B$19=2, (VLOOKUP(3,Tablas!$A$752:$G$754,7,TRUE)), (VLOOKUP(3,Tablas!$A$752:$G$754,7,TRUE)))))))), (IF($B$17=4,(IF(4-$B$19=0,(VLOOKUP(2,Tablas!$A$752:$G$754,7,TRUE)), (IF(4-$B$19=1,(VLOOKUP(2,Tablas!$A$752:$G$754,7,TRUE)), (IF(4-$B$19=2, (VLOOKUP(2,Tablas!$A$752:$G$754,7,TRUE)), (VLOOKUP(3,Tablas!$A$752:$G$754,7,TRUE)))))))), (IF($B$17=3,(IF(3-$B$19=0,(VLOOKUP(1,Tablas!$A$752:$G$754,7,TRUE)), (IF(3-$B$19=1,(VLOOKUP(1,Tablas!$A$752:$G$754,7,TRUE)), (IF(3-$B$19=2, (VLOOKUP(2,Tablas!$A$752:$G$754,7,TRUE)), (VLOOKUP(3,Tablas!$A$752:$G$754,7,TRUE)))))))), (IF($B$17=2,(IF(2-$B$19=0, 0, (IF(2-$B$19=1,(VLOOKUP(1,Tablas!$A$752:$G$754,7,TRUE)), (IF(2-$B$19=2, (VLOOKUP(2,Tablas!$A$752:$G$754,7,TRUE)), 0)))))), (IF($B$17=1,(IF(1-$B$19=0, 0, (IF(1-$B$19=1,(VLOOKUP(1,Tablas!$A$752:$G$754,7,TRUE)),0)))),0)))))))))))))), (IF($B$17=0, 0, (IF($B$19>$B$17, (VLOOKUP($B$17,Tablas!$A$752:$G$754,7,TRUE)), (IF($B$17=4,(IF(4-$B$19=0, 0, (IF(4-$B$19=1, (VLOOKUP(1,Tablas!$A$752:$G$754,7,TRUE)), (IF(4-$B$19=2, (VLOOKUP(2,Tablas!$A$752:$G$754,7,TRUE)), (IF(4-$B$19=3, (VLOOKUP(3,Tablas!$A$752:$G$754,7,TRUE)), (IF(4-$B$19=4, (VLOOKUP(3,Tablas!$A$752:$G$754,7,TRUE)), 0)))))))))), (IF($B$17=5,(IF(5-$B$19=0, (VLOOKUP(1,Tablas!$A$752:$G$754,7,TRUE)), (IF(5-$B$19=1, (VLOOKUP(1,Tablas!$A$752:$G$754,7,TRUE)), (IF(5-$B$19=2, (VLOOKUP(2,Tablas!$A$752:$G$754,7,TRUE)), (IF(5-$B$19=3, (VLOOKUP(3,Tablas!$A$752:$G$754,7,TRUE)), (IF(5-$B$19=4, (VLOOKUP(3,Tablas!$A$752:$G$754,7,TRUE)), (VLOOKUP(3,Tablas!$A$752:$G$754,7,TRUE)))))))))))), (IF($B$17=6,(IF(6-$B$19=0, (VLOOKUP(2,Tablas!$A$752:$G$754,7,TRUE)), (IF(6-$B$19=1, (VLOOKUP(2,Tablas!$A$752:$G$754,7,TRUE)), (IF(6-$B$19=2, (VLOOKUP(2,Tablas!$A$752:$G$754,7,TRUE)), (IF(6-$B$19=3, (VLOOKUP(3,Tablas!$A$752:$G$754,7,TRUE)), (IF(6-$B$19=4, (VLOOKUP(3,Tablas!$A$752:$G$754,7,TRUE)), (VLOOKUP(3,Tablas!$A$752:$G$754,7,TRUE)))))))))))), (IF($B$17>6,(IF(7-$B$19=0, (VLOOKUP(3,Tablas!$A$752:$G$754,7,TRUE)), (IF(7-$B$19=1, (VLOOKUP(3,Tablas!$A$752:$G$754,7,TRUE)), (IF(7-$B$19=2, (VLOOKUP(3,Tablas!$A$752:$G$754,7,TRUE)), (IF(7-$B$19=3, (VLOOKUP(3,Tablas!$A$752:$G$754,7,TRUE)), (IF(7-$B$19=4, (VLOOKUP(3,Tablas!$A$752:$G$754,7,TRUE)), (VLOOKUP(3,Tablas!$A$752:$G$754,7,TRUE)))))))))))), (IF($B$17=3,(IF(3-$B$19=0,0, (IF(3-$B$19=1,(VLOOKUP(1,Tablas!$A$752:$G$754,7,TRUE)), (IF(3-$B$19=2, (VLOOKUP(2,Tablas!$A$752:$G$754,7,TRUE)), (VLOOKUP(3,Tablas!$A$752:$G$754,7,TRUE)))))))), (IF($B$17=2,(IF(2-$B$19=0, 0, (IF(2-$B$19=1,(VLOOKUP(1,Tablas!$A$752:$G$754,7,TRUE)), (IF(2-$B$19=2, (VLOOKUP(2,Tablas!$A$752:$G$754,7,TRUE)), 0)))))), (IF($B$17=1,(IF(1-$B$19=0, 0, (IF(1-$B$19=1,(VLOOKUP(1,Tablas!$A$752:$G$754,7,TRUE)),0)))),0))))))))))))))))))) -> 578.06375
A61: Total de Prima neta | C61: =SUM(C58:C60) -> 9324.2875 | D61: =SUM(D58:D60) -> 8172.13375 | E61: 6588.24375 | F61: 5713.785 | G61: 4317.3625
A62: Ajuste por la variante con coaseguro fuera del país de residencia | C62: =IF('INGRESO DE DATOS'!$P$3,C61*-15%,0) -> 0 | D62: =IF('INGRESO DE DATOS'!$P$3,D61*-15%,0) -> 0 | E62: =IF('INGRESO DE DATOS'!$P$3,E61*-15%,0) -> 0 | F62: =IF('INGRESO DE DATOS'!$P$3,F61*-15%,0) -> 0 | G62: =IF('INGRESO DE DATOS'!$P$3,G61*-15%,0) -> 0
A63: Tarifa administrativa anual | C63: 75 | D63: 75 | E63: 75 | F63: 75 | G63: 75
A64: IVA (12%) | C64: =(C61+C63)*'INGRESO DE DATOS'!$S$30 -> 1127.9145 | D64: =(D61+D63)*'INGRESO DE DATOS'!$S$30 -> 989.65605 | E64: =(E61+E63)*'INGRESO DE DATOS'!$S$30 -> 799.58925 | F64: =(F61+F63)*'INGRESO DE DATOS'!$S$30 -> 694.6542 | G64: =(G61+G63)*'INGRESO DE DATOS'!$S$30 -> 527.0835
A65: ITBMS (7%)
A66: TOTAL de primera cuota | C66: =SUM(C61:C65) -> 10527.202 | D66: =SUM(D61:D65) -> 9236.7898 | E66: 7462.833 | F66: 6483.4392 | G66: 4919.446
A67: Costo de tarifa trimestral 2 a 4 | C67: =C66-C63*'INGRESO DE DATOS'!$T$30 -> 10443.202 | D67: =D66-D63*'INGRESO DE DATOS'!$T$30 -> 9152.7898 | E67: =E66-E63*'INGRESO DE DATOS'!$T$30 -> 7378.833 | F67: =F66-F63*'INGRESO DE DATOS'!$T$30 -> 6399.4392 | G67: =G66-G63*'INGRESO DE DATOS'!$T$30 -> 4835.446
A68: TOTAL ANUAL | C68: =C66+(C67*3) -> 41856.808 | D68: =D66+(D67*3) -> 36695.1592 | E68: 29599.332 | F68: =F66+(F67*3) -> 25681.7568 | G68: 19425.784
A69: Ahorros en tarifas de prima para Dependientes | C69: =IF($B$15=1,IF($B$17=0,0,IF($B$19=0,0,IF($B$19=1,(VLOOKUP(1,Tablas!$A$752:$G$754,3,TRUE)),(VLOOKUP(2,Tablas!$A$752:$G$754,3,TRUE))))), IF($B$17=0,0,IF($B$19=0,0,IF($B$19=1,(VLOOKUP(1,Tablas!$A$752:$G$754,3,TRUE)),IF($B$19=2,(VLOOKUP(2,Tablas!$A$752:$G$754,3,TRUE)), (VLOOKUP(3,Tablas!$A$752:$G$754,3,TRUE))))))) -> 1218.305 | D69: =IF($B$15=1,IF($B$17=0,0,IF($B$19=0,0,IF($B$19=1,(VLOOKUP(1,Tablas!$A$752:$G$754,4,TRUE)),(VLOOKUP(2,Tablas!$A$752:$G$754,4,TRUE))))), IF($B$17=0,0,IF($B$19=0,0,IF($B$19=1,(VLOOKUP(1,Tablas!$A$752:$G$754,4,TRUE)),IF($B$19=2,(VLOOKUP(2,Tablas!$A$752:$G$754,4,TRUE)), (VLOOKUP(3,Tablas!$A$752:$G$754,4,TRUE))))))) -> 1067.3025 | E69: =IF($B$15=1,IF($B$17=0,0,IF($B$19=0,0,IF($B$19=1,(VLOOKUP(1,Tablas!$A$752:$G$754,5,TRUE)),(VLOOKUP(2,Tablas!$A$752:$G$754,5,TRUE))))), IF($B$17=0,0,IF($B$19=0,0,IF($B$19=1,(VLOOKUP(1,Tablas!$A$752:$G$754,5,TRUE)),IF($B$19=2,(VLOOKUP(2,Tablas!$A$752:$G$754,5,TRUE)), (VLOOKUP(3,Tablas!$A$752:$G$754,5,TRUE))))))) -> 881.47125 | F69: =IF($B$15=1,IF($B$17=0,0,IF($B$19=0,0,IF($B$19=1,(VLOOKUP(1,Tablas!$A$752:$G$754,6,TRUE)),(VLOOKUP(2,Tablas!$A$752:$G$754,6,TRUE))))), IF($B$17=0,0,IF($B$19=0,0,IF($B$19=1,(VLOOKUP(1,Tablas!$A$752:$G$754,6,TRUE)),IF($B$19=2,(VLOOKUP(2,Tablas!$A$752:$G$754,6,TRUE)), (VLOOKUP(3,Tablas!$A$752:$G$754,6,TRUE))))))) -> 765.06375 | G69: =IF($B$15=1,IF($B$17=0,0,IF($B$19=0,0,IF($B$19=1,(VLOOKUP(1,Tablas!$A$752:$G$754,7,TRUE)),(VLOOKUP(2,Tablas!$A$752:$G$754,7,TRUE))))), IF($B$17=0,0,IF($B$19=0,0,IF($B$19=1,(VLOOKUP(1,Tablas!$A$752:$G$754,7,TRUE)),IF($B$19=2,(VLOOKUP(2,Tablas!$A$752:$G$754,7,TRUE)), (VLOOKUP(3,Tablas!$A$752:$G$754,7,TRUE))))))) -> 578.06375
A71: TARIFAS MENSUALES
A72: Prima para Asegurado Titular | C72: =VLOOKUP($B$21,Tablas!$A$80:$G$146,3,TRUE) -> 1160.170667 | D72: =VLOOKUP($B$21,Tablas!$A$80:$G$146,4,TRUE) -> 1016.894667 | E72: =VLOOKUP($B$21,Tablas!$A$80:$G$146,5,TRUE) -> 823.0833333 | F72: =VLOOKUP($B$21,Tablas!$A$80:$G$146,6,TRUE) -> 713.762 | G72: =VLOOKUP($B$21,Tablas!$A$80:$G$146,7,TRUE) -> 539.2286667
A73: Prima para conyuge | C73: =IF($B$15=1,0,(VLOOKUP($G$21,Tablas!$A$80:$G$146,3,TRUE))) -> 1590.950667 | D73: =IF($B$15=1,0,(VLOOKUP($G$21,Tablas!$A$80:$G$146,4,TRUE))) -> 1394.442 | E73: =IF($B$15=1,0,(VLOOKUP($G$21,Tablas!$A$80:$G$146,5,TRUE))) -> 1113.760667 | F73: =IF($B$15=1,0,(VLOOKUP($G$21,Tablas!$A$80:$G$146,6,TRUE))) -> 965.804 | G73: =IF($B$15=1,0,(VLOOKUP($G$21,Tablas!$A$80:$G$146,7,TRUE))) -> 729.8666667
A74: Prima para hijo (s) | C74: =IF($B$15=1, (IF($B$17=0, 0, (IF($B$19>$B$17, (VLOOKUP($B$17,Tablas!$A$147:$G$149,3,TRUE)), (IF($B$17>4,(IF($B$19=0, (VLOOKUP(3,Tablas!$A$147:$G$149,3,TRUE)), (IF($B$19=1, (VLOOKUP(3,Tablas!$A$147:$G$149,3,TRUE)), (IF($B$19=2, (VLOOKUP(3,Tablas!$A$147:$G$149,3,TRUE)), (VLOOKUP(3,Tablas!$A$147:$G$149,3,TRUE)))))))), (IF($B$17=4,(IF(4-$B$19=0,(VLOOKUP(2,Tablas!$A$147:$G$149,3,TRUE)), (IF(4-$B$19=1,(VLOOKUP(2,Tablas!$A$147:$G$149,3,TRUE)), (IF(4-$B$19=2, (VLOOKUP(2,Tablas!$A$147:$G$149,3,TRUE)), (VLOOKUP(3,Tablas!$A$147:$G$149,3,TRUE)))))))), (IF($B$17=3,(IF(3-$B$19=0,(VLOOKUP(1,Tablas!$A$147:$G$149,3,TRUE)), (IF(3-$B$19=1,(VLOOKUP(1,Tablas!$A$147:$G$149,3,TRUE)), (IF(3-$B$19=2, (VLOOKUP(2,Tablas!$A$147:$G$149,3,TRUE)), (VLOOKUP(3,Tablas!$A$147:$G$149,3,TRUE)))))))), (IF($B$17=2,(IF(2-$B$19=0, 0, (IF(2-$B$19=1,(VLOOKUP(1,Tablas!$A$147:$G$149,3,TRUE)), (IF(2-$B$19=2, (VLOOKUP(2,Tablas!$A$147:$G$149,3,TRUE)), 0)))))), (IF($B$17=1,(IF(1-$B$19=0, 0, (IF(1-$B$19=1,(VLOOKUP(1,Tablas!$A$147:$G$149,3,TRUE)),0)))),0)))))))))))))), (IF($B$17=0, 0, (IF($B$19>$B$17, (VLOOKUP($B$17,Tablas!$A$147:$G$149,3,TRUE)), (IF($B$17=4,(IF(4-$B$19=0, 0, (IF(4-$B$19=1, (VLOOKUP(1,Tablas!$A$147:$G$149,3,TRUE)), (IF(4-$B$19=2, (VLOOKUP(2,Tablas!$A$147:$G$149,3,TRUE)), (IF(4-$B$19=3, (VLOOKUP(3,Tablas!$A$147:$G$149,3,TRUE)), (IF(4-$B$19=4, (VLOOKUP(3,Tablas!$A$147:$G$149,3,TRUE)), 0)))))))))), (IF($B$17=5,(IF(5-$B$19=0, (VLOOKUP(1,Tablas!$A$147:$G$149,3,TRUE)), (IF(5-$B$19=1, (VLOOKUP(1,Tablas!$A$147:$G$149,3,TRUE)), (IF(5-$B$19=2, (VLOOKUP(2,Tablas!$A$147:$G$149,3,TRUE)), (IF(5-$B$19=3, (VLOOKUP(3,Tablas!$A$147:$G$149,3,TRUE)), (IF(5-$B$19=4, (VLOOKUP(3,Tablas!$A$147:$G$149,3,TRUE)), (VLOOKUP(3,Tablas!$A$147:$G$149,3,TRUE)))))))))))), (IF($B$17=6,(IF(6-$B$19=0, (VLOOKUP(2,Tablas!$A$147:$G$149,3,TRUE)), (IF(6-$B$19=1, (VLOOKUP(2,Tablas!$A$147:$G$149,3,TRUE)), (IF(6-$B$19=2, (VLOOKUP(2,Tablas!$A$147:$G$149,3,TRUE)), (IF(6-$B$19=3, (VLOOKUP(3,Tablas!$A$147:$G$149,3,TRUE)), (IF(6-$B$19=4, (VLOOKUP(3,Tablas!$A$147:$G$149,3,TRUE)), (VLOOKUP(3,Tablas!$A$147:$G$149,3,TRUE)))))))))))), (IF($B$17>6,(IF(7-$B$19=0, (VLOOKUP(3,Tablas!$A$147:$G$149,3,TRUE)), (IF(7-$B$19=1, (VLOOKUP(3,Tablas!$A$147:$G$149,3,TRUE)), (IF(7-$B$19=2, (VLOOKUP(3,Tablas!$A$147:$G$149,3,TRUE)), (IF(7-$B$19=3, (VLOOKUP(3,Tablas!$A$147:$G$149,3,TRUE)), (IF(7-$B$19=4, (VLOOKUP(3,Tablas!$A$147:$G$149,3,TRUE)), (VLOOKUP(3,Tablas!$A$147:$G$149,3,TRUE)))))))))))), (IF($B$17=3,(IF(3-$B$19=0,0, (IF(3-$B$19=1,(VLOOKUP(1,Tablas!$A$147:$G$149,3,TRUE)), (IF(3-$B$19=2, (VLOOKUP(2,Tablas!$A$147:$G$149,3,TRUE)), (VLOOKUP(3,Tablas!$A$147:$G$149,3,TRUE)))))))), (IF($B$17=2,(IF(2-$B$19=0, 0, (IF(2-$B$19=1,(VLOOKUP(1,Tablas!$A$147:$G$149,3,TRUE)), (IF(2-$B$19=2, (VLOOKUP(2,Tablas!$A$147:$G$149,3,TRUE)), 0)))))), (IF($B$17=1,(IF(1-$B$19=0, 0, (IF(1-$B$19=1,(VLOOKUP(1,Tablas!$A$147:$G$149,3,TRUE)),0)))),0))))))))))))))))))) -> 413.4853333 | D74: =IF($B$15=1, (IF($B$17=0, 0, (IF($B$19>$B$17, (VLOOKUP($B$17,Tablas!$A$147:$G$149,4,TRUE)), (IF($B$17>4,(IF($B$19=0, (VLOOKUP(3,Tablas!$A$147:$G$149,4,TRUE)), (IF($B$19=1, (VLOOKUP(3,Tablas!$A$147:$G$149,4,TRUE)), (IF($B$19=2, (VLOOKUP(3,Tablas!$A$147:$G$149,4,TRUE)), (VLOOKUP(3,Tablas!$A$147:$G$149,4,TRUE)))))))), (IF($B$17=4,(IF(4-$B$19=0,(VLOOKUP(2,Tablas!$A$147:$G$149,4,TRUE)), (IF(4-$B$19=1,(VLOOKUP(2,Tablas!$A$147:$G$149,4,TRUE)), (IF(4-$B$19=2, (VLOOKUP(2,Tablas!$A$147:$G$149,4,TRUE)), (VLOOKUP(3,Tablas!$A$147:$G$149,4,TRUE)))))))), (IF($B$17=3,(IF(3-$B$19=0,(VLOOKUP(1,Tablas!$A$147:$G$149,4,TRUE)), (IF(3-$B$19=1,(VLOOKUP(1,Tablas!$A$147:$G$149,4,TRUE)), (IF(3-$B$19=2, (VLOOKUP(2,Tablas!$A$147:$G$149,4,TRUE)), (VLOOKUP(3,Tablas!$A$147:$G$149,4,TRUE)))))))), (IF($B$17=2,(IF(2-$B$19=0, 0, (IF(2-$B$19=1,(VLOOKUP(1,Tablas!$A$147:$G$149,4,TRUE)), (IF(2-$B$19=2, (VLOOKUP(2,Tablas!$A$147:$G$149,4,TRUE)), 0)))))), (IF($B$17=1,(IF(1-$B$19=0, 0, (IF(1-$B$19=1,(VLOOKUP(1,Tablas!$A$147:$G$149,4,TRUE)),0)))),0)))))))))))))), (IF($B$17=0, 0, (IF($B$19>$B$17, (VLOOKUP($B$17,Tablas!$A$147:$G$149,4,TRUE)), (IF($B$17=4,(IF(4-$B$19=0, 0, (IF(4-$B$19=1, (VLOOKUP(1,Tablas!$A$147:$G$149,4,TRUE)), (IF(4-$B$19=2, (VLOOKUP(2,Tablas!$A$147:$G$149,4,TRUE)), (IF(4-$B$19=3, (VLOOKUP(3,Tablas!$A$147:$G$149,4,TRUE)), (IF(4-$B$19=4, (VLOOKUP(3,Tablas!$A$147:$G$149,4,TRUE)), 0)))))))))), (IF($B$17=5,(IF(5-$B$19=0, (VLOOKUP(1,Tablas!$A$147:$G$149,4,TRUE)), (IF(5-$B$19=1, (VLOOKUP(1,Tablas!$A$147:$G$149,4,TRUE)), (IF(5-$B$19=2, (VLOOKUP(2,Tablas!$A$147:$G$149,4,TRUE)), (IF(5-$B$19=3, (VLOOKUP(3,Tablas!$A$147:$G$149,4,TRUE)), (IF(5-$B$19=4, (VLOOKUP(3,Tablas!$A$147:$G$149,4,TRUE)), (VLOOKUP(3,Tablas!$A$147:$G$149,4,TRUE)))))))))))), (IF($B$17=6,(IF(6-$B$19=0, (VLOOKUP(2,Tablas!$A$147:$G$149,4,TRUE)), (IF(6-$B$19=1, (VLOOKUP(2,Tablas!$A$147:$G$149,4,TRUE)), (IF(6-$B$19=2, (VLOOKUP(2,Tablas!$A$147:$G$149,4,TRUE)), (IF(6-$B$19=3, (VLOOKUP(3,Tablas!$A$147:$G$149,4,TRUE)), (IF(6-$B$19=4, (VLOOKUP(3,Tablas!$A$147:$G$149,4,TRUE)), (VLOOKUP(3,Tablas!$A$147:$G$149,4,TRUE)))))))))))), (IF($B$17>6,(IF(7-$B$19=0, (VLOOKUP(3,Tablas!$A$147:$G$149,4,TRUE)), (IF(7-$B$19=1, (VLOOKUP(3,Tablas!$A$147:$G$149,4,TRUE)), (IF(7-$B$19=2, (VLOOKUP(3,Tablas!$A$147:$G$149,4,TRUE)), (IF(7-$B$19=3, (VLOOKUP(3,Tablas!$A$147:$G$149,4,TRUE)), (IF(7-$B$19=4, (VLOOKUP(3,Tablas!$A$147:$G$149,4,TRUE)), (VLOOKUP(3,Tablas!$A$147:$G$149,4,TRUE)))))))))))), (IF($B$17=3,(IF(3-$B$19=0,0, (IF(3-$B$19=1,(VLOOKUP(1,Tablas!$A$147:$G$149,4,TRUE)), (IF(3-$B$19=2, (VLOOKUP(2,Tablas!$A$147:$G$149,4,TRUE)), (VLOOKUP(3,Tablas!$A$147:$G$149,4,TRUE)))))))), (IF($B$17=2,(IF(2-$B$19=0, 0, (IF(2-$B$19=1,(VLOOKUP(1,Tablas!$A$147:$G$149,4,TRUE)), (IF(2-$B$19=2, (VLOOKUP(2,Tablas!$A$147:$G$149,4,TRUE)), 0)))))), (IF($B$17=1,(IF(1-$B$19=0, 0, (IF(1-$B$19=1,(VLOOKUP(1,Tablas!$A$147:$G$149,4,TRUE)),0)))),0))))))))))))))))))) -> 362.236 | E74: =IF($B$15=1, (IF($B$17=0, 0, (IF($B$19>$B$17, (VLOOKUP($B$17,Tablas!$A$147:$G$149,5,TRUE)), (IF($B$17>4,(IF($B$19=0, (VLOOKUP(3,Tablas!$A$147:$G$149,5,TRUE)), (IF($B$19=1, (VLOOKUP(3,Tablas!$A$147:$G$149,5,TRUE)), (IF($B$19=2, (VLOOKUP(3,Tablas!$A$147:$G$149,5,TRUE)), (VLOOKUP(3,Tablas!$A$147:$G$149,5,TRUE)))))))), (IF($B$17=4,(IF(4-$B$19=0,(VLOOKUP(2,Tablas!$A$147:$G$149,5,TRUE)), (IF(4-$B$19=1,(VLOOKUP(2,Tablas!$A$147:$G$149,5,TRUE)), (IF(4-$B$19=2, (VLOOKUP(2,Tablas!$A$147:$G$149,5,TRUE)), (VLOOKUP(3,Tablas!$A$147:$G$149,5,TRUE)))))))), (IF($B$17=3,(IF(3-$B$19=0,(VLOOKUP(1,Tablas!$A$147:$G$149,5,TRUE)), (IF(3-$B$19=1,(VLOOKUP(1,Tablas!$A$147:$G$149,5,TRUE)), (IF(3-$B$19=2, (VLOOKUP(2,Tablas!$A$147:$G$149,5,TRUE)), (VLOOKUP(3,Tablas!$A$147:$G$149,5,TRUE)))))))), (IF($B$17=2,(IF(2-$B$19=0, 0, (IF(2-$B$19=1,(VLOOKUP(1,Tablas!$A$147:$G$149,5,TRUE)), (IF(2-$B$19=2, (VLOOKUP(2,Tablas!$A$147:$G$149,5,TRUE)), 0)))))), (IF($B$17=1,(IF(1-$B$19=0, 0, (IF(1-$B$19=1,(VLOOKUP(1,Tablas!$A$147:$G$149,5,TRUE)),0)))),0)))))))))))))), (IF($B$17=0, 0, (IF($B$19>$B$17, (VLOOKUP($B$17,Tablas!$A$147:$G$149,5,TRUE)), (IF($B$17=4,(IF(4-$B$19=0, 0, (IF(4-$B$19=1, (VLOOKUP(1,Tablas!$A$147:$G$149,5,TRUE)), (IF(4-$B$19=2, (VLOOKUP(2,Tablas!$A$147:$G$149,5,TRUE)), (IF(4-$B$19=3, (VLOOKUP(3,Tablas!$A$147:$G$149,5,TRUE)), (IF(4-$B$19=4, (VLOOKUP(3,Tablas!$A$147:$G$149,5,TRUE)), 0)))))))))), (IF($B$17=5,(IF(5-$B$19=0, (VLOOKUP(1,Tablas!$A$147:$G$149,5,TRUE)), (IF(5-$B$19=1, (VLOOKUP(1,Tablas!$A$147:$G$149,5,TRUE)), (IF(5-$B$19=2, (VLOOKUP(2,Tablas!$A$147:$G$149,5,TRUE)), (IF(5-$B$19=3, (VLOOKUP(3,Tablas!$A$147:$G$149,5,TRUE)), (IF(5-$B$19=4, (VLOOKUP(3,Tablas!$A$147:$G$149,5,TRUE)), (VLOOKUP(3,Tablas!$A$147:$G$149,5,TRUE)))))))))))), (IF($B$17=6,(IF(6-$B$19=0, (VLOOKUP(2,Tablas!$A$147:$G$149,5,TRUE)), (IF(6-$B$19=1, (VLOOKUP(2,Tablas!$A$147:$G$149,5,TRUE)), (IF(6-$B$19=2, (VLOOKUP(2,Tablas!$A$147:$G$149,5,TRUE)), (IF(6-$B$19=3, (VLOOKUP(3,Tablas!$A$147:$G$149,5,TRUE)), (IF(6-$B$19=4, (VLOOKUP(3,Tablas!$A$147:$G$149,5,TRUE)), (VLOOKUP(3,Tablas!$A$147:$G$149,5,TRUE)))))))))))), (IF($B$17>6,(IF(7-$B$19=0, (VLOOKUP(3,Tablas!$A$147:$G$149,5,TRUE)), (IF(7-$B$19=1, (VLOOKUP(3,Tablas!$A$147:$G$149,5,TRUE)), (IF(7-$B$19=2, (VLOOKUP(3,Tablas!$A$147:$G$149,5,TRUE)), (IF(7-$B$19=3, (VLOOKUP(3,Tablas!$A$147:$G$149,5,TRUE)), (IF(7-$B$19=4, (VLOOKUP(3,Tablas!$A$147:$G$149,5,TRUE)), (VLOOKUP(3,Tablas!$A$147:$G$149,5,TRUE)))))))))))), (IF($B$17=3,(IF(3-$B$19=0,0, (IF(3-$B$19=1,(VLOOKUP(1,Tablas!$A$147:$G$149,5,TRUE)), (IF(3-$B$19=2, (VLOOKUP(2,Tablas!$A$147:$G$149,5,TRUE)), (VLOOKUP(3,Tablas!$A$147:$G$149,5,TRUE)))))))), (IF($B$17=2,(IF(2-$B$19=0, 0, (IF(2-$B$19=1,(VLOOKUP(1,Tablas!$A$147:$G$149,5,TRUE)), (IF(2-$B$19=2, (VLOOKUP(2,Tablas!$A$147:$G$149,5,TRUE)), 0)))))), (IF($B$17=1,(IF(1-$B$19=0, 0, (IF(1-$B$19=1,(VLOOKUP(1,Tablas!$A$147:$G$149,5,TRUE)),0)))),0))))))))))))))))))) -> 299.166 | F74: =IF($B$15=1, (IF($B$17=0, 0, (IF($B$19>$B$17, (VLOOKUP($B$17,Tablas!$A$147:$G$149,6,TRUE)), (IF($B$17>4,(IF($B$19=0, (VLOOKUP(3,Tablas!$A$147:$G$149,6,TRUE)), (IF($B$19=1, (VLOOKUP(3,Tablas!$A$147:$G$149,6,TRUE)), (IF($B$19=2, (VLOOKUP(3,Tablas!$A$147:$G$149,6,TRUE)), (VLOOKUP(3,Tablas!$A$147:$G$149,6,TRUE)))))))), (IF($B$17=4,(IF(4-$B$19=0,(VLOOKUP(2,Tablas!$A$147:$G$149,6,TRUE)), (IF(4-$B$19=1,(VLOOKUP(2,Tablas!$A$147:$G$149,6,TRUE)), (IF(4-$B$19=2, (VLOOKUP(2,Tablas!$A$147:$G$149,6,TRUE)), (VLOOKUP(3,Tablas!$A$147:$G$149,6,TRUE)))))))), (IF($B$17=3,(IF(3-$B$19=0,(VLOOKUP(1,Tablas!$A$147:$G$149,6,TRUE)), (IF(3-$B$19=1,(VLOOKUP(1,Tablas!$A$147:$G$149,6,TRUE)), (IF(3-$B$19=2, (VLOOKUP(2,Tablas!$A$147:$G$149,6,TRUE)), (VLOOKUP(3,Tablas!$A$147:$G$149,6,TRUE)))))))), (IF($B$17=2,(IF(2-$B$19=0, 0, (IF(2-$B$19=1,(VLOOKUP(1,Tablas!$A$147:$G$149,6,TRUE)), (IF(2-$B$19=2, (VLOOKUP(2,Tablas!$A$147:$G$149,6,TRUE)), 0)))))), (IF($B$17=1,(IF(1-$B$19=0, 0, (IF(1-$B$19=1,(VLOOKUP(1,Tablas!$A$147:$G$149,6,TRUE)),0)))),0)))))))))))))), (IF($B$17=0, 0, (IF($B$19>$B$17, (VLOOKUP($B$17,Tablas!$A$147:$G$149,6,TRUE)), (IF($B$17=4,(IF(4-$B$19=0, 0, (IF(4-$B$19=1, (VLOOKUP(1,Tablas!$A$147:$G$149,6,TRUE)), (IF(4-$B$19=2, (VLOOKUP(2,Tablas!$A$147:$G$149,6,TRUE)), (IF(4-$B$19=3, (VLOOKUP(3,Tablas!$A$147:$G$149,6,TRUE)), (IF(4-$B$19=4, (VLOOKUP(3,Tablas!$A$147:$G$149,6,TRUE)), 0)))))))))), (IF($B$17=5,(IF(5-$B$19=0, (VLOOKUP(1,Tablas!$A$147:$G$149,6,TRUE)), (IF(5-$B$19=1, (VLOOKUP(1,Tablas!$A$147:$G$149,6,TRUE)), (IF(5-$B$19=2, (VLOOKUP(2,Tablas!$A$147:$G$149,6,TRUE)), (IF(5-$B$19=3, (VLOOKUP(3,Tablas!$A$147:$G$149,6,TRUE)), (IF(5-$B$19=4, (VLOOKUP(3,Tablas!$A$147:$G$149,6,TRUE)), (VLOOKUP(3,Tablas!$A$147:$G$149,6,TRUE)))))))))))), (IF($B$17=6,(IF(6-$B$19=0, (VLOOKUP(2,Tablas!$A$147:$G$149,6,TRUE)), (IF(6-$B$19=1, (VLOOKUP(2,Tablas!$A$147:$G$149,6,TRUE)), (IF(6-$B$19=2, (VLOOKUP(2,Tablas!$A$147:$G$149,6,TRUE)), (IF(6-$B$19=3, (VLOOKUP(3,Tablas!$A$147:$G$149,6,TRUE)), (IF(6-$B$19=4, (VLOOKUP(3,Tablas!$A$147:$G$149,6,TRUE)), (VLOOKUP(3,Tablas!$A$147:$G$149,6,TRUE)))))))))))), (IF($B$17>6,(IF(7-$B$19=0, (VLOOKUP(3,Tablas!$A$147:$G$149,6,TRUE)), (IF(7-$B$19=1, (VLOOKUP(3,Tablas!$A$147:$G$149,6,TRUE)), (IF(7-$B$19=2, (VLOOKUP(3,Tablas!$A$147:$G$149,6,TRUE)), (IF(7-$B$19=3, (VLOOKUP(3,Tablas!$A$147:$G$149,6,TRUE)), (IF(7-$B$19=4, (VLOOKUP(3,Tablas!$A$147:$G$149,6,TRUE)), (VLOOKUP(3,Tablas!$A$147:$G$149,6,TRUE)))))))))))), (IF($B$17=3,(IF(3-$B$19=0,0, (IF(3-$B$19=1,(VLOOKUP(1,Tablas!$A$147:$G$149,6,TRUE)), (IF(3-$B$19=2, (VLOOKUP(2,Tablas!$A$147:$G$149,6,TRUE)), (VLOOKUP(3,Tablas!$A$147:$G$149,6,TRUE)))))))), (IF($B$17=2,(IF(2-$B$19=0, 0, (IF(2-$B$19=1,(VLOOKUP(1,Tablas!$A$147:$G$149,6,TRUE)), (IF(2-$B$19=2, (VLOOKUP(2,Tablas!$A$147:$G$149,6,TRUE)), 0)))))), (IF($B$17=1,(IF(1-$B$19=0, 0, (IF(1-$B$19=1,(VLOOKUP(1,Tablas!$A$147:$G$149,6,TRUE)),0)))),0))))))))))))))))))) -> 259.658 | G74: =IF($B$15=1, (IF($B$17=0, 0, (IF($B$19>$B$17, (VLOOKUP($B$17,Tablas!$A$147:$G$149,7,TRUE)), (IF($B$17>4,(IF($B$19=0, (VLOOKUP(3,Tablas!$A$147:$G$149,7,TRUE)), (IF($B$19=1, (VLOOKUP(3,Tablas!$A$147:$G$149,7,TRUE)), (IF($B$19=2, (VLOOKUP(3,Tablas!$A$147:$G$149,7,TRUE)), (VLOOKUP(3,Tablas!$A$147:$G$149,7,TRUE)))))))), (IF($B$17=4,(IF(4-$B$19=0,(VLOOKUP(2,Tablas!$A$147:$G$149,7,TRUE)), (IF(4-$B$19=1,(VLOOKUP(2,Tablas!$A$147:$G$149,7,TRUE)), (IF(4-$B$19=2, (VLOOKUP(2,Tablas!$A$147:$G$149,7,TRUE)), (VLOOKUP(3,Tablas!$A$147:$G$149,7,TRUE)))))))), (IF($B$17=3,(IF(3-$B$19=0,(VLOOKUP(1,Tablas!$A$147:$G$149,7,TRUE)), (IF(3-$B$19=1,(VLOOKUP(1,Tablas!$A$147:$G$149,7,TRUE)), (IF(3-$B$19=2, (VLOOKUP(2,Tablas!$A$147:$G$149,7,TRUE)), (VLOOKUP(3,Tablas!$A$147:$G$149,7,TRUE)))))))), (IF($B$17=2,(IF(2-$B$19=0, 0, (IF(2-$B$19=1,(VLOOKUP(1,Tablas!$A$147:$G$149,7,TRUE)), (IF(2-$B$19=2, (VLOOKUP(2,Tablas!$A$147:$G$149,7,TRUE)), 0)))))), (IF($B$17=1,(IF(1-$B$19=0, 0, (IF(1-$B$19=1,(VLOOKUP(1,Tablas!$A$147:$G$149,7,TRUE)),0)))),0)))))))))))))), (IF($B$17=0, 0, (IF($B$19>$B$17, (VLOOKUP($B$17,Tablas!$A$147:$G$149,7,TRUE)), (IF($B$17=4,(IF(4-$B$19=0, 0, (IF(4-$B$19=1, (VLOOKUP(1,Tablas!$A$147:$G$149,7,TRUE)), (IF(4-$B$19=2, (VLOOKUP(2,Tablas!$A$147:$G$149,7,TRUE)), (IF(4-$B$19=3, (VLOOKUP(3,Tablas!$A$147:$G$149,7,TRUE)), (IF(4-$B$19=4, (VLOOKUP(3,Tablas!$A$147:$G$149,7,TRUE)), 0)))))))))), (IF($B$17=5,(IF(5-$B$19=0, (VLOOKUP(1,Tablas!$A$147:$G$149,7,TRUE)), (IF(5-$B$19=1, (VLOOKUP(1,Tablas!$A$147:$G$149,7,TRUE)), (IF(5-$B$19=2, (VLOOKUP(2,Tablas!$A$147:$G$149,7,TRUE)), (IF(5-$B$19=3, (VLOOKUP(3,Tablas!$A$147:$G$149,7,TRUE)), (IF(5-$B$19=4, (VLOOKUP(3,Tablas!$A$147:$G$149,7,TRUE)), (VLOOKUP(3,Tablas!$A$147:$G$149,7,TRUE)))))))))))), (IF($B$17=6,(IF(6-$B$19=0, (VLOOKUP(2,Tablas!$A$147:$G$149,7,TRUE)), (IF(6-$B$19=1, (VLOOKUP(2,Tablas!$A$147:$G$149,7,TRUE)), (IF(6-$B$19=2, (VLOOKUP(2,Tablas!$A$147:$G$149,7,TRUE)), (IF(6-$B$19=3, (VLOOKUP(3,Tablas!$A$147:$G$149,7,TRUE)), (IF(6-$B$19=4, (VLOOKUP(3,Tablas!$A$147:$G$149,7,TRUE)), (VLOOKUP(3,Tablas!$A$147:$G$149,7,TRUE)))))))))))), (IF($B$17>6,(IF(7-$B$19=0, (VLOOKUP(3,Tablas!$A$147:$G$149,7,TRUE)), (IF(7-$B$19=1, (VLOOKUP(3,Tablas!$A$147:$G$149,7,TRUE)), (IF(7-$B$19=2, (VLOOKUP(3,Tablas!$A$147:$G$149,7,TRUE)), (IF(7-$B$19=3, (VLOOKUP(3,Tablas!$A$147:$G$149,7,TRUE)), (IF(7-$B$19=4, (VLOOKUP(3,Tablas!$A$147:$G$149,7,TRUE)), (VLOOKUP(3,Tablas!$A$147:$G$149,7,TRUE)))))))))))), (IF($B$17=3,(IF(3-$B$19=0,0, (IF(3-$B$19=1,(VLOOKUP(1,Tablas!$A$147:$G$149,7,TRUE)), (IF(3-$B$19=2, (VLOOKUP(2,Tablas!$A$147:$G$149,7,TRUE)), (VLOOKUP(3,Tablas!$A$147:$G$149,7,TRUE)))))))), (IF($B$17=2,(IF(2-$B$19=0, 0, (IF(2-$B$19=1,(VLOOKUP(1,Tablas!$A$147:$G$149,7,TRUE)), (IF(2-$B$19=2, (VLOOKUP(2,Tablas!$A$147:$G$149,7,TRUE)), 0)))))), (IF($B$17=1,(IF(1-$B$19=0, 0, (IF(1-$B$19=1,(VLOOKUP(1,Tablas!$A$147:$G$149,7,TRUE)),0)))),0))))))))))))))))))) -> 196.1913333
A75: Total de Prima neta | C75: =SUM(C72:C74) -> 3164.606667 | D75: =SUM(D72:D74) -> 2773.572667 | E75: 2236.01 | F75: 1939.224 | G75: 1465.286667
A76: Ajuste por la variante con coaseguro fuera del país de residencia | C76: =IF('INGRESO DE DATOS'!$P$3,C75*-15%,0) -> 0 | D76: =IF('INGRESO DE DATOS'!$P$3,D75*-15%,0) -> 0 | E76: =IF('INGRESO DE DATOS'!$P$3,E75*-15%,0) -> 0 | F76: =IF('INGRESO DE DATOS'!$P$3,F75*-15%,0) -> 0 | G76: =IF('INGRESO DE DATOS'!$P$3,G75*-15%,0) -> 0
A77: Tarifa administrativa anual | C77: 75 | D77: 75 | E77: 75 | F77: 75 | G77: 75
A78: IVA (12%) | C78: =(C75+C77)*'INGRESO DE DATOS'!$S$30 -> 388.7528 | D78: =(D75+D77)*'INGRESO DE DATOS'!$S$30 -> 341.82872 | E78: =(E75+E77)*'INGRESO DE DATOS'!$S$30 -> 277.3212 | F78: =(F75+F77)*'INGRESO DE DATOS'!$S$30 -> 241.70688 | G78: =(G75+G77)*'INGRESO DE DATOS'!$S$30 -> 184.8344
A79: ITBMS (7%)
A80: TOTAL de primera cuota | C80: =SUM(C75:C79) -> 3628.359467 | D80: =SUM(D75:D79) -> 3190.401387 | E80: 2588.3312 | F80: 2255.93088 | G80: 1725.121067
A81: Costo de Tarifa mensual de 2 a 12 | C81: =C80-C77*'INGRESO DE DATOS'!$T$30 -> 3544.359467 | D81: =D80-D77*'INGRESO DE DATOS'!$T$30 -> 3106.401387 | E81: =E80-E77*'INGRESO DE DATOS'!$T$30 -> 2504.3312 | F81: =F80-F77*'INGRESO DE DATOS'!$T$30 -> 2171.93088 | G81: =G80-G77*'INGRESO DE DATOS'!$T$30 -> 1641.121067
A82: TOTAL ANUAL | C82: =C80+(C81*11) -> 42616.3136 | D82: =D80+(D81*11) -> 37360.81664 | E82: 30135.9744 | F82: =F80+(F81*11) -> 26147.17056 | G82: 19777.4528
A83: Ahorros en tarifas de prima para Dependientes | C83: =IF($B$15=1,IF($B$17=0,0,IF($B$19=0,0,IF($B$19=1,(VLOOKUP(1,Tablas!$A$147:$G$149,3,TRUE)),(VLOOKUP(2,Tablas!$A$147:$G$149,3,TRUE))))), IF($B$17=0,0,IF($B$19=0,0,IF($B$19=1,(VLOOKUP(1,Tablas!$A$147:$G$149,3,TRUE)),IF($B$19=2,(VLOOKUP(2,Tablas!$A$147:$G$149,3,TRUE)), (VLOOKUP(3,Tablas!$A$147:$G$149,3,TRUE))))))) -> 413.4853333 | D83: =IF($B$15=1,IF($B$17=0,0,IF($B$19=0,0,IF($B$19=1,(VLOOKUP(1,Tablas!$A$147:$G$149,4,TRUE)),(VLOOKUP(2,Tablas!$A$147:$G$149,4,TRUE))))), IF($B$17=0,0,IF($B$19=0,0,IF($B$19=1,(VLOOKUP(1,Tablas!$A$147:$G$149,4,TRUE)),IF($B$19=2,(VLOOKUP(2,Tablas!$A$147:$G$149,4,TRUE)), (VLOOKUP(3,Tablas!$A$147:$G$149,4,TRUE))))))) -> 362.236 | E83: =IF($B$15=1,IF($B$17=0,0,IF($B$19=0,0,IF($B$19=1,(VLOOKUP(1,Tablas!$A$147:$G$149,5,TRUE)),(VLOOKUP(2,Tablas!$A$147:$G$149,5,TRUE))))), IF($B$17=0,0,IF($B$19=0,0,IF($B$19=1,(VLOOKUP(1,Tablas!$A$147:$G$149,5,TRUE)),IF($B$19=2,(VLOOKUP(2,Tablas!$A$147:$G$149,5,TRUE)), (VLOOKUP(3,Tablas!$A$147:$G$149,5,TRUE))))))) -> 299.166 | F83: =IF($B$15=1,IF($B$17=0,0,IF($B$19=0,0,IF($B$19=1,(VLOOKUP(1,Tablas!$A$147:$G$149,6,TRUE)),(VLOOKUP(2,Tablas!$A$147:$G$149,6,TRUE))))), IF($B$17=0,0,IF($B$19=0,0,IF($B$19=1,(VLOOKUP(1,Tablas!$A$147:$G$149,6,TRUE)),IF($B$19=2,(VLOOKUP(2,Tablas!$A$147:$G$149,6,TRUE)), (VLOOKUP(3,Tablas!$A$147:$G$149,6,TRUE))))))) -> 259.658 | G83: =IF($B$15=1,IF($B$17=0,0,IF($B$19=0,0,IF($B$19=1,(VLOOKUP(1,Tablas!$A$147:$G$149,7,TRUE)),(VLOOKUP(2,Tablas!$A$147:$G$149,7,TRUE))))), IF($B$17=0,0,IF($B$19=0,0,IF($B$19=1,(VLOOKUP(1,Tablas!$A$147:$G$149,7,TRUE)),IF($B$19=2,(VLOOKUP(2,Tablas!$A$147:$G$149,7,TRUE)), (VLOOKUP(3,Tablas!$A$147:$G$149,7,TRUE))))))) -> 196.1913333
A85: Este presupuesto solamente tiene carácter informativo y en ningún momento expresa compromiso legal para suministrarle cobertura de seguro. La emisión de una póliza de seguro Bupa está sujeta a todas las evaluaciones de riesgo por parte de Bupa y a la recepción de todos los pagos de prima requeridos.

Sheet Global Premier
I1: RESUMEN DE BENEFICIOS | P1: RESUMEN DE BENEFICIOS | W1: RESUMEN DE BENEFICIOS
A5: Cotización de Seguro Médico Internacional Global Premier Health Plan Tarifas en US$ | Validas: 1 de enero de 2024
A13: Nombre del Asegurado Titular | B13: =+'INGRESO DE DATOS'!$C$37 -> John Doe
A15: Número de adultos en la póliza | B15: =+'INGRESO DE DATOS'!$C$39 -> 2
A17: Número de Dependientes en la póliza | B17: =+'INGRESO DE DATOS'!$C$41 -> 2 | C17: =IF('INGRESO DE DATOS'!$P$2=TRUE, "Cotización para dependiente de 24 años","") -> 
A19: Edad del Asegurado Titular | B19: =+'INGRESO DE DATOS'!$C$43 -> 32 | D19: Edad del/la conyuge | F19: =+'INGRESO DE DATOS'!$C$45 -> 46
A21: Fecha de la cotización | B21: =NOW() -> 2024-01-09T14:34:53.990
A23: =IF('INGRESO DE DATOS'!P3=TRUE,"Variante con coaseguro fuera del país de residencia: SI","Variante con coaseguro fuera del país de residencia: NO") -> Variante con coaseguro fuera del país de residencia: NO
A25: Deducibles | C25: PLAN 1 | D25: PLAN 2 | E25: PLAN 3 | F25: PLAN 4
A26: En el país de residencia | C26: 250 | D26: 2000 | E26: 5000 | F26: 10000
A27: Fuera del país de residencia | C27: 5000 | D27: 2000 | E27: 5000 | F27: 10000
A29: TARIFAS ANUALES
A30: Prima para Asegurado Titular | C30: =VLOOKUP($B$19,Tablas!$A$156:$G$222,3,TRUE) -> 5500.5 | D30: =VLOOKUP($B$19,Tablas!$A$156:$G$222,4,TRUE) -> 4992.75 | E30: =VLOOKUP($B$19,Tablas!$A$156:$G$222,5,TRUE) -> 3601.5 | F30: =VLOOKUP($B$19,Tablas!$A$156:$G$222,6,TRUE) -> 2607.75
A31: Prima para conyuge | C31: =IF($B$15=1,0,(VLOOKUP($F$19,Tablas!$A$156:$G$222,3,TRUE))) -> 7543.5 | D31: =IF($B$15=1,0,(VLOOKUP($F$19,Tablas!$A$156:$G$222,4,TRUE))) -> 6845.25 | E31: =IF($B$15=1,0,(VLOOKUP($F$19,Tablas!$A$156:$G$222,5,TRUE))) -> 4831.5 | F31: =IF($B$15=1,0,(VLOOKUP($F$19,Tablas!$A$156:$G$222,6,TRUE))) -> 3496.5
A32: Prima para hijo (s) | C32: =IF($B$17=0,0,(VLOOKUP($B$17,Tablas!$A$223:$G$225,3,TRUE))) -> 3331.5 | D32: =IF($B$17=0,0,(VLOOKUP($B$17,Tablas!$A$223:$G$225,4,TRUE))) -> 3021.75 | E32: =IF($B$17=0,0,(VLOOKUP($B$17,Tablas!$A$223:$G$225,5,TRUE))) -> 2262 | F32: =IF($B$17=0,0,(VLOOKUP($B$17,Tablas!$A$223:$G$225,6,TRUE))) -> 1639.5
A33: Total de Prima neta | C33: =SUM(C30:C32) -> 16375.5 | D33: =SUM(D30:D32) -> 14859.75 | E33: 10695 | F33: 7743.75
A34: Ajuste por la variante con coaseguro fuera del país de residencia | C34: =IF('INGRESO DE DATOS'!$P$3,C33*-15%,0) -> 0 | D34: =IF('INGRESO DE DATOS'!$P$3,D33*-15%,0) -> 0 | E34: =IF('INGRESO DE DATOS'!$P$3,E33*-15%,0) -> 0 | F34: =IF('INGRESO DE DATOS'!$P$3,F33*-15%,0) -> 0
A35: Tarifa administrativa anual | C35: 75 | D35: 75 | E35: 75 | F35: 75
A36: UVA (12%) | C36: =(C33+C35)*'INGRESO DE DATOS'!$S$30 -> 1974.06 | D36: =(D33+D35)*'INGRESO DE DATOS'!$S$30 -> 1792.17 | E36: =(E33+E35)*'INGRESO DE DATOS'!$S$30 -> 1292.4 | F36: =(F33+F35)*'INGRESO DE DATOS'!$S$30 -> 938.25
A37: ITBMS (7%)
A38: TOTAL ANUAL | C38: =SUM(C33:C37) -> 18424.56 | D38: =SUM(D33:D37) -> 16726.92 | E38: 12062.4 | F38: =SUM(F33:F37) -> 8757
A40: TARIFAS SEMESTRALES
A41: Prima para Asegurado Titular | C41: =VLOOKUP($B$19,Tablas!$A$533:$G$599,3,TRUE) -> 2915.265 | D41: =VLOOKUP($B$19,Tablas!$A$533:$G$599,4,TRUE) -> 2646.1575 | E41: =VLOOKUP($B$19,Tablas!$A$533:$G$599,5,TRUE) -> 1908.795 | F41: =VLOOKUP($B$19,Tablas!$A$533:$G$599,6,TRUE) -> 1382.1075
A42: Prima para conyuge | C42: =IF($B$15=1,0,(VLOOKUP($F$19,Tablas!$A$533:$G$599,3,TRUE))) -> 3998.055 | D42: =IF($B$15=1,0,(VLOOKUP($F$19,Tablas!$A$533:$G$599,4,TRUE))) -> 3627.9825 | E42: =IF($B$15=1,0,(VLOOKUP($F$19,Tablas!$A$533:$G$599,5,TRUE))) -> 2560.695 | F42: =IF($B$15=1,0,(VLOOKUP($F$19,Tablas!$A$533:$G$599,6,TRUE))) -> 1853.145
A43: Prima para hijo (s) | C43: =IF($B$17=0,0,(VLOOKUP($B$17,Tablas!$A$600:$G$602,3,TRUE))) -> 1765.695 | D43: =IF($B$17=0,0,(VLOOKUP($B$17,Tablas!$A$600:$G$602,4,TRUE))) -> 1601.5275 | E43: =IF($B$17=0,0,(VLOOKUP($B$17,Tablas!$A$600:$G$602,5,TRUE))) -> 1198.86 | F43: =IF($B$17=0,0,(VLOOKUP($B$17,Tablas!$A$600:$G$602,6,TRUE))) -> 868.935
A44: Total de Prima neta | C44: =SUM(C41:C43) -> 8679.015 | D44: =SUM(D41:D43) -> 7875.6675 | E44: 5668.35 | F44: 4104.1875
A45: Ajuste por la variante con coaseguro fuera del país de residencia | C45: =IF('INGRESO DE DATOS'!$P$3,C44*-15%,0) -> 0 | D45: =IF('INGRESO DE DATOS'!$P$3,D44*-15%,0) -> 0 | E45: =IF('INGRESO DE DATOS'!$P$3,E44*-15%,0) -> 0 | F45: =IF('INGRESO DE DATOS'!$P$3,F44*-15%,0) -> 0
A46: Tarifa administrativa anual | C46: 75 | D46: 75 | E46: 75 | F46: 75
A47: VAT (5%) : | C47: =(C44+C46)*'INGRESO DE DATOS'!$S$30 -> 1050.4818 | D47: =(D44+D46)*'INGRESO DE DATOS'!$S$30 -> 954.0801 | E47: =(E44+E46)*'INGRESO DE DATOS'!$S$30 -> 689.202 | F47: =(F44+F46)*'INGRESO DE DATOS'!$S$30 -> 501.5025
A48: ITBMS (7%)
A49: TOTAL de primera cuota | C49: =SUM(C44:C48) -> 9804.4968 | D49: =SUM(D44:D48) -> 8904.7476 | E49: 6432.552 | F49: 4680.69
A50: Costo de segunda cuota | C50: =C49-C46*'INGRESO DE DATOS'!$T$30 -> 9720.4968 | D50: =D49-D46*'INGRESO DE DATOS'!$T$30 -> 8820.7476 | E50: =E49-E46*'INGRESO DE DATOS'!$T$30 -> 6348.552 | F50: =F49-F46*'INGRESO DE DATOS'!$T$30 -> 4596.69
A51: TOTAL ANUAL | C51: =C49+C50 -> 19524.9936 | D51: =D49+D50 -> 17725.4952 | E51: 12781.104 | F51: =F49+F50 -> 9277.38
A53: TARIFAS TRIMESTRALES
A54: Prima para Asegurado Titular | C54: =VLOOKUP($B$19,Tablas!$A$760:$G$826,3,TRUE) -> 1512.6375 | D54: =VLOOKUP($B$19,Tablas!$A$760:$G$826,4,TRUE) -> 1373.00625 | E54: =VLOOKUP($B$19,Tablas!$A$760:$G$826,5,TRUE) -> 990.4125 | F54: =VLOOKUP($B$19,Tablas!$A$760:$G$826,6,TRUE) -> 717.13125
A55: Prima para conyuge | C55: =IF($B$15=1,0,(VLOOKUP($F$19,Tablas!$A$760:$G$826,3,TRUE))) -> 2074.4625 | D55: =IF($B$15=1,0,(VLOOKUP($F$19,Tablas!$A$760:$G$826,4,TRUE))) -> 1882.44375 | E55: =IF($B$15=1,0,(VLOOKUP($F$19,Tablas!$A$760:$G$826,5,TRUE))) -> 1328.6625 | F55: =IF($B$15=1,0,(VLOOKUP($F$19,Tablas!$A$760:$G$826,6,TRUE))) -> 961.5375
A56: Prima para hijo (s) | C56: =IF($B$17=0,0,(VLOOKUP($B$17,Tablas!$A$827:$G$829,3,TRUE))) -> 916.1625 | D56: =IF($B$17=0,0,(VLOOKUP($B$17,Tablas!$A$827:$G$829,4,TRUE))) -> 830.98125 | E56: =IF($B$17=0,0,(VLOOKUP($B$17,Tablas!$A$827:$G$829,5,TRUE))) -> 622.05 | F56: =IF($B$17=0,0,(VLOOKUP($B$17,Tablas!$A$827:$G$829,6,TRUE))) -> 450.8625
A57: Total de Prima neta | C57: =SUM(C54:C56) -> 4503.2625 | D57: =SUM(D54:D56) -> 4086.43125 | E57: 2941.125 | F57: 2129.53125
A58: Ajuste por la variante con coaseguro fuera del país de residencia | C58: =IF('INGRESO DE DATOS'!$P$3,C57*-15%,0) -> 0 | D58: =IF('INGRESO DE DATOS'!$P$3,D57*-15%,0) -> 0 | E58: =IF('INGRESO DE DATOS'!$P$3,E57*-15%,0) -> 0 | F58: =IF('INGRESO DE DATOS'!$P$3,F57*-15%,0) -> 0
A59: Tarifa administrativa anual | C59: 75 | D59: 75 | E59: 75 | F59: 75
A60: IVA (12%) | C60: =(C57+C59)*'INGRESO DE DATOS'!$S$30 -> 549.3915 | D60: =(D57+D59)*'INGRESO DE DATOS'!$S$30 -> 499.37175 | E60: =(E57+E59)*'INGRESO DE DATOS'!$S$30 -> 361.935 | F60: =(F57+F59)*'INGRESO DE DATOS'!$S$30 -> 264.54375
A61: ITBMS (7%)
A62: TOTAL de primera cuota | C62: =SUM(C57:C61) -> 5127.654 | D62: =SUM(D57:D61) -> 4660.803 | E62: 3378.06 | F62: 2469.075
A63: Costo de tarifa trimestral 2 a 4 | C63: =C62-C59*'INGRESO DE DATOS'!$T$30 -> 5043.654 | D63: =D62-D59*'INGRESO DE DATOS'!$T$30 -> 4576.803 | E63: =E62-E59*'INGRESO DE DATOS'!$T$30 -> 3294.06 | F63: =F62-F59*'INGRESO DE DATOS'!$T$30 -> 2385.075
A64: TOTAL ANUAL | C64: =C62+(C63*3) -> 20258.616 | D64: =D62+(D63*3) -> 18391.212 | E64: 13260.24 | F64: =F62+(F63*3) -> 9624.3
A66: TARIFAS MENSUALES
A67: Prima para Asegurado Titular | C67: =VLOOKUP($B$19,Tablas!$A$230:$G$296,3,TRUE) -> 513.38 | D67: =VLOOKUP($B$19,Tablas!$A$230:$G$296,4,TRUE) -> 465.99 | E67: =VLOOKUP($B$19,Tablas!$A$230:$G$296,5,TRUE) -> 336.14 | F67: =VLOOKUP($B$19,Tablas!$A$230:$G$296,6,TRUE) -> 243.39
A68: Prima para conyuge | C68: =IF($B$15=1,0,(VLOOKUP($F$19,Tablas!$A$230:$G$296,3,TRUE))) -> 704.06 | D68: =IF($B$15=1,0,(VLOOKUP($F$19,Tablas!$A$230:$G$296,4,TRUE))) -> 638.89 | E68: =IF($B$15=1,0,(VLOOKUP($F$19,Tablas!$A$230:$G$296,5,TRUE))) -> 450.94 | F68: =IF($B$15=1,0,(VLOOKUP($F$19,Tablas!$A$230:$G$296,6,TRUE))) -> 326.34
A69: Prima para hijo (s) | C69: =IF($B$17=0,0,(VLOOKUP($B$17,Tablas!$A$297:$G$299,3,TRUE))) -> 310.94 | D69: =IF($B$17=0,0,(VLOOKUP($B$17,Tablas!$A$297:$G$299,4,TRUE))) -> 282.03 | E69: =IF($B$17=0,0,(VLOOKUP($B$17,Tablas!$A$297:$G$299,5,TRUE))) -> 211.12 | F69: =IF($B$17=0,0,(VLOOKUP($B$17,Tablas!$A$297:$G$299,6,TRUE))) -> 153.02
A70: Total de Prima neta | C70: =SUM(C67:C69) -> 1528.38 | D70: =SUM(D67:D69) -> 1386.91 | E70: 998.2 | F70: 722.75
A71: Ajuste por la variante con coaseguro fuera del país de residencia | C71: =IF('INGRESO DE DATOS'!$P$3,C70*-15%,0) -> 0 | D71: =IF('INGRESO DE DATOS'!$P$3,D70*-15%,0) -> 0 | E71: =IF('INGRESO DE DATOS'!$P$3,E70*-15%,0) -> 0 | F71: =IF('INGRESO DE DATOS'!$P$3,F70*-15%,0) -> 0
A72: Tarifa administrativa anual | C72: 75 | D72: 75 | E72: 75 | F72: 75
A73: VAT (5%) : | C73: =(C70+C72)*'INGRESO DE DATOS'!$S$30 -> 192.4056 | D73: =(D70+D72)*'INGRESO DE DATOS'!$S$30 -> 175.4292 | E73: =(E70+E72)*'INGRESO DE DATOS'!$S$30 -> 128.784 | F73: =(F70+F72)*'INGRESO DE DATOS'!$S$30 -> 95.73
A74: ITBMS (7%)
A75: TOTAL de primera cuota | C75: =SUM(C70:C74) -> 1795.7856 | D75: =SUM(D70:D74) -> 1637.3392 | E75: 1201.984 | F75: 893.48
A76: Costo de Tarifa mensual de 2 a 12 | C76: =C75-C72*'INGRESO DE DATOS'!$T$30 -> 1711.7856 | D76: =D75-D72*'INGRESO DE DATOS'!$T$30 -> 1553.3392 | E76: =E75-E72*'INGRESO DE DATOS'!$T$30 -> 1117.984 | F76: =F75-F72*'INGRESO DE DATOS'!$T$30 -> 809.48
A77: TOTAL ANUAL | C77: =C75+(C76*11) -> 20625.4272 | D77: =D75+(D76*11) -> 18724.0704 | E77: 13499.808 | F77: =F75+(F76*11) -> 9797.76
A79: Este presupuesto solamente tiene carácter informativo y en ningún momento expresa compromiso legal para suministrarle cobertura de seguro. La emisión de una póliza de seguro Bupa está sujeta a todas las evaluaciones de riesgo por parte de Bupa y a la recepción de todos los pagos de prima requeridos.

Sheet Global Select
I1: RESUMEN DE BENEFICIOS | P1: RESUMEN DE BENEFICIOS
A5: Cotización de Seguro Médico Internacional Global Select Health Plan Tarifas en US$ | Validas: 1 de enero de 2024
A13: Nombre del Asegurado Titular | B13: =+'INGRESO DE DATOS'!$C$37 -> John Doe
A15: Número de adultos en la póliza | B15: =+'INGRESO DE DATOS'!$C$39 -> 2
A17: Número de Dependientes en la póliza | B17: =+'INGRESO DE DATOS'!$C$41 -> 2 | C17: =IF('INGRESO DE DATOS'!$P$2=TRUE, "Cotización para dependiente de 24 años","") -> 
A19: Edad del Asegurado Titular | B19: =+'INGRESO DE DATOS'!$C$43 -> 32 | D19: Edad del/la conyuge | F19: =+'INGRESO DE DATOS'!$C$45 -> 46
A21: Fecha de la cotización | B21: =NOW() -> 2024-01-09T14:34:53.990
A23: =IF('INGRESO DE DATOS'!P3=TRUE,"Variante con coaseguro fuera del país de residencia: SI","Variante con coaseguro fuera del país de residencia: NO") -> Variante con coaseguro fuera del país de residencia: NO
A25: DEDUCIBLES | C25: PLAN 1 | D25: PLAN 2 | E25: PLAN 3 | F25: PLAN 4
A26: En el país de residencia | C26: 250 | D26: 2000 | E26: 5000 | F26: 10000
A27: Fuera del país de residencia | C27: 5000 | D27: 2000 | E27: 5000 | F27: 10000
A29: TARIFAS ANUALES
A30: Prima para Asegurado Titular | C30: =VLOOKUP($B$19,Tablas!$A$307:$G$373,3,TRUE) -> 5816.55 | D30: =VLOOKUP($B$19,Tablas!$A$307:$G$373,4,TRUE) -> 5581.95 | E30: =VLOOKUP($B$19,Tablas!$A$307:$G$373,5,TRUE) -> 4044.3 | F30: =VLOOKUP($B$19,Tablas!$A$307:$G$373,6,TRUE) -> 2930.8
A31: Prima para conyuge | C31: =IF($B$15=1,0,(VLOOKUP($F$19,Tablas!$A$307:$G$373,3,TRUE))) -> 8262 | D31: =IF($B$15=1,0,(VLOOKUP($F$19,Tablas!$A$307:$G$373,4,TRUE))) -> 7927.95 | E31: =IF($B$15=1,0,(VLOOKUP($F$19,Tablas!$A$307:$G$373,5,TRUE))) -> 5609.15 | F31: =IF($B$15=1,0,(VLOOKUP($F$19,Tablas!$A$307:$G$373,6,TRUE))) -> 4066.4
A32: Prima para hijo (s) | C32: =IF($B$17=0,0,(VLOOKUP($B$17,Tablas!$A$374:$G$376,3,TRUE))) -> 3803.75 | D32: =IF($B$17=0,0,(VLOOKUP($B$17,Tablas!$A$374:$G$376,4,TRUE))) -> 3646.5 | E32: =IF($B$17=0,0,(VLOOKUP($B$17,Tablas!$A$374:$G$376,5,TRUE))) -> 2751.45 | F32: =IF($B$17=0,0,(VLOOKUP($B$17,Tablas!$A$374:$G$376,6,TRUE))) -> 1994.1
A33: Total de Prima neta | C33: =SUM(C30:C32) -> 17882.3 | D33: =SUM(D30:D32) -> 17156.4 | E33: 12404.9 | F33: 8991.3
A34: Ajuste por la variante con coaseguro fuera del país de residencia | C34: =IF('INGRESO DE DATOS'!$P$3,C33*-15%,0) -> 0 | D34: =IF('INGRESO DE DATOS'!$P$3,D33*-15%,0) -> 0 | E34: =IF('INGRESO DE DATOS'!$P$3,E33*-15%,0) -> 0 | F34: =IF('INGRESO DE DATOS'!$P$3,F33*-15%,0) -> 0
A35: Tarifa administrativa anual | C35: 75 | D35: 75 | E35: 75 | F35: 75
A36: IVA (12%) | C36: =(C33+C35)*'INGRESO DE DATOS'!$S$30 -> 2154.876 | D36: =(D33+D35)*'INGRESO DE DATOS'!$S$30 -> 2067.768 | E36: =(E33+E35)*'INGRESO DE DATOS'!$S$30 -> 1497.588 | F36: =(F33+F35)*'INGRESO DE DATOS'!$S$30 -> 1087.956
A37: ITBMS (7%)
A38: TOTAL ANUAL | C38: =SUM(C33:C37) -> 20112.176 | D38: =SUM(D33:D37) -> 19299.168 | E38: 13977.488 | F38: =SUM(F33:F37) -> 10154.256
A40: TARIFAS SEMESTRALES
A41: Prima para Asegurado Titular | C41: =VLOOKUP($B$19,Tablas!$A$608:$G$674,3,TRUE) -> 3082.7715 | D41: =VLOOKUP($B$19,Tablas!$A$608:$G$674,4,TRUE) -> 2958.4335 | E41: =VLOOKUP($B$19,Tablas!$A$608:$G$674,5,TRUE) -> 2143.479 | F41: =VLOOKUP($B$19,Tablas!$A$608:$G$674,6,TRUE) -> 1553.324
A42: Prima para conyuge | C42: =IF($B$15=1,0,(VLOOKUP($F$19,Tablas!$A$608:$G$674,3,TRUE))) -> 4378.86 | D42: =IF($B$15=1,0,(VLOOKUP($F$19,Tablas!$A$608:$G$674,4,TRUE))) -> 4201.8135 | E42: =IF($B$15=1,0,(VLOOKUP($F$19,Tablas!$A$608:$G$674,5,TRUE))) -> 2972.8495 | F42: =IF($B$15=1,0,(VLOOKUP($F$19,Tablas!$A$608:$G$674,6,TRUE))) -> 2155.192
A43: Prima para hijo (s) | C43: =IF($B$17=0,0,(VLOOKUP($B$17,Tablas!$A$675:$G$677,3,TRUE))) -> 2015.9875 | D43: =IF($B$17=0,0,(VLOOKUP($B$17,Tablas!$A$675:$G$677,4,TRUE))) -> 1932.645 | E43: =IF($B$17=0,0,(VLOOKUP($B$17,Tablas!$A$675:$G$677,5,TRUE))) -> 1458.2685 | F43: =IF($B$17=0,0,(VLOOKUP($B$17,Tablas!$A$675:$G$677,6,TRUE))) -> 1056.873
A44: Total de Prima neta | C44: =SUM(C41:C43) -> 9477.619 | D44: =SUM(D41:D43) -> 9092.892 | E44: 6574.597 | F44: 4765.389
A45: Ajuste por la variante con coaseguro fuera del país de residencia | C45: =IF('INGRESO DE DATOS'!$P$3,C44*-15%,0) -> 0 | D45: =IF('INGRESO DE DATOS'!$P$3,D44*-15%,0) -> 0 | E45: =IF('INGRESO DE DATOS'!$P$3,E44*-15%,0) -> 0 | F45: =IF('INGRESO DE DATOS'!$P$3,F44*-15%,0) -> 0
A46: Tarifa administrativa anual | C46: 75 | D46: 75 | E46: 75 | F46: 75
A47: IVA (12%) | C47: =(C44+C46)*'INGRESO DE DATOS'!$S$30 -> 1146.31428 | D47: =(D44+D46)*'INGRESO DE DATOS'!$S$30 -> 1100.14704 | E47: =(E44+E46)*'INGRESO DE DATOS'!$S$30 -> 797.95164 | F47: =(F44+F46)*'INGRESO DE DATOS'!$S$30 -> 580.84668
A48: ITBMS (7%)
A49: TOTAL de primera cuota | C49: =SUM(C44:C48) -> 10698.93328 | D49: =SUM(D44:D48) -> 10268.03904 | E49: 7447.54864 | F49: 5421.23568
A50: Costo de segunda cuota | C50: =C49-C46*'INGRESO DE DATOS'!$T$30 -> 10614.93328 | D50: =D49-D46*'INGRESO DE DATOS'!$T$30 -> 10184.03904 | E50: =E49-E46*'INGRESO DE DATOS'!$T$30 -> 7363.54864 | F50: =F49-F46*'INGRESO DE DATOS'!$T$30 -> 5337.23568
A51: TOTAL ANUAL | C51: =C49+C50 -> 21313.86656 | D51: =D49+D50 -> 20452.07808 | E51: 14811.09728 | F51: =F49+F50 -> 10758.47136
A53: TARIFAS TRIMESTRALES
A54: Prima para Asegurado Titular | C54: =VLOOKUP($B$19,Tablas!$A$835:$G$901,3,TRUE) -> 1599.55125 | D54: =VLOOKUP($B$19,Tablas!$A$835:$G$901,4,TRUE) -> 1535.03625 | E54: =VLOOKUP($B$19,Tablas!$A$835:$G$901,5,TRUE) -> 1112.1825 | F54: =VLOOKUP($B$19,Tablas!$A$835:$G$901,6,TRUE) -> 805.97
A55: Prima para conyuge | C55: =IF($B$15=1,0,(VLOOKUP($F$19,Tablas!$A$835:$G$901,3,TRUE))) -> 2272.05 | D55: =IF($B$15=1,0,(VLOOKUP($F$19,Tablas!$A$835:$G$901,4,TRUE))) -> 2180.18625 | E55: =IF($B$15=1,0,(VLOOKUP($F$19,Tablas!$A$835:$G$901,5,TRUE))) -> 1542.51625 | F55: =IF($B$15=1,0,(VLOOKUP($F$19,Tablas!$A$835:$G$901,6,TRUE))) -> 1118.26
A56: Prima para hijo (s) | C56: =IF($B$17=0,0,(VLOOKUP($B$17,Tablas!$A$902:$G$904,3,TRUE))) -> 1046.03125 | D56: =IF($B$17=0,0,(VLOOKUP($B$17,Tablas!$A$902:$G$904,4,TRUE))) -> 1002.7875 | E56: =IF($B$17=0,0,(VLOOKUP($B$17,Tablas!$A$902:$G$904,5,TRUE))) -> 756.64875 | F56: =IF($B$17=0,0,(VLOOKUP($B$17,Tablas!$A$902:$G$904,6,TRUE))) -> 548.3775
A57: Total de Prima neta | C57: =SUM(C54:C56) -> 4917.6325 | D57: =SUM(D54:D56) -> 4718.01 | E57: 3411.3475 | F57: 2472.6075
A58: Ajuste por la variante con coaseguro fuera del país de residencia | C58: =IF('INGRESO DE DATOS'!$P$3,C57*-15%,0) -> 0 | D58: =IF('INGRESO DE DATOS'!$P$3,D57*-15%,0) -> 0 | E58: =IF('INGRESO DE DATOS'!$P$3,E57*-15%,0) -> 0 | F58: =IF('INGRESO DE DATOS'!$P$3,F57*-15%,0) -> 0
A59: Tarifa administrativa anual | C59: 75 | D59: 75 | E59: 75 | F59: 75
A60: IVA (1%) | C60: =(C57+C59)*'INGRESO DE DATOS'!$S$30 -> 599.1159 | D60: =(D57+D59)*'INGRESO DE DATOS'!$S$30 -> 575.1612 | E60: =(E57+E59)*'INGRESO DE DATOS'!$S$30 -> 418.3617 | F60: =(F57+F59)*'INGRESO DE DATOS'!$S$30 -> 305.7129
A61: ITBMS (7%)
A62: TOTAL de primera cuota | C62: =SUM(C57:C61) -> 5591.7484 | D62: =SUM(D57:D61) -> 5368.1712 | E62: 3904.7092 | F62: 2853.3204
A63: Costo de tarifa trimestral 2 a 4 | C63: =C62-C59*'INGRESO DE DATOS'!$T$30 -> 5507.7484 | D63: =D62-D59*'INGRESO DE DATOS'!$T$30 -> 5284.1712 | E63: =E62-E59*'INGRESO DE DATOS'!$T$30 -> 3820.7092 | F63: =F62-F59*'INGRESO DE DATOS'!$T$30 -> 2769.3204
A64: TOTAL ANUAL | C64: =C62+(C63*3) -> 22114.9936 | D64: =D62+(D63*3) -> 21220.6848 | E64: 15366.8368 | F64: =F62+(F63*3) -> 11161.2816
A66: TARIFAS MENSUALES
A67: Prima para Asegurado Titular | C67: =VLOOKUP($B$19,Tablas!$A$381:$G$447,3,TRUE) -> 542.878 | D67: =VLOOKUP($B$19,Tablas!$A$381:$G$447,4,TRUE) -> 520.982 | E67: =VLOOKUP($B$19,Tablas!$A$381:$G$447,5,TRUE) -> 377.468 | F67: =VLOOKUP($B$19,Tablas!$A$381:$G$447,6,TRUE) -> 273.5413333
A68: Prima para conyuge | C68: =IF($B$15=1,0,(VLOOKUP($F$19,Tablas!$A$381:$G$447,3,TRUE))) -> 771.12 | D68: =IF($B$15=1,0,(VLOOKUP($F$19,Tablas!$A$381:$G$447,4,TRUE))) -> 739.942 | E68: =IF($B$15=1,0,(VLOOKUP($F$19,Tablas!$A$381:$G$447,5,TRUE))) -> 523.5206667 | F68: =IF($B$15=1,0,(VLOOKUP($F$19,Tablas!$A$381:$G$447,6,TRUE))) -> 379.5306667
A69: Prima para hijo (s) | C69: =IF($B$17=0,0,(VLOOKUP($B$17,Tablas!$A$448:$G$450,3,TRUE))) -> 355.0166667 | D69: =IF($B$17=0,0,(VLOOKUP($B$17,Tablas!$A$448:$G$450,4,TRUE))) -> 340.34 | E69: =IF($B$17=0,0,(VLOOKUP($B$17,Tablas!$A$448:$G$450,5,TRUE))) -> 256.802 | F69: =IF($B$17=0,0,(VLOOKUP($B$17,Tablas!$A$448:$G$450,6,TRUE))) -> 186.116
A70: Total de Prima neta | C70: =SUM(C67:C69) -> 1669.014667 | D70: =SUM(D67:D69) -> 1601.264 | E70: 1157.790667 | F70: 839.188
A71: Ajuste por la variante con coaseguro fuera del país de residencia | C71: =IF('INGRESO DE DATOS'!$P$3,C70*-15%,0) -> 0 | D71: =IF('INGRESO DE DATOS'!$P$3,D70*-15%,0) -> 0 | E71: =IF('INGRESO DE DATOS'!$P$3,E70*-15%,0) -> 0 | F71: =IF('INGRESO DE DATOS'!$P$3,F70*-15%,0) -> 0
A72: Tarifa administrativa anual | C72: 75 | D72: 75 | E72: 75 | F72: 75
A73: IVA (12%) | C73: =(C70+C72)*'INGRESO DE DATOS'!$S$30 -> 209.28176 | D73: =(D70+D72)*'INGRESO DE DATOS'!$S$30 -> 201.15168 | E73: =(E70+E72)*'INGRESO DE DATOS'!$S$30 -> 147.93488 | F73: =(F70+F72)*'INGRESO DE DATOS'!$S$30 -> 109.70256
A74: ITBMS (7%)
A75: TOTAL de primera cuota | C75: =SUM(C70:C74) -> 1953.296427 | D75: =SUM(D70:D74) -> 1877.41568 | E75: 1380.725547 | F75: 1023.89056
A76: Costo de Tarifa mensual de 2 a 12 | C76: =C75-C72*'INGRESO DE DATOS'!$T$30 -> 1869.296427 | D76: =D75-D72*'INGRESO DE DATOS'!$T$30 -> 1793.41568 | E76: =E75-E72*'INGRESO DE DATOS'!$T$30 -> 1296.725547 | F76: =F75-F72*'INGRESO DE DATOS'!$T$30 -> 939.89056
A77: TOTAL ANUAL | C77: =C75+(C76*11) -> 22515.55712 | D77: =D75+(D76*11) -> 21604.98816 | E77: 15644.70656 | F77: =F75+(F76*11) -> 11362.68672
A79: Este presupuesto solamente tiene carácter informativo y en ningún momento expresa compromiso legal para suministrarle cobertura de seguro. La emisión de una póliza de seguro Bupa está sujeta a todas las evaluaciones de riesgo por parte de Bupa y a la recepción de todos los pagos de prima requeridos.

Sheet Global Major Medical
G1: RESUMEN DE BENEFICIOS | N1: RESUMEN DE BENEFICIOS
A5: Cotización de Seguro Médico Internacional Global Major Medical Health Plan Tarifas en US$ | Validas: 1 de enero de 2024
A13: Nombre del Asegurado Titular | B13: =+'INGRESO DE DATOS'!$C$37 -> John Doe
A15: Número de adultos en la póliza | B15: =+'INGRESO DE DATOS'!$C$39 -> 2
A17: Número de Dependientes en la póliza | B17: =+'INGRESO DE DATOS'!$C$41 -> 2 | C17: =IF('INGRESO DE DATOS'!$P$2=TRUE, "Cotización para dependiente de 24 años","") -> 
A19: Edad del Asegurado Titular | B19: =+'INGRESO DE DATOS'!$C$43 -> 32 | C19: Edad del/la conyuge | D19: =+'INGRESO DE DATOS'!$C$45 -> 46
A21: Fecha de la cotización | B21: =NOW() -> 2024-01-09T14:34:53.990
A23: DEDUCIBLeS | C23: PLAN 1 | D23: PLAN 2
A24: En el país de residencia | C24: 10000 | D24: 20000
A25: Fuera del país de residencia | C25: 10000 | D25: 20000
A27: TARIFAS ANUALES
A28: Prima para Asegurado Titular | C28: =VLOOKUP($B$19,Tablas!$A$1138:$G$1204,3,TRUE) -> 3435.7 | D28: =VLOOKUP($B$19,Tablas!$A$1138:$G$1204,4,TRUE) -> 2616.3
A29: Prima para conyuge | C29: =IF($B$15=1,0,(VLOOKUP($D$19,Tablas!$A$1138:$G$1204,3,TRUE))) -> 4723.45 | D29: =IF($B$15=1,0,(VLOOKUP($D$19,Tablas!$A$1138:$G$1204,4,TRUE))) -> 3581.05
A30: Prima para hijo (s) | C30: =IF($B$17=0,0,(VLOOKUP($B$17,Tablas!$A$1205:$G$1207,3,TRUE))) -> 2068.9 | D30: =IF($B$17=0,0,(VLOOKUP($B$17,Tablas!$A$1205:$G$1207,4,TRUE))) -> 1625.2
A31: Total de Prima neta | C31: =SUM(C28:C30) -> 10228.05 | D31: =SUM(D28:D30) -> 7822.55
A32: Tarifa administrativa anual | C32: 75 | D32: 75
A33: IVA (12%) | C33: =(C31+C32)*'INGRESO DE DATOS'!$S$30 -> 1236.366 | D33: =(D31+D32)*'INGRESO DE DATOS'!$S$30 -> 947.706
A34: ITBMS (7%)
A35: TOTAL ANUAL | C35: =SUM(C31:C34) -> 11539.416 | D35: =SUM(D31:D34) -> 8845.256
A37: TARIFAS SEMESTRALES
A38: Prima para Asegurado Titular | C38: =VLOOKUP($B$19,Tablas!$A$1362:$G$1428,3,TRUE) -> 1820.921 | D38: =VLOOKUP($B$19,Tablas!$A$1362:$G$1428,4,TRUE) -> 1386.639
A39: Prima para conyuge | C39: =IF($B$15=1,0,(VLOOKUP($D$19,Tablas!$A$1362:$G$1428,3,TRUE))) -> 2503.4285 | D39: =IF($B$15=1,0,(VLOOKUP($D$19,Tablas!$A$1362:$G$1428,4,TRUE))) -> 1897.9565
A40: Prima para hijo (s) | C40: =IF($B$17=0,0,(VLOOKUP($B$17,Tablas!$A$1429:$G$1431,3,TRUE))) -> 1096.517 | D40: =IF($B$17=0,0,(VLOOKUP($B$17,Tablas!$A$1429:$G$1431,4,TRUE))) -> 861.356
A41: Total de Prima neta | C41: =SUM(C38:C40) -> 5420.8665 | D41: =SUM(D38:D40) -> 4145.9515
A42: Tarifa administrativa anual | C42: 75 | D42: 75
A43: IVA (12%) | C43: =(C41+C42)*'INGRESO DE DATOS'!$S$30 -> 659.50398 | D43: =(D41+D42)*'INGRESO DE DATOS'!$S$30 -> 506.51418
A44: ITBMS (7%)
A45: TOTAL de primera cuota | C45: =SUM(C41:C44) -> 6155.37048 | D45: =SUM(D41:D44) -> 4727.46568
A46: Costo de segunda cuota | C46: =C45-C42*'INGRESO DE DATOS'!$T$30 -> 6071.37048 | D46: =D45-D42*'INGRESO DE DATOS'!$T$30 -> 4643.46568
A47: TOTAL ANUAL | C47: =C45+C46 -> 12226.74096 | D47: =D45+D46 -> 9370.93136
A49: TARIFAS TRIMESTRALES
A50: Prima para Asegurado Titular | C50: =VLOOKUP($B$19,Tablas!$A$1287:$G$1353,3,TRUE) -> 944.8175 | D50: =VLOOKUP($B$19,Tablas!$A$1287:$G$1353,4,TRUE) -> 719.4825
A51: Prima para conyuge | C51: =IF($B$15=1,0,(VLOOKUP($D$19,Tablas!$A$1287:$G$1353,3,TRUE))) -> 1298.94875 | D51: =IF($B$15=1,0,(VLOOKUP($D$19,Tablas!$A$1287:$G$1353,4,TRUE))) -> 984.78875
A52: Prima para hijo (s) | C52: =IF($B$17=0,0,(VLOOKUP($B$17,Tablas!$A$1354:$G$1356,3,TRUE))) -> 568.9475 | D52: =IF($B$17=0,0,(VLOOKUP($B$17,Tablas!$A$1354:$G$1356,4,TRUE))) -> 446.93
A53: Total de Prima neta | C53: =SUM(C50:C52) -> 2812.71375 | D53: =SUM(D50:D52) -> 2151.20125
A54: Tarifa administrativa anual | C54: 75 | D54: 75
A55: IVA (12%) | C55: =(C53+C54)*'INGRESO DE DATOS'!$S$30 -> 346.52565 | D55: =(D53+D54)*'INGRESO DE DATOS'!$S$30 -> 267.14415
A56: ITBMS (7%)
A57: TOTAL de primera cuota | C57: =SUM(C53:C56) -> 3234.2394 | D57: =SUM(D53:D56) -> 2493.3454
A58: Costo de tarifa trimestral 2 a 4 | C58: =C57-C54*'INGRESO DE DATOS'!$T$30 -> 3150.2394 | D58: =D57-D54*'INGRESO DE DATOS'!$T$30 -> 2409.3454
A59: TOTAL ANUAL | C59: =C57+(C58*3) -> 12684.9576 | D59: =D57+(D58*3) -> 9721.3816
A61: TARIFAS MENSUALES
A62: Prima para Asegurado Titular | C62: =VLOOKUP($B$19,Tablas!$A$1212:$G$1278,3,TRUE) -> 320.6653333 | D62: =VLOOKUP($B$19,Tablas!$A$1212:$G$1278,4,TRUE) -> 244.188
A63: Prima para conyuge | C63: =IF($B$15=1,0,(VLOOKUP($D$19,Tablas!$A$1212:$G$1278,3,TRUE))) -> 440.8553333 | D63: =IF($B$15=1,0,(VLOOKUP($D$19,Tablas!$A$1212:$G$1278,4,TRUE))) -> 334.2313333
A64: Prima para hijo (s) | C64: =IF($B$17=0,0,(VLOOKUP($B$17,Tablas!$A$1279:$G$1281,3,TRUE))) -> 193.0973333 | D64: =IF($B$17=0,0,(VLOOKUP($B$17,Tablas!$A$1279:$G$1281,4,TRUE))) -> 151.6853333
A65: Total de Prima neta | C65: =SUM(C62:C64) -> 954.618 | D65: =SUM(D62:D64) -> 730.1046667
A66: Tarifa administrativa anual | C66: 75 | D66: 75
A67: IVA (12%) | C67: =(C65+C66)*'INGRESO DE DATOS'!$S$30 -> 123.55416 | D67: =(D65+D66)*'INGRESO DE DATOS'!$S$30 -> 96.61256
A68: ITBMS (7%)
A69: TOTAL de primera cuota | C69: =SUM(C65:C68) -> 1153.17216 | D69: =SUM(D65:D68) -> 901.7172267
A70: Costo de Tarifa mensual de 2 a 12 | C70: =C69-C66*'INGRESO DE DATOS'!$T$30 -> 1069.17216 | D70: =D69-D66*'INGRESO DE DATOS'!$T$30 -> 817.7172267
A71: TOTAL ANUAL | C71: =C69+(C70*11) -> 12914.06592 | D71: =D69+(D70*11) -> 9896.60672
A73: Este presupuesto solamente tiene carácter informativo y en ningún momento expresa compromiso legal para suministrarle cobertura de seguro. La emisión de una póliza de seguro Bupa está sujeta a todas las evaluaciones de riesgo por parte de Bupa y a la recepción de todos los pagos de prima requeridos.

Sheet Resumen Tarifas
A5: Cotización de Seguro Médico Internacional Bupa Global Major Health Plans Resumen de Tarifas Tarifas en US$ | Validas: 1 de enero de 2024
A13: Nombre del Asegurado Titular | B13: =+'INGRESO DE DATOS'!$C$37 -> John Doe
A15: Número de adultos en la póliza | B15: =+'INGRESO DE DATOS'!$C$39 -> 2
A17: Número de Dependientes en la póliza | B17: =+'INGRESO DE DATOS'!$C$41 -> 2 | C17: =IF('INGRESO DE DATOS'!$P$2=TRUE, "Cotización para dependiente de 24 años","") -> 
A19: Edad del Asegurado Titular | B19: =+'INGRESO DE DATOS'!$C$43 -> 32 | E19: Edad del/la conyuge | F19: =+'INGRESO DE DATOS'!$C$45 -> 46
A21: Fecha de la cotización | B21: =NOW() -> 2024-01-09T14:34:53.990
A23: GLOBAL ULTIMATE HEALTH PLAN
A24: DEDUCIBLES | B24: PLAN 1 | C24: PLAN 2
A25: En el país de residencia | B25: $0 | C25: 1000
A26: Fuera del país de residencia | B26: $0 | C26: 1000
B27: TARIFAS ANUALES
B28: ='Global Ultimate'!C38 -> 115032.96 | C28: ='Global Ultimate'!D38 -> 74248.16
B29: TARIFAS SEMESTRALES
B30: ='Global Ultimate'!C50 -> 60922.9488 | C30: ='Global Ultimate'!D50 -> 39307.0048
B31: TARIFAS TRIMESTRALES
B32: ='Global Ultimate'!C63 -> 31610.964 | C32: ='Global Ultimate'!D63 -> 20516.2755
B33: TARIFAS MENSUALES
B34: ='Global Ultimate'!C76 -> 10728.5696 | C34: ='Global Ultimate'!D76 -> 6921.988267
A35: Ahorros en tarifas de prima para Dependientes* | B35: ='Global Ultimate'!C39 -> 13254 | C35: ='Global Ultimate'!D39 -> 8552
A37: BUPA GLOBAL ELITE HEALTH PLAN
A38: DEDUCIBLES | B38: PLAN 1 | C38: PLAN 2 | D38: PLAN 3 | E38: PLAN 4 | F38: PLAN 5
A39: En el país de residencia | B39: 250 | C39: 2000 | D39: 3500 | E39: 5000 | F39: 10000
A40: Fuera del país de residencia | B40: 5000 | C40: 2000 | D40: 3500 | E40: 5000 | F40: 10000
B41: TARIFAS ANUALES
B42: =+'Global Elite'!C40 -> 38059.28 | C42: =+'Global Elite'!D40 -> 33366.872 | D42: =+'Global Elite'!E40 -> 26916.12 | E42: =+'Global Elite'!F40 -> 23354.688 | F42: =+'Global Elite'!G40 -> 17667.44
B43: TARIFAS SEMESTRALES
B44: =+'Global Elite'!C53 -> 20126.8984 | C44: =+'Global Elite'!D53 -> 17639.92216 | D44: =+'Global Elite'!E53 -> 14221.0236 | E44: =+'Global Elite'!F53 -> 12333.46464 | F44: =+'Global Elite'!G53 -> 9319.2232
B45: TARIFAS TRIMESTRALES
B46: =+'Global Elite'!C67 -> 10443.202 | C46: =+'Global Elite'!D67 -> 9152.7898 | D46: =+'Global Elite'!E67 -> 7378.833 | E46: =+'Global Elite'!F67 -> 6399.4392 | F46: =+'Global Elite'!G67 -> 4835.446
B47: TARIFAS MENSUALES
B48: =+'Global Elite'!C81 -> 3544.359467 | C48: =+'Global Elite'!D81 -> 3106.401387 | D48: =+'Global Elite'!E81 -> 2504.3312 | E48: =+'Global Elite'!F81 -> 2171.93088 | F48: =+'Global Elite'!G81 -> 1641.121067
A49: Ahorros en tarifas de prima para Dependientes* | B49: =+'Global Elite'!C41 -> 4430.2 | C49: =+'Global Elite'!D41 -> 3881.1 | D49: =+'Global Elite'!E41 -> 3205.35 | E49: =+'Global Elite'!F41 -> 2782.05 | F49: =+'Global Elite'!G41 -> 2102.05
A51: GLOBAL PREMIER HEALTH PLAN
A52: DEDUCIBLES | B52: PLAN 1 | C52: PLAN 2 | D52: PLAN 3 | E52: PLAN 4
A53: En el país de residencia | B53: 250 | C53: 2000 | D53: 5000 | E53: 10000
A54: Fuera del país de residencia | B54: 5000 | C54: 2000 | D54: 5000 | E54: 10000
B55: TARIFAS ANUALES
B56: =+'Global Premier'!C38 -> 18424.56 | C56: =+'Global Premier'!D38 -> 16726.92 | D56: =+'Global Premier'!E38 -> 12062.4 | E56: =+'Global Premier'!F38 -> 8757
B57: TARIFAS SEMESTRALES
B58: =+'Global Premier'!C50 -> 9720.4968 | C58: =+'Global Premier'!D50 -> 8820.7476 | D58: =+'Global Premier'!E50 -> 6348.552 | E58: =+'Global Premier'!F50 -> 4596.69
B59: TARIFAS TRIMESTRALES
B60: =+'Global Premier'!C63 -> 5043.654 | C60: =+'Global Premier'!D63 -> 4576.803 | D60: =+'Global Premier'!E63 -> 3294.06 | E60: =+'Global Premier'!F63 -> 2385.075
B61: TARIFAS MENSUALES
B62: =+'Global Premier'!C76 -> 1711.7856 | C62: =+'Global Premier'!D76 -> 1553.3392 | D62: =+'Global Premier'!E76 -> 1117.984 | E62: =+'Global Premier'!F76 -> 809.48
A64: GLOBAL SELECT HEALTH PLAN
A65: DEDUCIBLES | B65: PLAN 1 | C65: PLAN 2 | D65: PLAN 3 | E65: PLAN 4
A66: En el país de residencia | B66: 250 | C66: 2000 | D66: 5000 | E66: 10000
A67: Fuera del país de residencia | B67: 5000 | C67: 2000 | D67: 5000 | E67: 10000
B68: TARIFAS ANUALES
B69: =+'Global Select'!C38 -> 20112.176 | C69: =+'Global Select'!D38 -> 19299.168 | D69: =+'Global Select'!E38 -> 13977.488 | E69: =+'Global Select'!F38 -> 10154.256
B70: TARIFAS SEMESTRALES
B71: =+'Global Select'!C50 -> 10614.93328 | C71: =+'Global Select'!D50 -> 10184.03904 | D71: =+'Global Select'!E50 -> 7363.54864 | E71: =+'Global Select'!F50 -> 5337.23568
B72: TARIFAS TRIMESTRALES
B73: =+'Global Select'!C63 -> 5507.7484 | C73: =+'Global Select'!D63 -> 5284.1712 | D73: =+'Global Select'!E63 -> 3820.7092 | E73: =+'Global Select'!F63 -> 2769.3204
B74: TARIFAS MENSUALES
B75: =+'Global Select'!C76 -> 1869.296427 | C75: =+'Global Select'!D76 -> 1793.41568 | D75: =+'Global Select'!E76 -> 1296.725547 | E75: =+'Global Select'!F76 -> 939.89056
A77: GLOBAL MAJOR MEDICAL HEALTH PLAN
A78: DEDUCIBLES | B78: PLAN 1 | C78: PLAN 2
A79: En el país de residencia | B79: 10000 | C79: 20000
A80: Fuera del país de residencia | B80: 10000 | C80: 20000
B81: TARIFAS ANUALES
B82: ='Global Major Medical'!C35 -> 11539.416 | C82: ='Global Major Medical'!D35 -> 8845.256
B83: TARIFAS SEMESTRALES
B84: ='Global Major Medical'!C46 -> 6071.37048 | C84: ='Global Major Medical'!D46 -> 4643.46568
B85: TARIFAS TRIMESTRALES
B86: ='Global Major Medical'!C58 -> 3150.2394 | C86: ='Global Major Medical'!D58 -> 2409.3454
B87: TARIFAS MENSUALES
B88: ='Global Major Medical'!C70 -> 1069.17216 | C88: ='Global Major Medical'!D70 -> 817.7172267
A90: Este presupuesto solamente tiene carácter informativo y en ningún momento expresa compromiso legal para suministrarle cobertura de seguro. La emisión de una póliza de seguro Bupa está sujeta a todas las evaluaciones de riesgo por parte de Bupa y a la recepción de todos los pagos de prima requeridos. Una tarifa administrativa de US$75 se cargará automáticamente al primer pago. *Basado en un modo de pago anual

Sheet Tablas (hidden)
A2: BUPA GLOBAL ELITE | I2: FACTOR MENSUAL: | K2: 0.09333333333 | M2: Descuento de 24 años | N2: ='INGRESO DE DATOS'!P30 -> 1 | O2: Ultimate | P2: Elite | Q2: Premier | R2: Select | S2: Major Medical
A3: TARIFAS ANUALES | I3: FACTOR TRIMESTRAL: | K3: 0.275 | M3: Descuento de producto (%) | O3: ='INGRESO DE DATOS'!O39 -> 0 | P3: ='INGRESO DE DATOS'!P39 -> 0.15 | Q3: ='INGRESO DE DATOS'!Q39 -> 0.25 | R3: ='INGRESO DE DATOS'!R39 -> 0.15 | S3: ='INGRESO DE DATOS'!S39 -> 0.15
I4: FACTOR SEMIANUAL: | K4: 0.53 | M4: Factor para el descuento combinado | O4: ='INGRESO DE DATOS'!O47 -> 1 | P4: ='INGRESO DE DATOS'!P47 -> 0.85 | Q4: ='INGRESO DE DATOS'!Q47 -> 0.75 | R4: ='INGRESO DE DATOS'!R47 -> 0.85 | S4: ='INGRESO DE DATOS'!S47 -> 0.85
A5: EDAD | C5: 1000 | D5: 2000 | E5: 3500 | F5: 5000 | G5: 10000 | I5: TARIFAS BASE | O5: TARIFAS BASE CON DESCUENTO
A6: 18 | C6: =O6 -> 9838.75 | D6: =P6 -> 8621.55 | E6: 7123.85 | F6: 6174.4 | G6: 4668.2 | I6: 11575 | J6: 10143 | K6: 8381 | L6: 7264 | M6: 5492 | O6: =I6*$P$4 -> 9838.75 | P6: =J6*$P$4 -> 8621.55 | Q6: 7123.85 | R6: 6174.4 | S6: 4668.2
A7: 19 | C7: =O7 -> 9956.9 | D7: =P7 -> 8727.8 | E7: =Q7 -> 7198.65 | F7: =R7 -> 6244.1 | G7: =S7 -> 4719.2 | I7: 11714 | J7: 10268 | K7: 8469 | L7: 7346 | M7: 5552 | O7: =I7*$P$4 -> 9956.9 | P7: =J7*$P$4 -> 8727.8 | Q7: =K7*$P$4 -> 7198.65 | R7: =L7*$P$4 -> 6244.1 | S7: =M7*$P$4 -> 4719.2
A8: 20 | C8: 10084.4 | D8: 8835.75 | E8: 7277.7 | F8: 6310.4 | G8: 4768.5 | I8: 11864 | J8: 10395 | K8: 8562 | L8: 7424 | M8: 5610 | O8: 10084.4 | P8: 8835.75 | Q8: 7277.7 | R8: 6310.4 | S8: 4768.5
A9: 21 | C9: 10209.35 | D9: 8949.65 | E9: 7359.3 | F9: 6381.8 | G9: 4823.75 | I9: 12011 | J9: 10529 | K9: 8658 | L9: 7508 | M9: 5675 | O9: 10209.35 | P9: 8949.65 | Q9: 7359.3 | R9: 6381.8 | S9: 4823.75
A10: 22 | C10: 10341.95 | D10: 9064.4 | E10: 7446 | F10: 6456.6 | G10: 4879 | I10: 12167 | J10: 10664 | K10: 8760 | L10: 7596 | M10: 5740 | O10: 10341.95 | P10: 9064.4 | Q10: 7446 | R10: 6456.6 | S10: 4879
A11: 23 | C11: 10477.95 | D11: 9187.65 | E11: 7535.25 | F11: 6533.1 | G11: 4937.65 | I11: 12327 | J11: 10809 | K11: 8865 | L11: 7686 | M11: 5809 | O11: 10477.95 | P11: 9187.65 | Q11: 7535.25 | R11: 6533.1 | S11: 4937.65
A12: 24 | C12: 10619.05 | D12: 9311.75 | E12: 7624.5 | F12: 6612.15 | G12: 4997.15 | I12: 12493 | J12: 10955 | K12: 8970 | L12: 7779 | M12: 5879 | O12: 10619.05 | P12: 9311.75 | Q12: 7624.5 | R12: 6612.15 | S12: 4997.15
A13: 25 | C13: 10767.8 | D13: 9437.55 | E13: 7717.15 | F13: 6691.2 | G13: 5059.2 | I13: 12668 | J13: 11103 | K13: 9079 | L13: 7872 | M13: 5952 | O13: 10767.8 | P13: 9437.55 | Q13: 7717.15 | R13: 6691.2 | S13: 5059.2
A14: 26 | C14: 10978.6 | D14: 9622 | E14: 7857.4 | F14: 6813.6 | G14: 5149.3 | I14: 12916 | J14: 11320 | K14: 9244 | L14: 8016 | M14: 6058 | O14: 10978.6 | P14: 9622 | Q14: 7857.4 | R14: 6813.6 | S14: 5149.3
A15: 27 | C15: 11197.05 | D15: 9816.65 | E15: 8000.2 | F15: 6938.55 | G15: 5242.8 | I15: 13173 | J15: 11549 | K15: 9412 | L15: 8163 | M15: 6168 | O15: 11197.05 | P15: 9816.65 | Q15: 8000.2 | R15: 6938.55 | S15: 5242.8
A16: 28 | C16: 11427.4 | D16: 10018.1 | E16: 8150.65 | F16: 7066.9 | G16: 5342.25 | I16: 13444 | J16: 11786 | K16: 9589 | L16: 8314 | M16: 6285 | O16: 11427.4 | P16: 10018.1 | Q16: 8150.65 | R16: 7066.9 | S16: 5342.25
A17: 29 | C17: 11666.25 | D17: 10226.35 | E17: 8308.75 | F17: 7204.6 | G17: 5443.4 | I17: 13725 | J17: 12031 | K17: 9775 | L17: 8476 | M17: 6404 | O17: 11666.25 | P17: 10226.35 | Q17: 8308.75 | R17: 7204.6 | S17: 5443.4
A18: 30 | C18: 11911.05 | D18: 10442.25 | E18: 8473.65 | F18: 7348.25 | G18: 5552.2 | I18: 14013 | J18: 12285 | K18: 9969 | L18: 8645 | M18: 6532 | O18: 11911.05 | P18: 10442.25 | Q18: 8473.65 | R18: 7348.25 | S18: 5552.2
A19: 31 | C19: 12168.6 | D19: 10669.2 | E19: 8637.7 | F19: 7491.9 | G19: 5660.15 | I19: 14316 | J19: 12552 | K19: 10162 | L19: 8814 | M19: 6659 | O19: 12168.6 | P19: 10669.2 | Q19: 8637.7 | R19: 7491.9 | S19: 5660.15
A20: 32 | C20: 12430.4 | D20: 10895.3 | E20: 8818.75 | F20: 7647.45 | G20: 5777.45 | I20: 14624 | J20: 12818 | K20: 10375 | L20: 8997 | M20: 6797 | O20: 12430.4 | P20: 10895.3 | Q20: 8818.75 | R20: 7647.45 | S20: 5777.45
A21: 33 | C21: 12706.65 | D21: 11138.4 | E21: 8996.4 | F21: 7803.85 | G21: 5896.45 | I21: 14949 | J21: 13104 | K21: 10584 | L21: 9181 | M21: 6937 | O21: 12706.65 | P21: 11138.4 | Q21: 8996.4 | R21: 7803.85 | S21: 5896.45
A22: 34 | C22: 12988.85 | D22: 11381.5 | E22: 9185.1 | F22: 7967.9 | G22: 6018 | I22: 15281 | J22: 13390 | K22: 10806 | L22: 9374 | M22: 7080 | O22: 12988.85 | P22: 11381.5 | Q22: 9185.1 | R22: 7967.9 | S22: 6018
A23: 35 | C23: 13277.85 | D23: 11638.2 | E23: 9380.6 | F23: 8134.5 | G23: 6147.2 | I23: 15621 | J23: 13692 | K23: 11036 | L23: 9570 | M23: 7232 | O23: 13277.85 | P23: 11638.2 | Q23: 9380.6 | R23: 8134.5 | S23: 6147.2
A24: 36 | C24: 13576.2 | D24: 11899.15 | E24: 9577.8 | F24: 8307.05 | G24: 6274.7 | I24: 15972 | J24: 13999 | K24: 11268 | L24: 9773 | M24: 7382 | O24: 13576.2 | P24: 11899.15 | Q24: 9577.8 | R24: 8307.05 | S24: 6274.7
A25: 37 | C25: 13883.05 | D25: 12169.45 | E25: 9789.45 | F25: 8488.95 | G25: 6414.95 | I25: 16333 | J25: 14317 | K25: 11517 | L25: 9987 | M25: 7547 | O25: 13883.05 | P25: 12169.45 | Q25: 9789.45 | R25: 8488.95 | S25: 6414.95
A26: 38 | C26: 14201.8 | D26: 12448.25 | E26: 10001.95 | F26: 8673.4 | G26: 6551.8 | I26: 16708 | J26: 14645 | K26: 11767 | L26: 10204 | M26: 7708 | O26: 14201.8 | P26: 12448.25 | Q26: 10001.95 | R26: 8673.4 | S26: 6551.8
A27: 39 | C27: 14524.8 | D27: 12731.3 | E27: 10221.25 | F27: 8862.1 | G27: 6698 | I27: 17088 | J27: 14978 | K27: 12025 | L27: 10426 | M27: 7880 | O27: 14524.8 | P27: 12731.3 | Q27: 10221.25 | R27: 8862.1 | S27: 6698
A28: 40 | C28: 14856.3 | D28: 13024.55 | E28: 10443.95 | F28: 9057.6 | G28: 6845.05 | I28: 17478 | J28: 15323 | K28: 12287 | L28: 10656 | M28: 8053 | O28: 14856.3 | P28: 13024.55 | Q28: 10443.95 | R28: 9057.6 | S28: 6845.05
A29: 41 | C29: 15201.4 | D29: 13325.45 | E29: 10678.55 | F29: 9258.2 | G29: 6997.2 | I29: 17884 | J29: 15677 | K29: 12563 | L29: 10892 | M29: 8232 | O29: 15201.4 | P29: 13325.45 | Q29: 10678.55 | R29: 9258.2 | S29: 6997.2
A30: 42 | C30: 15554.15 | D30: 13630.6 | E30: 10918.25 | F30: 9468.15 | G30: 7153.6 | I30: 18299 | J30: 16036 | K30: 12845 | L30: 11139 | M30: 8416 | O30: 15554.15 | P30: 13630.6 | Q30: 10918.25 | R30: 9468.15 | S30: 7153.6
A31: 43 | C31: 15913.7 | D31: 13947.65 | E31: 11160.5 | F31: 9677.25 | G31: 7314.25 | I31: 18722 | J31: 16409 | K31: 13130 | L31: 11385 | M31: 8605 | O31: 15913.7 | P31: 13947.65 | Q31: 11160.5 | R31: 9677.25 | S31: 7314.25
A32: 44 | C32: 16281.75 | D32: 14273.2 | E32: 11412.1 | F32: 9896.55 | G32: 7478.3 | I32: 19155 | J32: 16792 | K32: 13426 | L32: 11643 | M32: 8798 | O32: 16281.75 | P32: 14273.2 | Q32: 11412.1 | R32: 9896.55 | S32: 7478.3
A33: 45 | C33: 16660 | D33: 14603.85 | E33: 11669.65 | F33: 10120.1 | G33: 7648.3 | I33: 19600 | J33: 17181 | K33: 13729 | L33: 11906 | M33: 8998 | O33: 16660 | P33: 14603.85 | Q33: 11669.65 | R33: 10120.1 | S33: 7648.3
A34: 46 | C34: 17045.9 | D34: 14940.45 | E34: 11933.15 | F34: 10347.9 | G34: 7820 | I34: 20054 | J34: 17577 | K34: 14039 | L34: 12174 | M34: 9200 | O34: 17045.9 | P34: 14940.45 | Q34: 11933.15 | R34: 10347.9 | S34: 7820
A35: 47 | C35: 17440.3 | D35: 15289.8 | E35: 12203.45 | F35: 10580.8 | G35: 7997.65 | I35: 20518 | J35: 17988 | K35: 14357 | L35: 12448 | M35: 9409 | O35: 17440.3 | P35: 15289.8 | Q35: 12203.45 | R35: 10580.8 | S35: 7997.65
A36: 48 | C36: 17846.6 | D36: 15638.3 | E36: 12478.85 | F36: 10821.35 | G36: 8176.15 | I36: 20996 | J36: 18398 | K36: 14681 | L36: 12731 | M36: 9619 | O36: 17846.6 | P36: 15638.3 | Q36: 12478.85 | R36: 10821.35 | S36: 8176.15
A37: 49 | C37: 18256.3 | D37: 16002.95 | E37: 12759.35 | F37: 11064.45 | G37: 8362.3 | I37: 21478 | J37: 18827 | K37: 15011 | L37: 13017 | M37: 9838 | O37: 18256.3 | P37: 16002.95 | Q37: 12759.35 | R37: 11064.45 | S37: 8362.3
A38: 50 | C38: 18678.75 | D38: 16369.3 | E38: 13050.05 | F38: 11316.05 | G38: 8551 | I38: 21975 | J38: 19258 | K38: 15353 | L38: 13313 | M38: 10060 | O38: 18678.75 | P38: 16369.3 | Q38: 13050.05 | R38: 11316.05 | S38: 8551
A39: 51 | C39: 19108.85 | D39: 16749.25 | E39: 13347.55 | F39: 11571.9 | G39: 8743.95 | I39: 22481 | J39: 19705 | K39: 15703 | L39: 13614 | M39: 10287 | O39: 19108.85 | P39: 16749.25 | Q39: 13347.55 | R39: 11571.9 | S39: 8743.95
A40: 52 | C40: 19544.9 | D40: 17134.3 | E40: 13644.2 | F40: 11832 | G40: 8940.3 | I40: 22994 | J40: 20158 | K40: 16052 | L40: 13920 | M40: 10518 | O40: 19544.9 | P40: 17134.3 | Q40: 13644.2 | R40: 11832 | S40: 8940.3
A41: 53 | C41: 19992.85 | D41: 17525.3 | E41: 13951.9 | F41: 12098.9 | G41: 9142.6 | I41: 23521 | J41: 20618 | K41: 16414 | L41: 14234 | M41: 10756 | O41: 19992.85 | P41: 17525.3 | Q41: 13951.9 | R41: 12098.9 | S41: 9142.6
A42: 54 | C42: 20451 | D42: 17923.95 | E42: 14268.1 | F42: 12372.6 | G42: 9348.3 | I42: 24060 | J42: 21087 | K42: 16786 | L42: 14556 | M42: 10998 | O42: 20451 | P42: 17923.95 | Q42: 14268.1 | R42: 12372.6 | S42: 9348.3
A43: 55 | C43: 20917.65 | D43: 18332.8 | E43: 14586.85 | F43: 12648 | G43: 9559.1 | I43: 24609 | J43: 21568 | K43: 17161 | L43: 14880 | M43: 11246 | O43: 20917.65 | P43: 18332.8 | Q43: 14586.85 | R43: 12648 | S43: 9559.1
A44: 56 | C44: 21387.7 | D44: 18746.75 | E44: 14914.1 | F44: 12931.9 | G44: 9770.75 | I44: 25162 | J44: 22055 | K44: 17546 | L44: 15214 | M44: 11495 | O44: 21387.7 | P44: 18746.75 | Q44: 14914.1 | R44: 12931.9 | S44: 9770.75
A45: 57 | C45: 21871.35 | D45: 19170.9 | E45: 15243.9 | F45: 13215.8 | G45: 9988.35 | I45: 25731 | J45: 22554 | K45: 17934 | L45: 15548 | M45: 11751 | O45: 21871.35 | P45: 19170.9 | Q45: 15243.9 | R45: 13215.8 | S45: 9988.35
A46: 58 | C46: 22363.5 | D46: 19604.4 | E46: 15580.5 | F46: 13510.75 | G46: 10210.2 | I46: 26310 | J46: 23064 | K46: 18330 | L46: 15895 | M46: 12012 | O46: 22363.5 | P46: 19604.4 | Q46: 15580.5 | R46: 13510.75 | S46: 10210.2
A47: 59 | C47: 22862.45 | D47: 20037.9 | E47: 15928.15 | F47: 13811.65 | G47: 10436.3 | I47: 26897 | J47: 23574 | K47: 18739 | L47: 16249 | M47: 12278 | O47: 22862.45 | P47: 20037.9 | Q47: 15928.15 | R47: 13811.65 | S47: 10436.3
A48: 60 | C48: 23370.75 | D48: 20485.85 | E48: 16277.5 | F48: 14114.25 | G48: 10665.8 | I48: 27495 | J48: 24101 | K48: 19150 | L48: 16605 | M48: 12548 | O48: 23370.75 | P48: 20485.85 | Q48: 16277.5 | R48: 14114.25 | S48: 10665.8
A49: 61 | C49: 26044.85 | D49: 22830.15 | E49: 18132.2 | F49: 15721.6 | G49: 11881.3 | I49: 30641 | J49: 26859 | K49: 21332 | L49: 18496 | M49: 13978 | O49: 26044.85 | P49: 22830.15 | Q49: 18132.2 | R49: 15721.6 | S49: 11881.3
A50: 62 | C50: 28936.55 | D50: 25364 | E50: 20138.2 | F50: 17460.7 | G50: 13194.55 | I50: 34043 | J50: 29840 | K50: 23692 | L50: 20542 | M50: 15523 | O50: 28936.55 | P50: 25364 | Q50: 20138.2 | R50: 17460.7 | S50: 13194.55
A51: 63 | C51: 32050.1 | D51: 28091.65 | E51: 22303.15 | F51: 19339.2 | G51: 14614.05 | I51: 37706 | J51: 33049 | K51: 26239 | L51: 22752 | M51: 17193 | O51: 32050.1 | P51: 28091.65 | Q51: 22303.15 | R51: 19339.2 | S51: 14614.05
A52: 64 | C52: 35374.45 | D52: 31005.45 | E52: 24621.1 | F52: 21348.6 | G52: 16134.7 | I52: 41617 | J52: 36477 | K52: 28966 | L52: 25116 | M52: 18982 | O52: 35374.45 | P52: 31005.45 | Q52: 24621.1 | R52: 21348.6 | S52: 16134.7
A53: 65 | C53: 38923.2 | D53: 34116.45 | E53: 27099.7 | F53: 23498.25 | G53: 17756.5 | I53: 45792 | J53: 40137 | K53: 31882 | L53: 27645 | M53: 20890 | O53: 38923.2 | P53: 34116.45 | Q53: 27099.7 | R53: 23498.25 | S53: 17756.5
A54: 66 | C54: 42688.7 | D54: 37418.7 | E54: 29735.55 | F54: 25783.05 | G54: 19486.25 | I54: 50222 | J54: 44022 | K54: 34983 | L54: 30333 | M54: 22925 | O54: 42688.7 | P54: 37418.7 | Q54: 29735.55 | R54: 25783.05 | S54: 19486.25
A55: 67 | C55: 46670.1 | D55: 40908.8 | E55: 32526.1 | F55: 28202.15 | G55: 21312.9 | I55: 54906 | J55: 48128 | K55: 38266 | L55: 33179 | M55: 25074 | O55: 46670.1 | P55: 40908.8 | Q55: 32526.1 | R55: 28202.15 | S55: 21312.9
A56: 68 | C56: 50869.1 | D56: 44585.9 | E56: 35475.6 | F56: 30761.5 | G56: 23246.65 | I56: 59846 | J56: 52454 | K56: 41736 | L56: 36190 | M56: 27349 | O56: 50869.1 | P56: 44585.9 | Q56: 35475.6 | R56: 30761.5 | S56: 23246.65
A57: 69 | C57: 55291.65 | D57: 48462.75 | E57: 38580.65 | F57: 33453.45 | G57: 25278.15 | I57: 65049 | J57: 57015 | K57: 45389 | L57: 39357 | M57: 29739 | O57: 55291.65 | P57: 48462.75 | Q57: 38580.65 | R57: 33453.45 | S57: 25278.15
A58: 70 | C58: 59926.7 | D58: 52527.45 | E58: 41845.5 | F58: 36283.95 | G58: 27419.3 | I58: 70502 | J58: 61797 | K58: 49230 | L58: 42687 | M58: 32258 | O58: 59926.7 | P58: 52527.45 | Q58: 41845.5 | R58: 36283.95 | S58: 27419.3
A59: 71 | C59: 64785.3 | D59: 56785.1 | E59: 45263.35 | F59: 39247.05 | G59: 29656.5 | I59: 76218 | J59: 66806 | K59: 53251 | L59: 46173 | M59: 34890 | O59: 64785.3 | P59: 56785.1 | Q59: 45263.35 | R59: 39247.05 | S59: 29656.5
A60: 72 | C60: 69858.1 | D60: 61230.6 | E60: 48840.15 | F60: 42348.7 | G60: 32002.5 | I60: 82186 | J60: 72036 | K60: 57459 | L60: 49822 | M60: 37650 | O60: 69858.1 | P60: 61230.6 | Q60: 48840.15 | R60: 42348.7 | S60: 32002.5
A61: 73 | C61: 75151.9 | D61: 65872.45 | E61: 52567.4 | F61: 45585.5 | G61: 34445.4 | I61: 88414 | J61: 77497 | K61: 61844 | L61: 53630 | M61: 40524 | O61: 75151.9 | P61: 65872.45 | Q61: 52567.4 | R61: 45585.5 | S61: 34445.4
A62: 74 | C62: 80661.6 | D62: 70702.15 | E62: 56459.55 | F62: 48957.45 | G62: 36993.7 | I62: 94896 | J62: 83179 | K62: 66423 | L62: 57597 | M62: 43522 | O62: 80661.6 | P62: 70702.15 | Q62: 56459.55 | R62: 48957.45 | S62: 36993.7
A63: 75 | C63: 86391.45 | D63: 75722.25 | E63: 60505.55 | F63: 52465.4 | G63: 39645.7 | I63: 101637 | J63: 89085 | K63: 71183 | L63: 61724 | M63: 46642 | O63: 86391.45 | P63: 75722.25 | Q63: 60505.55 | R63: 52465.4 | S63: 39645.7
A64: 76 | C64: 86391.45 | D64: 75722.25 | E64: 60505.55 | F64: 52465.4 | G64: 39645.7 | I64: 101637 | J64: 89085 | K64: 71183 | L64: 61724 | M64: 46642 | O64: 86391.45 | P64: 75722.25 | Q64: 60505.55 | R64: 52465.4 | S64: 39645.7
A65: 77 | C65: 86391.45 | D65: 75722.25 | E65: 60505.55 | F65: 52465.4 | G65: 39645.7 | I65: 101637 | J65: 89085 | K65: 71183 | L65: 61724 | M65: 46642 | O65: 86391.45 | P65: 75722.25 | Q65: 60505.55 | R65: 52465.4 | S65: 39645.7
A66: 78 | C66: 86391.45 | D66: 75722.25 | E66: 60505.55 | F66: 52465.4 | G66: 39645.7 | I66: 101637 | J66: 89085 | K66: 71183 | L66: 61724 | M66: 46642 | O66: 86391.45 | P66: 75722.25 | Q66: 60505.55 | R66: 52465.4 | S66: 39645.7
A67: 79 | C67: 86391.45 | D67: 75722.25 | E67: 60505.55 | F67: 52465.4 | G67: 39645.7 | I67: 101637 | J67: 89085 | K67: 71183 | L67: 61724 | M67: 46642 | O67: 86391.45 | P67: 75722.25 | Q67: 60505.55 | R67: 52465.4 | S67: 39645.7
A68: 80 | C68: 86391.45 | D68: 75722.25 | E68: 60505.55 | F68: 52465.4 | G68: 39645.7 | I68: 101637 | J68: 89085 | K68: 71183 | L68: 61724 | M68: 46642 | O68: 86391.45 | P68: 75722.25 | Q68: 60505.55 | R68: 52465.4 | S68: 39645.7
A69: 81 | C69: 86391.45 | D69: 75722.25 | E69: 60505.55 | F69: 52465.4 | G69: 39645.7 | I69: 101637 | J69: 89085 | K69: 71183 | L69: 61724 | M69: 46642 | O69: 86391.45 | P69: 75722.25 | Q69: 60505.55 | R69: 52465.4 | S69: 39645.7
A70: 82 | C70: 86391.45 | D70: 75722.25 | E70: 60505.55 | F70: 52465.4 | G70: 39645.7 | I70: 101637 | J70: 89085 | K70: 71183 | L70: 61724 | M70: 46642 | O70: 86391.45 | P70: 75722.25 | Q70: 60505.55 | R70: 52465.4 | S70: 39645.7
A71: 83 | C71: =O71 -> 86391.45 | D71: =P71 -> 75722.25 | E71: =Q71 -> 60505.55 | F71: =R71 -> 52465.4 | G71: =S71 -> 39645.7 | I71: 101637 | J71: 89085 | K71: 71183 | L71: 61724 | M71: 46642 | O71: =I71*$P$4 -> 86391.45 | P71: =J71*$P$4 -> 75722.25 | Q71: =K71*$P$4 -> 60505.55 | R71: =L71*$P$4 -> 52465.4 | S71: =M71*$P$4 -> 39645.7
A72: 84 | B72: o más | C72: 86391.45 | D72: 75722.25 | E72: 60505.55 | F72: 52465.4 | G72: 39645.7 | I72: 101637 | J72: 89085 | K72: 71183 | L72: 61724 | M72: 46642 | O72: 86391.45 | P72: 75722.25 | Q72: 60505.55 | R72: 52465.4 | S72: 39645.7
A73: 1 | B73: Hijo | C73: 4430.2 | D73: 3881.1 | E73: 3205.35 | F73: 2782.05 | G73: 2102.05 | I73: 5212 | J73: 4566 | K73: 3771 | L73: 3273 | M73: 2473 | O73: 4430.2 | P73: 3881.1 | Q73: 3205.35 | R73: 2782.05 | S73: 2102.05
A74: 2 | B74: Hijos | C74: 7529.3 | D74: 6600.25 | E74: 5447.65 | F74: 4726 | G74: 3570.85 | I74: 8858 | J74: 7765 | K74: 6409 | L74: 5560 | M74: 4201 | O74: 7529.3 | P74: 6600.25 | Q74: 5447.65 | R74: 4726 | S74: 3570.85
A75: 3 | B75: Hijos o más | C75: 10625.85 | D75: 9316.85 | E75: 7692.5 | F75: 6671.65 | G75: 5041.35 | I75: 12501 | J75: 10961 | K75: 9050 | L75: 7849 | M75: 5931 | O75: 10625.85 | P75: 9316.85 | Q75: 7692.5 | R75: 6671.65 | S75: 5041.35
A77: BUPA GLOBAL ELITE - MENSUALES
A79: EDAD | C79: 1000 | D79: 2000 | E79: 3500
A80: 18 | C80: =C6*$K$2 -> 918.2833333 | D80: =D6*$K$2 -> 804.678 | E80: 664.8926667 | F80: 576.2773333 | G80: 435.6986667
A81: 19 | C81: =C7*$K$2 -> 929.3106667 | D81: 814.5946667 | E81: 671.874 | F81: 582.7826667 | G81: 440.4586667
A82: 20 | C82: =C8*$K$2 -> 941.2106667 | D82: 824.67 | E82: 679.252 | F82: 588.9706667 | G82: 445.06
A83: 21 | C83: =C9*$K$2 -> 952.8726667 | D83: 835.3006667 | E83: 686.868 | F83: 595.6346667 | G83: 450.2166667
A84: 22 | C84: =C10*$K$2 -> 965.2486667 | D84: 846.0106667 | E84: 694.96 | F84: 602.616 | G84: 455.3733333
A85: 23 | C85: =C11*$K$2 -> 977.942 | D85: 857.514 | E85: 703.29 | F85: 609.756 | G85: 460.8473333
A86: 24 | C86: =C12*$K$2 -> 991.1113333 | D86: 869.0966667 | E86: 711.62 | F86: 617.134 | G86: 466.4006667
A87: 25 | C87: =C13*$K$2 -> 1004.994667 | D87: 880.838 | E87: 720.2673333 | F87: 624.512 | G87: 472.192
A88: 26 | C88: =C14*$K$2 -> 1024.669333 | D88: 898.0533333 | E88: 733.3573333 | F88: 635.936 | G88: 480.6013333
A89: 27 | C89: =C15*$K$2 -> 1045.058 | D89: 916.2206667 | E89: 746.6853333 | F89: 647.598 | G89: 489.328
A90: 28 | C90: =C16*$K$2 -> 1066.557333 | D90: 935.0226667 | E90: 760.7273333 | F90: 659.5773333 | G90: 498.61
A91: 29 | C91: =C17*$K$2 -> 1088.85 | D91: 954.4593333 | E91: 775.4833333 | F91: 672.4293333 | G91: 508.0506667
A92: 30 | C92: =C18*$K$2 -> 1111.698 | D92: 974.61 | E92: 790.874 | F92: 685.8366667 | G92: 518.2053333
A93: 31 | C93: =C19*$K$2 -> 1135.736 | D93: 995.792 | E93: 806.1853333 | F93: 699.244 | G93: 528.2806667
A94: 32 | C94: =C20*$K$2 -> 1160.170667 | D94: 1016.894667 | E94: 823.0833333 | F94: 713.762 | G94: 539.2286667
A95: 33 | C95: =C21*$K$2 -> 1185.954 | D95: 1039.584 | E95: 839.664 | F95: 728.3593333 | G95: 550.3353333
A96: 34 | C96: =C22*$K$2 -> 1212.292667 | D96: 1062.273333 | E96: 857.276 | F96: 743.6706667 | G96: 561.68
A97: 35 | C97: =C23*$K$2 -> 1239.266 | D97: 1086.232 | E97: 875.5226667 | F97: 759.22 | G97: 573.7386667
A98: 36 | C98: =C24*$K$2 -> 1267.112 | D98: 1110.587333 | E98: 893.928 | F98: 775.3246667 | G98: 585.6386667
A99: 37 | C99: =C25*$K$2 -> 1295.751333 | D99: 1135.815333 | E99: 913.682 | F99: 792.302 | G99: 598.7286667
A100: 38 | C100: =C26*$K$2 -> 1325.501333 | D100: 1161.836667 | E100: 933.5153333 | F100: 809.5173333 | G100: 611.5013333
A101: 39 | C101: =C27*$K$2 -> 1355.648 | D101: 1188.254667 | E101: 953.9833333 | F101: 827.1293333 | G101: 625.1466667
A102: 40 | C102: =C28*$K$2 -> 1386.588 | D102: 1215.624667 | E102: 974.7686667 | F102: 845.376 | G102: 638.8713333
A103: 41 | C103: =C29*$K$2 -> 1418.797333 | D103: 1243.708667 | E103: 996.6646667 | F103: 864.0986667 | G103: 653.072
A104: 42 | C104: =C30*$K$2 -> 1451.720667 | D104: 1272.189333 | E104: 1019.036667 | F104: 883.694 | G104: 667.6693333
A105: 43 | C105: =C31*$K$2 -> 1485.278667 | D105: 1301.780667 | E105: 1041.646667 | F105: 903.21 | G105: 682.6633333
A106: 44 | C106: =C32*$K$2 -> 1519.63 | D106: 1332.165333 | E106: 1065.129333 | F106: 923.678 | G106: 697.9746667
A107: 45 | C107: =C33*$K$2 -> 1554.933333 | D107: 1363.026 | E107: 1089.167333 | F107: 944.5426667 | G107: 713.8413333
A108: 46 | C108: =C34*$K$2 -> 1590.950667 | D108: 1394.442 | E108: 1113.760667 | F108: 965.804 | G108: 729.8666667
A109: 47 | C109: =C35*$K$2 -> 1627.761333 | D109: 1427.048 | E109: 1138.988667 | F109: 987.5413333 | G109: 746.4473333
A110: 48 | C110: =C36*$K$2 -> 1665.682667 | D110: 1459.574667 | E110: 1164.692667 | F110: 1009.992667 | G110: 763.1073333
A111: 49 | C111: =C37*$K$2 -> 1703.921333 | D111: 1493.608667 | E111: 1190.872667 | F111: 1032.682 | G111: 780.4813333
A112: 50 | C112: =C38*$K$2 -> 1743.35 | D112: 1527.801333 | E112: 1218.004667 | F112: 1056.164667 | G112: 798.0933333
A113: 51 | C113: =C39*$K$2 -> 1783.492667 | D113: 1563.263333 | E113: 1245.771333 | F113: 1080.044 | G113: 816.102
A114: 52 | C114: =C40*$K$2 -> 1824.190667 | D114: 1599.201333 | E114: 1273.458667 | F114: 1104.32 | G114: 834.428
A115: 53 | C115: =C41*$K$2 -> 1865.999333 | D115: 1635.694667 | E115: 1302.177333 | F115: 1129.230667 | G115: 853.3093333
A116: 54 | C116: =C42*$K$2 -> 1908.76 | D116: 1672.902 | E116: 1331.689333 | F116: 1154.776 | G116: 872.508
A117: 55 | C117: =C43*$K$2 -> 1952.314 | D117: 1711.061333 | E117: 1361.439333 | F117: 1180.48 | G117: 892.1826667
A118: 56 | C118: =C44*$K$2 -> 1996.185333 | D118: 1749.696667 | E118: 1391.982667 | F118: 1206.977333 | G118: 911.9366667
A119: 57 | C119: =C45*$K$2 -> 2041.326 | D119: 1789.284 | E119: 1422.764 | F119: 1233.474667 | G119: 932.246
A120: 58 | C120: =C46*$K$2 -> 2087.26 | D120: 1829.744 | E120: 1454.18 | F120: 1261.003333 | G120: 952.952
A121: 59 | C121: =C47*$K$2 -> 2133.828667 | D121: 1870.204 | E121: 1486.627333 | F121: 1289.087333 | G121: 974.0546667
A122: 60 | C122: =C48*$K$2 -> 2181.27 | D122: 1912.012667 | E122: 1519.233333 | F122: 1317.33 | G122: 995.4746667
A123: 61 | C123: =C49*$K$2 -> 2430.852667 | D123: 2130.814 | E123: 1692.338667 | F123: 1467.349333 | G123: 1108.921333
A124: 62 | C124: =C50*$K$2 -> 2700.744667 | D124: 2367.306667 | E124: 1879.565333 | F124: 1629.665333 | G124: 1231.491333
A125: 63 | C125: =C51*$K$2 -> 2991.342667 | D125: 2621.887333 | E125: 2081.627333 | F125: 1804.992 | G125: 1363.978
A126: 64 | C126: =C52*$K$2 -> 3301.615333 | D126: 2893.842 | E126: 2297.969333 | F126: 1992.536 | G126: 1505.905333
A127: 65 | C127: =C53*$K$2 -> 3632.832 | D127: 3184.202 | E127: 2529.305333 | F127: 2193.17 | G127: 1657.273333
A128: 66 | C128: =C54*$K$2 -> 3984.278667 | D128: 3492.412 | E128: 2775.318 | F128: 2406.418 | G128: 1818.716667
A129: 67 | C129: =C55*$K$2 -> 4355.876 | D129: 3818.154667 | E129: 3035.769333 | F129: 2632.200667 | G129: 1989.204
A130: 68 | C130: =C56*$K$2 -> 4747.782667 | D130: 4161.350667 | E130: 3311.056 | F130: 2871.073333 | G130: 2169.687333
A131: 69 | C131: =C57*$K$2 -> 5160.554 | D131: 4523.19 | E131: 3600.860667 | F131: 3122.322 | G131: 2359.294
A132: 70 | C132: =C58*$K$2 -> 5593.158667 | D132: 4902.562 | E132: 3905.58 | F132: 3386.502 | G132: 2559.134667
A133: 71 | C133: =C59*$K$2 -> 6046.628 | D133: 5299.942667 | E133: 4224.579333 | F133: 3663.058 | G133: 2767.94
A134: 72 | C134: =C60*$K$2 -> 6520.089333 | D134: 5714.856 | E134: 4558.414 | F134: 3952.545333 | G134: 2986.9
A135: 73 | C135: =C61*$K$2 -> 7014.177333 | D135: 6148.095333 | E135: 4906.290667 | F135: 4254.646667 | G135: 3214.904
A136: 74 | C136: =C62*$K$2 -> 7528.416 | D136: 6598.867333 | E136: 5269.558 | F136: 4569.362 | G136: 3452.745333
A137: 75 | C137: =C63*$K$2 -> 8063.202 | D137: 7067.41 | E137: 5647.184667 | F137: 4896.770667 | G137: 3700.265333
A138: 76 | C138: =C64*$K$2 -> 8063.202 | D138: 7067.41 | E138: 5647.184667 | F138: 4896.770667 | G138: 3700.265333
A139: 77 | C139: =C65*$K$2 -> 8063.202 | D139: 7067.41 | E139: 5647.184667 | F139: 4896.770667 | G139: 3700.265333
A140: 78 | C140: =C66*$K$2 -> 8063.202 | D140: 7067.41 | E140: 5647.184667 | F140: 4896.770667 | G140: 3700.265333
A141: 79 | C141: =C67*$K$2 -> 8063.202 | D141: 7067.41 | E141: 5647.184667 | F141: 4896.770667 | G141: 3700.265333
A142: 80 | C142: =C68*$K$2 -> 8063.202 | D142: 7067.41 | E142: 5647.184667 | F142: 4896.770667 | G142: 3700.265333
A143: 81 | C143: =C69*$K$2 -> 8063.202 | D143: 7067.41 | E143: 5647.184667 | F143: 4896.770667 | G143: 3700.265333
A144: 82 | C144: =C70*$K$2 -> 8063.202 | D144: 7067.41 | E144: 5647.184667 | F144: 4896.770667 | G144: 3700.265333
A145: 83 | C145: =C71*$K$2 -> 8063.202 | D145: 7067.41 | E145: 5647.184667 | F145: 4896.770667 | G145: 3700.265333
A146: 84 | B146: o más | C146: =C72*$K$2 -> 8063.202 | D146: 7067.41 | E146: 5647.184667 | F146: 4896.770667 | G146: 3700.265333
A147: 1 | B147: Hijo | C147: =C73*$K$2 -> 413.4853333 | D147: 362.236 | E147: 299.166 | F147: 259.658 | G147: 196.1913333
A148: 2 | B148: Hijos | C148: =C74*$K$2 -> 702.7346667 | D148: 616.0233333 | E148: 508.4473333 | F148: 441.0933333 | G148: 333.2793333
A149: 3 | B149: Hijos o más | C149: =C75*$K$2 -> 991.746 | D149: 869.5726667 | E149: 717.9666667 | F149: 622.6873333 | G149: 470.526
A152: BUPA GLOBAL PREMIER
A153: TARIFAS ANUALES
A155: EDAD | C155: 2000 | D155: 3500 | E155: 5000 | F155: 10000 | I155: TARIFAS BASE | N155: TARIFAS BASE COND ESCUENTO
A156: 18 | C156: =N156 -> 4352.25 | D156: =O156 -> 3951.75 | E156: 2956.5 | F156: 2139 | I156: 5803 | J156: 5269 | K156: 3942 | L156: 2852 | N156: =I156*$Q$4 -> 4352.25 | O156: =J156*$Q$4 -> 3951.75 | P156: 2956.5 | Q156: 2139
A157: 19 | C157: =N157 -> 4407.75 | D157: =O157 -> 4000.5 | E157: =P157 -> 2983.5 | F157: =Q157 -> 2159.25 | I157: 5877 | J157: 5334 | K157: 3978 | L157: 2879 | N157: =I157*$Q$4 -> 4407.75 | O157: =J157*$Q$4 -> 4000.5 | P157: =K157*$Q$4 -> 2983.5 | Q157: =L157*$Q$4 -> 2159.25
A158: 20 | C158: 4461.75 | D158: 4048.5 | E158: 3014.25 | F158: 2181.75 | I158: 5949 | J158: 5398 | K158: 4019 | L158: 2909 | N158: 4461.75 | O158: 4048.5 | P158: 3014.25 | Q158: 2181.75
A159: 21 | C159: 4518.75 | D159: 4098.75 | E159: 3045 | F159: 2204.25 | I159: 6025 | J159: 5465 | K159: 4060 | L159: 2939 | N159: 4518.75 | O159: 4098.75 | P159: 3045 | Q159: 2204.25
A160: 22 | C160: 4575 | D160: 4155 | E160: 3076.5 | F160: 2228.25 | I160: 6100 | J160: 5540 | K160: 4102 | L160: 2971 | N160: 4575 | O160: 4155 | P160: 3076.5 | Q160: 2228.25
A161: 23 | C161: 4636.5 | D161: 4209 | E161: 3109.5 | F161: 2251.5 | I161: 6182 | J161: 5612 | K161: 4146 | L161: 3002 | N161: 4636.5 | O161: 4209 | P161: 3109.5 | Q161: 2251.5
A162: 24 | C162: 4700.25 | D162: 4266 | E162: 3144 | F162: 2276.25 | I162: 6267 | J162: 5688 | K162: 4192 | L162: 3035 | N162: 4700.25 | O162: 4266 | P162: 3144 | Q162: 2276.25
A163: 25 | C163: 4764.75 | D163: 4323 | E163: 3179.25 | F163: 2301 | I163: 6353 | J163: 5764 | K163: 4239 | L163: 3068 | N163: 4764.75 | O163: 4323 | P163: 3179.25 | Q163: 2301
A164: 26 | C164: 4857.75 | D164: 4410 | E164: 3233.25 | F164: 2340 | I164: 6477 | J164: 5880 | K164: 4311 | L164: 3120 | N164: 4857.75 | O164: 4410 | P164: 3233.25 | Q164: 2340
A165: 27 | C165: 4953.75 | D165: 4498.5 | E165: 3288 | F165: 2379.75 | I165: 6605 | J165: 5998 | K165: 4384 | L165: 3173 | N165: 4953.75 | O165: 4498.5 | P165: 3288 | Q165: 2379.75
A166: 28 | C166: 5055.75 | D166: 4588.5 | E166: 3344.25 | F166: 2421 | I166: 6741 | J166: 6118 | K166: 4459 | L166: 3228 | N166: 5055.75 | O166: 4588.5 | P166: 3344.25 | Q166: 2421
A167: 29 | C167: 5162.25 | D167: 4684.5 | E167: 3405 | F167: 2466 | I167: 6883 | J167: 6246 | K167: 4540 | L167: 3288 | N167: 5162.25 | O167: 4684.5 | P167: 3405 | Q167: 2466
A168: 30 | C168: 5271 | D168: 4785.75 | E168: 3468.75 | F168: 2511.75 | I168: 7028 | J168: 6381 | K168: 4625 | L168: 3349 | N168: 5271 | O168: 4785.75 | P168: 3468.75 | Q168: 2511.75
A169: 31 | C169: 5382.75 | D169: 4887 | E169: 3534.75 | F169: 2559 | I169: 7177 | J169: 6516 | K169: 4713 | L169: 3412 | N169: 5382.75 | O169: 4887 | P169: 3534.75 | Q169: 2559
A170: 32 | C170: 5500.5 | D170: 4992.75 | E170: 3601.5 | F170: 2607.75 | I170: 7334 | J170: 6657 | K170: 4802 | L170: 3477 | N170: 5500.5 | O170: 4992.75 | P170: 3601.5 | Q170: 2607.75
A171: 33 | C171: 5620.5 | D171: 5102.25 | E171: 3674.25 | F171: 2658.75 | I171: 7494 | J171: 6803 | K171: 4899 | L171: 3545 | N171: 5620.5 | O171: 5102.25 | P171: 3674.25 | Q171: 2658.75
A172: 34 | C172: 5745.75 | D172: 5214 | E172: 3746.25 | F172: 2712 | I172: 7661 | J172: 6952 | K172: 4995 | L172: 3616 | N172: 5745.75 | O172: 5214 | P172: 3746.25 | Q172: 2712
A173: 35 | C173: 5874 | D173: 5332.5 | E173: 3824.25 | F173: 2769 | I173: 7832 | J173: 7110 | K173: 5099 | L173: 3692 | N173: 5874 | O173: 5332.5 | P173: 3824.25 | Q173: 2769
A174: 36 | C174: 6007.5 | D174: 5451.75 | E174: 3903.75 | F174: 2825.25 | I174: 8010 | J174: 7269 | K174: 5205 | L174: 3767 | N174: 6007.5 | O174: 5451.75 | P174: 3903.75 | Q174: 2825.25
A175: 37 | C175: 6143.25 | D175: 5574.75 | E175: 3984.75 | F175: 2883.75 | I175: 8191 | J175: 7433 | K175: 5313 | L175: 3845 | N175: 6143.25 | O175: 5574.75 | P175: 3984.75 | Q175: 2883.75
A176: 38 | C176: 6282.75 | D176: 5703.75 | E176: 4068.75 | F176: 2944.5 | I176: 8377 | J176: 7605 | K176: 5425 | L176: 3926 | N176: 6282.75 | O176: 5703.75 | P176: 4068.75 | Q176: 2944.5
A177: 39 | C177: 6428.25 | D177: 5835 | E177: 4154.25 | F177: 3007.5 | I177: 8571 | J177: 7780 | K177: 5539 | L177: 4010 | N177: 6428.25 | O177: 5835 | P177: 4154.25 | Q177: 3007.5
A178: 40 | C178: 6575.25 | D178: 5968.5 | E178: 4241.25 | F178: 3069.75 | I178: 8767 | J178: 7958 | K178: 5655 | L178: 4093 | N178: 6575.25 | O178: 5968.5 | P178: 4241.25 | Q178: 3069.75
A179: 41 | C179: 6728.25 | D179: 6105.75 | E179: 4332 | F179: 3135.75 | I179: 8971 | J179: 8141 | K179: 5776 | L179: 4181 | N179: 6728.25 | O179: 6105.75 | P179: 4332 | Q179: 3135.75
A180: 42 | C180: 6880.5 | D180: 6245.25 | E180: 4428 | F180: 3204 | I180: 9174 | J180: 8327 | K180: 5904 | L180: 4272 | N180: 6880.5 | O180: 6245.25 | P180: 4428 | Q180: 3204
A181: 43 | C181: 7043.25 | D181: 6390 | E181: 4524.75 | F181: 3277.5 | I181: 9391 | J181: 8520 | K181: 6033 | L181: 4370 | N181: 7043.25 | O181: 6390 | P181: 4524.75 | Q181: 3277.5
A182: 44 | C182: 7202.25 | D182: 6537.75 | E182: 4624.5 | F182: 3348.75 | I182: 9603 | J182: 8717 | K182: 6166 | L182: 4465 | N182: 7202.25 | O182: 6537.75 | P182: 4624.5 | Q182: 3348.75
A183: 45 | C183: 7371 | D183: 6691.5 | E183: 4727.25 | F183: 3422.25 | I183: 9828 | J183: 8922 | K183: 6303 | L183: 4563 | N183: 7371 | O183: 6691.5 | P183: 4727.25 | Q183: 3422.25
A184: 46 | C184: 7543.5 | D184: 6845.25 | E184: 4831.5 | F184: 3496.5 | I184: 10058 | J184: 9127 | K184: 6442 | L184: 4662 | N184: 7543.5 | O184: 6845.25 | P184: 4831.5 | Q184: 3496.5
A185: 47 | C185: 7718.25 | D185: 7003.5 | E185: 4939.5 | F185: 3576 | I185: 10291 | J185: 9338 | K185: 6586 | L185: 4768 | N185: 7718.25 | O185: 7003.5 | P185: 4939.5 | Q185: 3576
A186: 48 | C186: 7896 | D186: 7165.5 | E186: 5049 | F186: 3654 | I186: 10528 | J186: 9554 | K186: 6732 | L186: 4872 | N186: 7896 | O186: 7165.5 | P186: 5049 | Q186: 3654
A187: 49 | C187: 8079.75 | D187: 7331.25 | E187: 5160.75 | F187: 3735 | I187: 10773 | J187: 9775 | K187: 6881 | L187: 4980 | N187: 8079.75 | O187: 7331.25 | P187: 5160.75 | Q187: 3735
A188: 50 | C188: 8263.5 | D188: 7500.75 | E188: 5275.5 | F188: 3818.25 | I188: 11018 | J188: 10001 | K188: 7034 | L188: 5091 | N188: 8263.5 | O188: 7500.75 | P188: 5275.5 | Q188: 3818.25
A189: 51 | C189: 8454 | D189: 7673.25 | E189: 5391 | F189: 3903 | I189: 11272 | J189: 10231 | K189: 7188 | L189: 5204 | N189: 8454 | O189: 7673.25 | P189: 5391 | Q189: 3903
A190: 52 | C190: 8649.75 | D190: 7848.75 | E190: 5511.75 | F190: 3990 | I190: 11533 | J190: 10465 | K190: 7349 | L190: 5320 | N190: 8649.75 | O190: 7848.75 | P190: 5511.75 | Q190: 3990
A191: 53 | C191: 8846.25 | D191: 8028.75 | E191: 5634.75 | F191: 4079.25 | I191: 11795 | J191: 10705 | K191: 7513 | L191: 5439 | N191: 8846.25 | O191: 8028.75 | P191: 5634.75 | Q191: 4079.25
A192: 54 | C192: 9048 | D192: 8209.5 | E192: 5759.25 | F192: 4168.5 | I192: 12064 | J192: 10946 | K192: 7679 | L192: 5558 | N192: 9048 | O192: 8209.5 | P192: 5759.25 | Q192: 4168.5
A193: 55 | C193: 9256.5 | D193: 8399.25 | E193: 5886 | F193: 4261.5 | I193: 12342 | J193: 11199 | K193: 7848 | L193: 5682 | N193: 9256.5 | O193: 8399.25 | P193: 5886 | Q193: 4261.5
A194: 56 | C194: 9462.75 | D194: 8589 | E194: 6017.25 | F194: 4356 | I194: 12617 | J194: 11452 | K194: 8023 | L194: 5808 | N194: 9462.75 | O194: 8589 | P194: 6017.25 | Q194: 4356
A195: 57 | C195: 9678 | D195: 8782.5 | E195: 6150.75 | F195: 4453.5 | I195: 12904 | J195: 11710 | K195: 8201 | L195: 5938 | N195: 9678 | O195: 8782.5 | P195: 6150.75 | Q195: 4453.5
A196: 58 | C196: 9895.5 | D196: 8979 | E196: 6285.75 | F196: 4551.75 | I196: 13194 | J196: 11972 | K196: 8381 | L196: 6069 | N196: 9895.5 | O196: 8979 | P196: 6285.75 | Q196: 4551.75
A197: 59 | C197: 10116 | D197: 9180.75 | E197: 6424.5 | F197: 4649.25 | I197: 13488 | J197: 12241 | K197: 8566 | L197: 6199 | N197: 10116 | O197: 9180.75 | P197: 6424.5 | Q197: 4649.25
A198: 60 | C198: 10342.5 | D198: 9385.5 | E198: 6565.5 | F198: 4752.75 | I198: 13790 | J198: 12514 | K198: 8754 | L198: 6337 | N198: 10342.5 | O198: 9385.5 | P198: 6565.5 | Q198: 4752.75
A199: 61 | C199: 11523.75 | D199: 10458 | E199: 7306.5 | F199: 5289 | I199: 15365 | J199: 13944 | K199: 9742 | L199: 7052 | N199: 11523.75 | O199: 10458 | P199: 7306.5 | Q199: 5289
A200: 62 | C200: 12801.75 | D200: 11617.5 | E200: 8115 | F200: 5874 | I200: 17069 | J200: 15490 | K200: 10820 | L200: 7832 | N200: 12801.75 | O200: 11617.5 | P200: 8115 | Q200: 5874
A201: 63 | C201: 14178.75 | D201: 12867 | E201: 8985.75 | F201: 6505.5 | I201: 18905 | J201: 17156 | K201: 11981 | L201: 8674 | N201: 14178.75 | O201: 12867 | P201: 8985.75 | Q201: 6505.5
A202: 64 | C202: 15650.25 | D202: 14205 | E202: 9923.25 | F202: 7181.25 | I202: 20867 | J202: 18940 | K202: 13231 | L202: 9575 | N202: 15650.25 | O202: 14205 | P202: 9923.25 | Q202: 7181.25
A203: 65 | C203: 17220 | D203: 15626.25 | E203: 10923 | F203: 7905 | I203: 22960 | J203: 20835 | K203: 14564 | L203: 10540 | N203: 17220 | O203: 15626.25 | P203: 10923 | Q203: 7905
A204: 66 | C204: 18887.25 | D204: 17138.25 | E204: 11989.5 | F204: 8677.5 | I204: 25183 | J204: 22851 | K204: 15986 | L204: 11570 | N204: 18887.25 | O204: 17138.25 | P204: 11989.5 | Q204: 8677.5
A205: 67 | C205: 20649 | D205: 18738 | E205: 13122 | F205: 9498 | I205: 27532 | J205: 24984 | K205: 17496 | L205: 12664 | N205: 20649 | O205: 18738 | P205: 13122 | Q205: 9498
A206: 68 | C206: 22507.5 | D206: 20424.75 | E206: 14317.5 | F206: 10361.25 | I206: 30010 | J206: 27233 | K206: 19090 | L206: 13815 | N206: 22507.5 | O206: 20424.75 | P206: 14317.5 | Q206: 10361.25
... 1257 more rows
